Organisation Name,Organisation Code,Unique Ref No,Effective Date,Directorate  where expenditure incurred,Supplier name ,Payment Date,Net Amount,Purpose of Spend,Procurement Classification (Higher Level),Procurement Classification (Lower Level),Capital/Revenue
Walsall Council,http://opendatacommunities.org/id/metropolitan-district-council/walsall,WC80-1,31/05/2017,Childrens,247 CARS (WILLENHALL) LIMITED,30/05/2017,"2,394.00",52000-WITH DRIVER-HIRE OF VEHICLES,SCHOOL TRANSPORT,Transport,Revenue
Walsall Council,http://opendatacommunities.org/id/metropolitan-district-council/walsall,WC80-2,31/05/2017,Childrens,247 CARS (WILLENHALL) LIMITED,25/05/2017,"5,428.00",52000-WITH DRIVER-HIRE OF VEHICLES,SCHOOL TRANSPORT,Transport,Revenue
Walsall Council,http://opendatacommunities.org/id/metropolitan-district-council/walsall,WC80-3,31/05/2017,Economy & Environment,3GS (UK) LIMITED,16/05/2017,"2,800.00",73025-PROFESSIONAL SERVICES-PRIV CONTRACTOR & OTHER AGENCIES,ENVIRONMENT ENFORCEMENT,Third Party Payments,Revenue
Walsall Council,http://opendatacommunities.org/id/metropolitan-district-council/walsall,WC80-4,31/05/2017,Childrens,5 CARE SERVICES LTD,24/05/2017,526.50,63000-PROFESSIONAL FEES AND SERVICES,DIRECTLY COMMISSIONED NURSING SERVICES,Supplies & Services,Revenue
Walsall Council,http://opendatacommunities.org/id/metropolitan-district-council/walsall,WC80-5,31/05/2017,Childrens,5 CARE SERVICES LTD,24/05/2017,949.00,63000-PROFESSIONAL FEES AND SERVICES,DIRECTLY COMMISSIONED NURSING SERVICES,Supplies & Services,Revenue
Walsall Council,http://opendatacommunities.org/id/metropolitan-district-council/walsall,WC80-6,31/05/2017,Childrens,5 CARE SERVICES LTD,24/05/2017,"1,703.00",63000-PROFESSIONAL FEES AND SERVICES,DIRECTLY COMMISSIONED NURSING SERVICES,Supplies & Services,Revenue
Walsall Council,http://opendatacommunities.org/id/metropolitan-district-council/walsall,WC80-7,31/05/2017,Adult Social Care,5 CARE SERVICES LTD,17/05/2017,"8,181.93",73372-DOMICILIARY CARE,OP COMMISSIONING,Third Party Payments,Revenue
Walsall Council,http://opendatacommunities.org/id/metropolitan-district-council/walsall,WC80-8,31/05/2017,Adult Social Care,5 CARE SERVICES LTD,24/05/2017,"45,873.62",73372-DOMICILIARY CARE,OP COMMISSIONING,Third Party Payments,Revenue
Walsall Council,http://opendatacommunities.org/id/metropolitan-district-council/walsall,WC80-9,31/05/2017,Economy & Environment,A ASHTON,25/05/2017,387.00,60500-GENERAL MATERIALS,COUNTRYSIDE MANAGEMENT-OTHER,Supplies & Services,Revenue
Walsall Council,http://opendatacommunities.org/id/metropolitan-district-council/walsall,WC80-10,31/05/2017,Economy & Environment,A D T FIRE AND SECURITY PLC,08/05/2017,255.00,60008-MAINTENANCE-FURNITURE & EQUIPMENT,LOCAL HISTORY CENTRE,Supplies & Services,Revenue
Walsall Council,http://opendatacommunities.org/id/metropolitan-district-council/walsall,WC80-11,31/05/2017,Economy & Environment,A D T FIRE AND SECURITY PLC,26/05/2017,474.35,"40000-REPAIRS,ALTERATIONS & MAINTENANCE-PREM",ARBORETUM,Premises,Revenue
Walsall Council,http://opendatacommunities.org/id/metropolitan-district-council/walsall,WC80-12,31/05/2017,Economy & Environment,A D T FIRE AND SECURITY PLC,16/05/2017,521.68,60500-GENERAL MATERIALS,ARBORETUM VISITOR CENTRE,Supplies & Services,Revenue
Walsall Council,http://opendatacommunities.org/id/metropolitan-district-council/walsall,WC80-13,31/05/2017,Economy & Environment,A D T FIRE AND SECURITY PLC,16/05/2017,602.35,60500-GENERAL MATERIALS,ARBORETUM VISITOR CENTRE,Supplies & Services,Revenue
Walsall Council,http://opendatacommunities.org/id/metropolitan-district-council/walsall,WC80-14,31/05/2017,Economy & Environment,A D T FIRE AND SECURITY PLC,26/05/2017,"1,262.00","40000-REPAIRS,ALTERATIONS & MAINTENANCE-PREM",ARBORETUM,Premises,Revenue
Walsall Council,http://opendatacommunities.org/id/metropolitan-district-council/walsall,WC80-15,31/05/2017,Adult Social Care,A F BLAKEMORE & SON LTD,16/05/2017,227.10,61016-FOOD AND BEVERAGES-PROVISIONS,GOSCOTE,Supplies & Services,Revenue
Walsall Council,http://opendatacommunities.org/id/metropolitan-district-council/walsall,WC80-16,31/05/2017,Economy & Environment,A F BLAKEMORE & SON LTD,16/05/2017,229.10,61008-CONFECTIONERY/SNACKS-PROVISIONS,DARLASTON LEISURE CENTRE,Supplies & Services,Revenue
Walsall Council,http://opendatacommunities.org/id/metropolitan-district-council/walsall,WC80-17,31/05/2017,Economy & Environment,A F BLAKEMORE & SON LTD,01/05/2017,253.87,61018-DRINKS-PROVISIONS,DARLASTON LEISURE CENTRE,Supplies & Services,Revenue
Walsall Council,http://opendatacommunities.org/id/metropolitan-district-council/walsall,WC80-18,31/05/2017,Economy & Environment,A F BLAKEMORE & SON LTD,11/05/2017,256.57,61006-FRUIT & VEGETABLES OTHER-PROVISIONS,OAK PARK,Supplies & Services,Revenue
Walsall Council,http://opendatacommunities.org/id/metropolitan-district-council/walsall,WC80-19,31/05/2017,Change and Governance,A F BLAKEMORE & SON LTD,01/05/2017,317.23,61016-FOOD AND BEVERAGES-PROVISIONS,WALSALL TOWN HALL,Supplies & Services,Revenue
Walsall Council,http://opendatacommunities.org/id/metropolitan-district-council/walsall,WC80-20,31/05/2017,Economy & Environment,A F BLAKEMORE & SON LTD,16/05/2017,368.50,61001-FROZEN FOODS-PROVISIONS,BLOXWICH LEISURE CENTRE,Supplies & Services,Revenue
Walsall Council,http://opendatacommunities.org/id/metropolitan-district-council/walsall,WC80-21,31/05/2017,Economy & Environment,A F BLAKEMORE & SON LTD,22/05/2017,436.81,61006-FRUIT & VEGETABLES OTHER-PROVISIONS,OAK PARK,Supplies & Services,Revenue
Walsall Council,http://opendatacommunities.org/id/metropolitan-district-council/walsall,WC80-22,31/05/2017,Change and Governance,A F BLAKEMORE & SON LTD,18/05/2017,545.61,61016-FOOD AND BEVERAGES-PROVISIONS,DARLASTON TOWN HALL,Supplies & Services,Revenue
Walsall Council,http://opendatacommunities.org/id/metropolitan-district-council/walsall,WC80-23,31/05/2017,Adult Social Care,A F BLAKEMORE & SON LTD,12/05/2017,579.20,61016-FOOD AND BEVERAGES-PROVISIONS,GOSCOTE,Supplies & Services,Revenue
Walsall Council,http://opendatacommunities.org/id/metropolitan-district-council/walsall,WC80-24,31/05/2017,Economy & Environment,A F BLAKEMORE & SON LTD,22/05/2017,635.32,61008-CONFECTIONERY/SNACKS-PROVISIONS,OAK PARK,Supplies & Services,Revenue
Walsall Council,http://opendatacommunities.org/id/metropolitan-district-council/walsall,WC80-25,31/05/2017,Adult Social Care,A F BLAKEMORE & SON LTD,10/05/2017,"1,029.58",61016-FOOD AND BEVERAGES-PROVISIONS,REABLEMENT TEAM - HOLLY BANK,Supplies & Services,Revenue
Walsall Council,http://opendatacommunities.org/id/metropolitan-district-council/walsall,WC80-26,31/05/2017,Childrens,A1 EXPRESS TAXIS,01/05/2017,374.00,52001-HIRE OF VEHICLES,CHILDRENS TAXI BUDGET,Transport,Revenue
Walsall Council,http://opendatacommunities.org/id/metropolitan-district-council/walsall,WC80-27,31/05/2017,Childrens,A1 EXPRESS TAXIS,01/05/2017,459.00,52001-HIRE OF VEHICLES,CHILDRENS TAXI BUDGET,Transport,Revenue
Walsall Council,http://opendatacommunities.org/id/metropolitan-district-council/walsall,WC80-28,31/05/2017,Childrens,A1 EXPRESS TAXIS,01/05/2017,738.00,52001-HIRE OF VEHICLES,CHILDRENS TAXI BUDGET,Transport,Revenue
Walsall Council,http://opendatacommunities.org/id/metropolitan-district-council/walsall,WC80-29,31/05/2017,Childrens,AA GLOBAL LANGUAGE SERVICES LIMITED,26/05/2017,239.25,"62521-INTERPRETATION,TRANSLATION & HUMAN AIDS TO TRANSCRIPTION",INITIAL RESPONSE SERVICE,Supplies & Services,Revenue
Walsall Council,http://opendatacommunities.org/id/metropolitan-district-council/walsall,WC80-30,31/05/2017,Childrens,REDACTED,09/05/2017,378.00,76422-DIRECT PAYMENTS TO SOCIAL SERVICES CLIENTS,FAMILY SUPPORT - DIRECT PAYMENTS,Transfer Payments,Revenue
Walsall Council,http://opendatacommunities.org/id/metropolitan-district-council/walsall,WC80-31,31/05/2017,Adult Social Care,ABBEY COURT NURSING & RESIDEN,16/05/2017,303.69,73373-RESIDENTIAL & NURSING CARE PLACEMENTS,MH COMMISSIONING,Third Party Payments,Revenue
Walsall Council,http://opendatacommunities.org/id/metropolitan-district-council/walsall,WC80-32,31/05/2017,Adult Social Care,ABBEY COURT NURSING & RESIDEN,16/05/2017,"1,786.40",73373-RESIDENTIAL & NURSING CARE PLACEMENTS,OP COMMISSIONING,Third Party Payments,Revenue
Walsall Council,http://opendatacommunities.org/id/metropolitan-district-council/walsall,WC80-33,31/05/2017,Adult Social Care,ABBEY COURT NURSING & RESIDEN,16/05/2017,"1,786.40",73373-RESIDENTIAL & NURSING CARE PLACEMENTS,OP COMMISSIONING,Third Party Payments,Revenue
Walsall Council,http://opendatacommunities.org/id/metropolitan-district-council/walsall,WC80-34,31/05/2017,Adult Social Care,ABBEY COURT NURSING & RESIDEN,16/05/2017,"1,822.16",73373-RESIDENTIAL & NURSING CARE PLACEMENTS,MH COMMISSIONING,Third Party Payments,Revenue
Walsall Council,http://opendatacommunities.org/id/metropolitan-district-council/walsall,WC80-35,31/05/2017,Adult Social Care,ABBEY COURT NURSING & RESIDEN,16/05/2017,"1,878.91",73373-RESIDENTIAL & NURSING CARE PLACEMENTS,OP COMMISSIONING,Third Party Payments,Revenue
Walsall Council,http://opendatacommunities.org/id/metropolitan-district-council/walsall,WC80-36,31/05/2017,Adult Social Care,ABBEY COURT NURSING & RESIDEN,16/05/2017,"1,882.90",73373-RESIDENTIAL & NURSING CARE PLACEMENTS,MH COMMISSIONING,Third Party Payments,Revenue
Walsall Council,http://opendatacommunities.org/id/metropolitan-district-council/walsall,WC80-37,31/05/2017,Adult Social Care,ABBEY COURT NURSING & RESIDEN,16/05/2017,"2,144.62",73373-RESIDENTIAL & NURSING CARE PLACEMENTS,OP COMMISSIONING,Third Party Payments,Revenue
Walsall Council,http://opendatacommunities.org/id/metropolitan-district-council/walsall,WC80-38,31/05/2017,Adult Social Care,ABBEY HEALTHCARE HOMES LTD,10/05/2017,"1,699.16",73373-RESIDENTIAL & NURSING CARE PLACEMENTS,PD COMMISSIONING,Third Party Payments,Revenue
Walsall Council,http://opendatacommunities.org/id/metropolitan-district-council/walsall,WC80-39,31/05/2017,Adult Social Care,ABBEY HEALTHCARE HOMES LTD,10/05/2017,"2,294.08",73373-RESIDENTIAL & NURSING CARE PLACEMENTS,PD COMMISSIONING,Third Party Payments,Revenue
Walsall Council,http://opendatacommunities.org/id/metropolitan-district-council/walsall,WC80-40,31/05/2017,Childrens,ABC DAY NURSERY (WILLENHALL) LIMITED,19/05/2017,275.00,63120-CRECHE FACILITIES-SERVICES-FEES,SAFEGUARDING & FAMILY SUPPORT,Supplies & Services,Revenue
Walsall Council,http://opendatacommunities.org/id/metropolitan-district-council/walsall,WC80-41,31/05/2017,Childrens,ABC DAY NURSERY (WILLENHALL) LIMITED,19/05/2017,325.00,63120-CRECHE FACILITIES-SERVICES-FEES,SAFEGUARDING & FAMILY SUPPORT,Supplies & Services,Revenue
Walsall Council,http://opendatacommunities.org/id/metropolitan-district-council/walsall,WC80-42,31/05/2017,Childrens,ABC DAY NURSERY (WILLENHALL) LIMITED,08/05/2017,880.20,66505-OTHER-GRANTS TO OTHER ORGS,EARLY YEARS - 2 YR OLDS,Third Party Payments,Revenue
Walsall Council,http://opendatacommunities.org/id/metropolitan-district-council/walsall,WC80-43,31/05/2017,Childrens,ABC FOSTERING,22/05/2017,"2,635.20",74037-INDEPENDENT FOSTER CARE-OTH AGENCY PROVISION,EXTERNAL FOSTER CARE PROVISION,Third Party Payments,Revenue
Walsall Council,http://opendatacommunities.org/id/metropolitan-district-council/walsall,WC80-44,31/05/2017,Childrens,ABC FOSTERING,22/05/2017,"2,635.20",74037-INDEPENDENT FOSTER CARE-OTH AGENCY PROVISION,EXTERNAL FOSTER CARE PROVISION,Third Party Payments,Revenue
Walsall Council,http://opendatacommunities.org/id/metropolitan-district-council/walsall,WC80-45,31/05/2017,Childrens,ABC FOSTERING,22/05/2017,"2,880.00",74037-INDEPENDENT FOSTER CARE-OTH AGENCY PROVISION,EXTERNAL FOSTER CARE PROVISION,Third Party Payments,Revenue
Walsall Council,http://opendatacommunities.org/id/metropolitan-district-council/walsall,WC80-46,31/05/2017,Childrens,ABC FOSTERING,09/05/2017,"2,986.56",74037-INDEPENDENT FOSTER CARE-OTH AGENCY PROVISION,EXTERNAL FOSTER CARE PROVISION,Third Party Payments,Revenue
Walsall Council,http://opendatacommunities.org/id/metropolitan-district-council/walsall,WC80-47,31/05/2017,Childrens,ABC FOSTERING,22/05/2017,"3,042.00",74037-INDEPENDENT FOSTER CARE-OTH AGENCY PROVISION,EXTERNAL FOSTER CARE PROVISION,Third Party Payments,Revenue
Walsall Council,http://opendatacommunities.org/id/metropolitan-district-council/walsall,WC80-48,31/05/2017,Childrens,ABC FOSTERING,22/05/2017,"3,182.40",74037-INDEPENDENT FOSTER CARE-OTH AGENCY PROVISION,EXTERNAL FOSTER CARE PROVISION,Third Party Payments,Revenue
Walsall Council,http://opendatacommunities.org/id/metropolitan-district-council/walsall,WC80-49,31/05/2017,Childrens,ABC FOSTERING,08/05/2017,"3,367.93",74037-INDEPENDENT FOSTER CARE-OTH AGENCY PROVISION,EXTERNAL FOSTER CARE PROVISION,Third Party Payments,Revenue
Walsall Council,http://opendatacommunities.org/id/metropolitan-district-council/walsall,WC80-50,31/05/2017,Adult Social Care,REDACTED,09/05/2017,"1,557.68",76422-DIRECT PAYMENTS TO SOCIAL SERVICES CLIENTS,LD COMMISSIONING,Transfer Payments,Revenue
Walsall Council,http://opendatacommunities.org/id/metropolitan-district-council/walsall,WC80-51,31/05/2017,Change and Governance,ABEL ALARM CO LTD,26/05/2017,368.00,01006-SITE WORKS MAIN CONTRACTORS,CFR 771 MINOR WORKS AIDS & ADAPTATIONS,Capital,Capital
Walsall Council,http://opendatacommunities.org/id/metropolitan-district-council/walsall,WC80-52,31/05/2017,Adult Social Care,REDACTED,09/05/2017,"2,357.99",76422-DIRECT PAYMENTS TO SOCIAL SERVICES CLIENTS,LD COMMISSIONING,Transfer Payments,Revenue
Walsall Council,http://opendatacommunities.org/id/metropolitan-district-council/walsall,WC80-53,31/05/2017,Adult Social Care,ACCORD HOUSING ASSOCIATION LTD#135,17/05/2017,267.12,73374-SUPPORTED & OTHER ACCOMMODATION,MH COMMISSIONING,Third Party Payments,Revenue
Walsall Council,http://opendatacommunities.org/id/metropolitan-district-council/walsall,WC80-54,31/05/2017,Adult Social Care,ACCORD HOUSING ASSOCIATION LTD#135,17/05/2017,296.80,73374-SUPPORTED & OTHER ACCOMMODATION,MH COMMISSIONING,Third Party Payments,Revenue
Walsall Council,http://opendatacommunities.org/id/metropolitan-district-council/walsall,WC80-55,31/05/2017,Adult Social Care,ACCORD HOUSING ASSOCIATION LTD#135,10/05/2017,340.46,73373-RESIDENTIAL & NURSING CARE PLACEMENTS,LD COMMISSIONING,Third Party Payments,Revenue
Walsall Council,http://opendatacommunities.org/id/metropolitan-district-council/walsall,WC80-56,31/05/2017,Childrens,ACCORD HOUSING ASSOCIATION LTD#135,10/05/2017,367.00,43000-RENTS,SAFEGUARDING & FAMILY SUPPORT,Premises,Revenue
Walsall Council,http://opendatacommunities.org/id/metropolitan-district-council/walsall,WC80-57,31/05/2017,Adult Social Care,ACCORD HOUSING ASSOCIATION LTD#135,24/05/2017,578.25,73374-SUPPORTED & OTHER ACCOMMODATION,LD COMMISSIONING,Third Party Payments,Revenue
Walsall Council,http://opendatacommunities.org/id/metropolitan-district-council/walsall,WC80-58,31/05/2017,Adult Social Care,ACCORD HOUSING ASSOCIATION LTD#135,30/05/2017,624.34,73374-SUPPORTED & OTHER ACCOMMODATION,OP COMMISSIONING,Third Party Payments,Revenue
Walsall Council,http://opendatacommunities.org/id/metropolitan-district-council/walsall,WC80-59,31/05/2017,Adult Social Care,ACCORD HOUSING ASSOCIATION LTD#135,17/05/2017,634.41,73374-SUPPORTED & OTHER ACCOMMODATION,MH COMMISSIONING,Third Party Payments,Revenue
Walsall Council,http://opendatacommunities.org/id/metropolitan-district-council/walsall,WC80-60,31/05/2017,Adult Social Care,ACCORD HOUSING ASSOCIATION LTD#135,17/05/2017,642.26,73374-SUPPORTED & OTHER ACCOMMODATION,MH COMMISSIONING,Third Party Payments,Revenue
Walsall Council,http://opendatacommunities.org/id/metropolitan-district-council/walsall,WC80-61,31/05/2017,Childrens,ACCORD HOUSING ASSOCIATION LTD#135,10/05/2017,741.44,43000-RENTS,SAFEGUARDING & FAMILY SUPPORT,Premises,Revenue
Walsall Council,http://opendatacommunities.org/id/metropolitan-district-council/walsall,WC80-62,31/05/2017,Adult Social Care,ACCORD HOUSING ASSOCIATION LTD#135,17/05/2017,831.14,73374-SUPPORTED & OTHER ACCOMMODATION,MH COMMISSIONING,Third Party Payments,Revenue
Walsall Council,http://opendatacommunities.org/id/metropolitan-district-council/walsall,WC80-63,31/05/2017,Adult Social Care,ACCORD HOUSING ASSOCIATION LTD#135,17/05/2017,"1,067.29",73374-SUPPORTED & OTHER ACCOMMODATION,MH COMMISSIONING,Third Party Payments,Revenue
Walsall Council,http://opendatacommunities.org/id/metropolitan-district-council/walsall,WC80-64,31/05/2017,Adult Social Care,ACCORD HOUSING ASSOCIATION LTD#135,17/05/2017,"1,185.35",73374-SUPPORTED & OTHER ACCOMMODATION,MH COMMISSIONING,Third Party Payments,Revenue
Walsall Council,http://opendatacommunities.org/id/metropolitan-district-council/walsall,WC80-65,31/05/2017,Adult Social Care,ACCORD HOUSING ASSOCIATION LTD#135,17/05/2017,"1,412.01",73374-SUPPORTED & OTHER ACCOMMODATION,MH COMMISSIONING,Third Party Payments,Revenue
Walsall Council,http://opendatacommunities.org/id/metropolitan-district-council/walsall,WC80-66,31/05/2017,Adult Social Care,ACCORD HOUSING ASSOCIATION LTD#135,17/05/2017,"1,582.02",73374-SUPPORTED & OTHER ACCOMMODATION,MH COMMISSIONING,Third Party Payments,Revenue
Walsall Council,http://opendatacommunities.org/id/metropolitan-district-council/walsall,WC80-67,31/05/2017,Adult Social Care,ACCORD HOUSING ASSOCIATION LTD#135,10/05/2017,"2,861.64",73373-RESIDENTIAL & NURSING CARE PLACEMENTS,OP COMMISSIONING,Third Party Payments,Revenue
Walsall Council,http://opendatacommunities.org/id/metropolitan-district-council/walsall,WC80-68,31/05/2017,Adult Social Care,ACCORD HOUSING ASSOCIATION LTD#135,10/05/2017,"3,972.00",73373-RESIDENTIAL & NURSING CARE PLACEMENTS,LD COMMISSIONING,Third Party Payments,Revenue
Walsall Council,http://opendatacommunities.org/id/metropolitan-district-council/walsall,WC80-69,31/05/2017,Adult Social Care,ACCORD HOUSING ASSOCIATION LTD#135,10/05/2017,"4,425.94",73373-RESIDENTIAL & NURSING CARE PLACEMENTS,LD COMMISSIONING,Third Party Payments,Revenue
Walsall Council,http://opendatacommunities.org/id/metropolitan-district-council/walsall,WC80-70,31/05/2017,Adult Social Care,ACCORD HOUSING ASSOCIATION LTD#135,16/05/2017,"4,591.84",73373-RESIDENTIAL & NURSING CARE PLACEMENTS,LD COMMISSIONING,Third Party Payments,Revenue
Walsall Council,http://opendatacommunities.org/id/metropolitan-district-council/walsall,WC80-71,31/05/2017,Adult Social Care,ACCORD HOUSING ASSOCIATION LTD#135,16/05/2017,"4,591.84",73373-RESIDENTIAL & NURSING CARE PLACEMENTS,LD COMMISSIONING,Third Party Payments,Revenue
Walsall Council,http://opendatacommunities.org/id/metropolitan-district-council/walsall,WC80-72,31/05/2017,Adult Social Care,ACCORD HOUSING ASSOCIATION LTD#135,16/05/2017,"4,591.84",73373-RESIDENTIAL & NURSING CARE PLACEMENTS,LD COMMISSIONING,Third Party Payments,Revenue
Walsall Council,http://opendatacommunities.org/id/metropolitan-district-council/walsall,WC80-73,31/05/2017,Adult Social Care,ACCORD HOUSING ASSOCIATION LTD#135,16/05/2017,"4,591.84",73373-RESIDENTIAL & NURSING CARE PLACEMENTS,LD COMMISSIONING,Third Party Payments,Revenue
Walsall Council,http://opendatacommunities.org/id/metropolitan-district-council/walsall,WC80-74,31/05/2017,Adult Social Care,ACCORD HOUSING ASSOCIATION LTD#135,10/05/2017,"4,766.40",73373-RESIDENTIAL & NURSING CARE PLACEMENTS,LD COMMISSIONING,Third Party Payments,Revenue
Walsall Council,http://opendatacommunities.org/id/metropolitan-district-council/walsall,WC80-75,31/05/2017,Adult Social Care,ACCORD HOUSING ASSOCIATION LTD#135,16/05/2017,"6,408.73",73373-RESIDENTIAL & NURSING CARE PLACEMENTS,LD COMMISSIONING,Third Party Payments,Revenue
Walsall Council,http://opendatacommunities.org/id/metropolitan-district-council/walsall,WC80-76,31/05/2017,Adult Social Care,ACCORD HOUSING ASSOCIATION LTD#135,16/05/2017,"6,408.73",73373-RESIDENTIAL & NURSING CARE PLACEMENTS,LD COMMISSIONING,Third Party Payments,Revenue
Walsall Council,http://opendatacommunities.org/id/metropolitan-district-council/walsall,WC80-77,31/05/2017,Adult Social Care,ACCORD HOUSING ASSOCIATION LTD#135,10/05/2017,"8,284.46",73373-RESIDENTIAL & NURSING CARE PLACEMENTS,LD COMMISSIONING,Third Party Payments,Revenue
Walsall Council,http://opendatacommunities.org/id/metropolitan-district-council/walsall,WC80-78,31/05/2017,Adult Social Care,ACCORD HOUSING ASSOCIATION LTD#135,24/05/2017,"29,330.75",73365-BLOCK GROSS-SUPPORTING PEOPLE,OLDER PEOPLES CONTRACTS/SLA,Third Party Payments,Revenue
Walsall Council,http://opendatacommunities.org/id/metropolitan-district-council/walsall,WC80-79,31/05/2017,Adult Social Care,ACCORD HOUSING ASSOCIATION LTD#135,24/05/2017,"30,005.94",73372-DOMICILIARY CARE,OP COMMISSIONING,Third Party Payments,Revenue
Walsall Council,http://opendatacommunities.org/id/metropolitan-district-council/walsall,WC80-80,31/05/2017,Adult Social Care,ACE CARE AGENCY,10/05/2017,371.50,73372-DOMICILIARY CARE,OP COMMISSIONING,Third Party Payments,Revenue
Walsall Council,http://opendatacommunities.org/id/metropolitan-district-council/walsall,WC80-81,31/05/2017,Adult Social Care,ACE CARE AGENCY,10/05/2017,566.58,73372-DOMICILIARY CARE,MH COMMISSIONING,Third Party Payments,Revenue
Walsall Council,http://opendatacommunities.org/id/metropolitan-district-council/walsall,WC80-82,31/05/2017,Adult Social Care,ACE CARE AGENCY,17/05/2017,572.00,73372-DOMICILIARY CARE,OP COMMISSIONING,Third Party Payments,Revenue
Walsall Council,http://opendatacommunities.org/id/metropolitan-district-council/walsall,WC80-83,31/05/2017,Adult Social Care,ACE CARE AGENCY,17/05/2017,586.99,73374-SUPPORTED & OTHER ACCOMMODATION,OP COMMISSIONING,Third Party Payments,Revenue
Walsall Council,http://opendatacommunities.org/id/metropolitan-district-council/walsall,WC80-84,31/05/2017,Childrens,ACE RADIO CARS,15/05/2017,878.58,52000-WITH DRIVER-HIRE OF VEHICLES,SCHOOL TRANSPORT,Transport,Revenue
Walsall Council,http://opendatacommunities.org/id/metropolitan-district-council/walsall,WC80-85,31/05/2017,Adult Social Care,ACEPAY LTD (COTTAGE NUR HOME),25/05/2017,"-1,381.13",73373-RESIDENTIAL & NURSING CARE PLACEMENTS,OP COMMISSIONING,Third Party Payments,Revenue
Walsall Council,http://opendatacommunities.org/id/metropolitan-district-council/walsall,WC80-86,31/05/2017,Adult Social Care,ACEPAY LTD (COTTAGE NUR HOME),25/05/2017,"2,270.00",73373-RESIDENTIAL & NURSING CARE PLACEMENTS,OP COMMISSIONING,Third Party Payments,Revenue
Walsall Council,http://opendatacommunities.org/id/metropolitan-district-council/walsall,WC80-87,31/05/2017,Adult Social Care,ACEPAY LTD (COTTAGE NUR HOME),25/05/2017,"2,270.00",73373-RESIDENTIAL & NURSING CARE PLACEMENTS,OP COMMISSIONING,Third Party Payments,Revenue
Walsall Council,http://opendatacommunities.org/id/metropolitan-district-council/walsall,WC80-88,31/05/2017,Adult Social Care,ACEPAY LTD (COTTAGE NUR HOME),25/05/2017,"2,270.00",73373-RESIDENTIAL & NURSING CARE PLACEMENTS,OP COMMISSIONING,Third Party Payments,Revenue
Walsall Council,http://opendatacommunities.org/id/metropolitan-district-council/walsall,WC80-89,31/05/2017,Adult Social Care,ACEPAY LTD (COTTAGE NUR HOME),25/05/2017,"2,316.00",73373-RESIDENTIAL & NURSING CARE PLACEMENTS,OP COMMISSIONING,Third Party Payments,Revenue
Walsall Council,http://opendatacommunities.org/id/metropolitan-district-council/walsall,WC80-90,31/05/2017,Adult Social Care,ACEPAY LTD (COTTAGE NUR HOME),25/05/2017,"2,316.00",73373-RESIDENTIAL & NURSING CARE PLACEMENTS,OP COMMISSIONING,Third Party Payments,Revenue
Walsall Council,http://opendatacommunities.org/id/metropolitan-district-council/walsall,WC80-91,31/05/2017,Adult Social Care,ACORN CARE LTD,10/05/2017,"14,684.70",73373-RESIDENTIAL & NURSING CARE PLACEMENTS,LD COMMISSIONING,Third Party Payments,Revenue
Walsall Council,http://opendatacommunities.org/id/metropolitan-district-council/walsall,WC80-92,31/05/2017,Adult Social Care,ACORN CARE LTD,16/05/2017,"15,174.19",73373-RESIDENTIAL & NURSING CARE PLACEMENTS,LD COMMISSIONING,Third Party Payments,Revenue
Walsall Council,http://opendatacommunities.org/id/metropolitan-district-council/walsall,WC80-93,31/05/2017,Change and Governance,ACORN CONSTRUCTION,17/05/2017,"1,640.00",01046-OTHER GRANTS,CFR 908 FUEL POVERTY FUND,Capital,Capital
Walsall Council,http://opendatacommunities.org/id/metropolitan-district-council/walsall,WC80-94,31/05/2017,Adult Social Care,ACORN REST HOME,10/05/2017,"1,620.00",73373-RESIDENTIAL & NURSING CARE PLACEMENTS,OP COMMISSIONING,Third Party Payments,Revenue
Walsall Council,http://opendatacommunities.org/id/metropolitan-district-council/walsall,WC80-95,31/05/2017,Economy & Environment,ACPAS LIMITED,17/05/2017,218.22,63000-PROFESSIONAL FEES AND SERVICES,YEI ESF FUNDING,Supplies & Services,Revenue
Walsall Council,http://opendatacommunities.org/id/metropolitan-district-council/walsall,WC80-96,31/05/2017,Economy & Environment,ACPAS LIMITED,17/05/2017,218.23,63000-PROFESSIONAL FEES AND SERVICES,YEI (IMPACT) PROGRAMME,Supplies & Services,Revenue
Walsall Council,http://opendatacommunities.org/id/metropolitan-district-council/walsall,WC80-97,31/05/2017,Economy & Environment,ACTION DIGITAL MEDIA LTD,16/05/2017,223.00,60500-GENERAL MATERIALS,NAG - TEMPORARY EXHIBITIONS,Supplies & Services,Revenue
Walsall Council,http://opendatacommunities.org/id/metropolitan-district-council/walsall,WC80-98,31/05/2017,Adult Social Care,ACTON BANKS LTD,08/05/2017,515.70,34305-AGENCY STAFF-EMPLOYEES,GOSCOTE,Employees,Revenue
Walsall Council,http://opendatacommunities.org/id/metropolitan-district-council/walsall,WC80-99,31/05/2017,Adult Social Care,ACTON BANKS LTD,08/05/2017,590.19,34305-AGENCY STAFF-EMPLOYEES,GOSCOTE,Employees,Revenue
Walsall Council,http://opendatacommunities.org/id/metropolitan-district-council/walsall,WC80-100,31/05/2017,Adult Social Care,ACTON BANKS LTD,08/05/2017,836.58,34305-AGENCY STAFF-EMPLOYEES,GOSCOTE,Employees,Revenue
Walsall Council,http://opendatacommunities.org/id/metropolitan-district-council/walsall,WC80-101,31/05/2017,Adult Social Care,ACTON BANKS LTD,11/05/2017,848.04,34305-AGENCY STAFF-EMPLOYEES,GOSCOTE,Employees,Revenue
Walsall Council,http://opendatacommunities.org/id/metropolitan-district-council/walsall,WC80-102,31/05/2017,Adult Social Care,ACTON BANKS LTD,17/05/2017,853.77,34305-AGENCY STAFF-EMPLOYEES,GOSCOTE,Employees,Revenue
Walsall Council,http://opendatacommunities.org/id/metropolitan-district-council/walsall,WC80-103,31/05/2017,Adult Social Care,ACTON BANKS LTD,11/05/2017,"1,871.43",73025-PROFESSIONAL SERVICES-PRIV CONTRACTOR & OTHER AGENCIES,REABLEMENT TEAM - HOLLY BANK,Third Party Payments,Revenue
Walsall Council,http://opendatacommunities.org/id/metropolitan-district-council/walsall,WC80-104,31/05/2017,Adult Social Care,ACTON BANKS LTD,11/05/2017,"2,419.41",73025-PROFESSIONAL SERVICES-PRIV CONTRACTOR & OTHER AGENCIES,REABLEMENT TEAM - HOLLY BANK,Third Party Payments,Revenue
Walsall Council,http://opendatacommunities.org/id/metropolitan-district-council/walsall,WC80-105,31/05/2017,Adult Social Care,ACTON BANKS LTD,03/05/2017,"2,881.47",34305-AGENCY STAFF-EMPLOYEES,REABLEMENT TEAM - HOLLY BANK,Employees,Revenue
Walsall Council,http://opendatacommunities.org/id/metropolitan-district-council/walsall,WC80-106,31/05/2017,Adult Social Care,REDACTED,09/05/2017,486.00,76422-DIRECT PAYMENTS TO SOCIAL SERVICES CLIENTS,LD COMMISSIONING,Transfer Payments,Revenue
Walsall Council,http://opendatacommunities.org/id/metropolitan-district-council/walsall,WC80-107,31/05/2017,Economy & Environment,ADEPT,01/05/2017,"1,200.00",64500-PUBLICATIONS/ORGANISATIONS-SUBSCRIPTIONS,REGENERATION MANAGEMENT,Supplies & Services,Revenue
Walsall Council,http://opendatacommunities.org/id/metropolitan-district-council/walsall,WC80-108,31/05/2017,Adult Social Care,REDACTED,09/05/2017,964.00,76422-DIRECT PAYMENTS TO SOCIAL SERVICES CLIENTS,OP COMMISSIONING,Transfer Payments,Revenue
Walsall Council,http://opendatacommunities.org/id/metropolitan-district-council/walsall,WC80-109,31/05/2017,Childrens,REDACTED,08/05/2017,333.12,74510-RESIDENTS ORDERS,ADOPTION ALLOWANCES,Third Party Payments,Revenue
Walsall Council,http://opendatacommunities.org/id/metropolitan-district-council/walsall,WC80-110,31/05/2017,Childrens,REDACTED,08/05/2017,361.12,74510-RESIDENTS ORDERS,ADOPTION ALLOWANCES,Third Party Payments,Revenue
Walsall Council,http://opendatacommunities.org/id/metropolitan-district-council/walsall,WC80-111,31/05/2017,Adult Social Care,ADVANCE HEALTH CARE (UK) LTD,01/05/2017,"-1,204.64",73372-DOMICILIARY CARE,OP COMMISSIONING,Third Party Payments,Revenue
Walsall Council,http://opendatacommunities.org/id/metropolitan-district-council/walsall,WC80-112,31/05/2017,Adult Social Care,ADVANCE HEALTH CARE (UK) LTD,10/05/2017,303.92,73025-PROFESSIONAL SERVICES-PRIV CONTRACTOR & OTHER AGENCIES,ACM MANAGEMENT TEAM,Third Party Payments,Revenue
Walsall Council,http://opendatacommunities.org/id/metropolitan-district-council/walsall,WC80-113,31/05/2017,Adult Social Care,ADVANCE HEALTH CARE (UK) LTD,03/05/2017,"1,204.64",73019-PSE'S-PRIV CONTRACTOR FEES,TRANSITIONAL CARE SUPPORT TEAM,Third Party Payments,Revenue
Walsall Council,http://opendatacommunities.org/id/metropolitan-district-council/walsall,WC80-114,31/05/2017,Adult Social Care,ADVANCE HEALTH CARE (UK) LTD,08/05/2017,"1,204.64",73019-PSE'S-PRIV CONTRACTOR FEES,TRANSITIONAL CARE SUPPORT TEAM,Third Party Payments,Revenue
Walsall Council,http://opendatacommunities.org/id/metropolitan-district-council/walsall,WC80-115,31/05/2017,Adult Social Care,ADVANCE HEALTH CARE (UK) LTD,24/05/2017,"1,204.64",73019-PSE'S-PRIV CONTRACTOR FEES,COMMUNITY INTERMEDIATE CARE,Third Party Payments,Revenue
Walsall Council,http://opendatacommunities.org/id/metropolitan-district-council/walsall,WC80-116,31/05/2017,Adult Social Care,ADVANCE HEALTH CARE (UK) LTD,24/05/2017,"1,204.64",73019-PSE'S-PRIV CONTRACTOR FEES,COMMUNITY INTERMEDIATE CARE,Third Party Payments,Revenue
Walsall Council,http://opendatacommunities.org/id/metropolitan-district-council/walsall,WC80-117,31/05/2017,Adult Social Care,ADVANCE HEALTH CARE (UK) LTD,10/05/2017,"1,572.00",73025-PROFESSIONAL SERVICES-PRIV CONTRACTOR & OTHER AGENCIES,ACM MANAGEMENT TEAM,Third Party Payments,Revenue
Walsall Council,http://opendatacommunities.org/id/metropolitan-district-council/walsall,WC80-118,31/05/2017,Adult Social Care,ADVANCE HEALTH CARE (UK) LTD,05/05/2017,"3,749.88",73025-PROFESSIONAL SERVICES-PRIV CONTRACTOR & OTHER AGENCIES,COMMUNITY INTERMEDIATE CARE,Third Party Payments,Revenue
Walsall Council,http://opendatacommunities.org/id/metropolitan-district-council/walsall,WC80-119,31/05/2017,Adult Social Care,ADVANCE HEALTH CARE (UK) LTD,03/05/2017,"4,381.95",73025-PROFESSIONAL SERVICES-PRIV CONTRACTOR & OTHER AGENCIES,COMMUNITY INTERMEDIATE CARE,Third Party Payments,Revenue
Walsall Council,http://opendatacommunities.org/id/metropolitan-district-council/walsall,WC80-120,31/05/2017,Adult Social Care,ADVANCE HEALTH CARE (UK) LTD,08/05/2017,"4,627.58",73025-PROFESSIONAL SERVICES-PRIV CONTRACTOR & OTHER AGENCIES,COMMUNITY INTERMEDIATE CARE,Third Party Payments,Revenue
Walsall Council,http://opendatacommunities.org/id/metropolitan-district-council/walsall,WC80-121,31/05/2017,Adult Social Care,ADVANCE HEALTH CARE (UK) LTD,05/05/2017,"5,354.63",73025-PROFESSIONAL SERVICES-PRIV CONTRACTOR & OTHER AGENCIES,COMMUNITY INTERMEDIATE CARE,Third Party Payments,Revenue
Walsall Council,http://opendatacommunities.org/id/metropolitan-district-council/walsall,WC80-122,31/05/2017,Adult Social Care,ADVANCE HEALTH CARE (UK) LTD,25/05/2017,"79,746.15",73372-DOMICILIARY CARE,OP COMMISSIONING,Third Party Payments,Revenue
Walsall Council,http://opendatacommunities.org/id/metropolitan-district-council/walsall,WC80-123,31/05/2017,Change and Governance,ADVANCED DIGITAL IMAGING,10/05/2017,397.00,60500-GENERAL MATERIALS,PRINTING SERVICES,Supplies & Services,Revenue
Walsall Council,http://opendatacommunities.org/id/metropolitan-district-council/walsall,WC80-124,31/05/2017,Adult Social Care,ADVOCACY MATTERS LIMITED,04/05/2017,"22,560.75",70000-SOCIAL SERVICES-FEES TO VOLUNTARY BODIES,OP SLA,Third Party Payments,Revenue
Walsall Council,http://opendatacommunities.org/id/metropolitan-district-council/walsall,WC80-125,31/05/2017,Childrens,AFTER ADOPTION,08/05/2017,"8,450.00",63000-PROFESSIONAL FEES AND SERVICES,ADOPTION TEAM,Supplies & Services,Revenue
Walsall Council,http://opendatacommunities.org/id/metropolitan-district-council/walsall,WC80-126,31/05/2017,Adult Social Care,AGE UK WALSALL,17/05/2017,"6,342.00",76423-DIRECT PAYMENTS SUPPORT,DIRECT PAYMENT SUPPORT ORGANISATIONS,Transfer Payments,Revenue
Walsall Council,http://opendatacommunities.org/id/metropolitan-district-council/walsall,WC80-127,31/05/2017,Economy & Environment,AGE UK WALSALL,01/05/2017,"11,250.00",63000-PROFESSIONAL FEES AND SERVICES,FALLS PREVENTION,Supplies & Services,Revenue
Walsall Council,http://opendatacommunities.org/id/metropolitan-district-council/walsall,WC80-128,31/05/2017,Adult Social Care,REDACTED,09/05/2017,"1,882.00",76422-DIRECT PAYMENTS TO SOCIAL SERVICES CLIENTS,LD COMMISSIONING,Transfer Payments,Revenue
Walsall Council,http://opendatacommunities.org/id/metropolitan-district-council/walsall,WC80-129,31/05/2017,Adult Social Care,REDACTED,09/05/2017,914.20,76422-DIRECT PAYMENTS TO SOCIAL SERVICES CLIENTS,OP COMMISSIONING,Transfer Payments,Revenue
Walsall Council,http://opendatacommunities.org/id/metropolitan-district-council/walsall,WC80-130,31/05/2017,Childrens,AJK TRAVEL,05/05/2017,"11,537.40",52000-WITH DRIVER-HIRE OF VEHICLES,SCHOOL TRANSPORT,Transport,Revenue
Walsall Council,http://opendatacommunities.org/id/metropolitan-district-council/walsall,WC80-131,31/05/2017,Economy & Environment,ALADDINS EDUCATION LTD,31/05/2017,"4,960.00",66500-GRANTS TO OTHER ORGS,ESF COMMUNITY GRANTS,Third Party Payments,Revenue
Walsall Council,http://opendatacommunities.org/id/metropolitan-district-council/walsall,WC80-132,31/05/2017,Childrens,ALBRIGHTON CARE LTD,22/05/2017,"9,980.00",74036-EXTERNAL RESIDENTIAL CARE-OTH AGENCY PROVISION,INDEPENDENT RESIDENTIAL HOMES,Third Party Payments,Revenue
Walsall Council,http://opendatacommunities.org/id/metropolitan-district-council/walsall,WC80-133,31/05/2017,Childrens,ALBRIGHTON CARE LTD,01/05/2017,"21,029.29",74036-EXTERNAL RESIDENTIAL CARE-OTH AGENCY PROVISION,INDEPENDENT RESIDENTIAL HOMES,Third Party Payments,Revenue
Walsall Council,http://opendatacommunities.org/id/metropolitan-district-council/walsall,WC80-134,31/05/2017,Adult Social Care,ALDERGROVE MANOR LTD,16/05/2017,"1,839.68",73373-RESIDENTIAL & NURSING CARE PLACEMENTS,MH COMMISSIONING,Third Party Payments,Revenue
Walsall Council,http://opendatacommunities.org/id/metropolitan-district-council/walsall,WC80-135,31/05/2017,Childrens,ALDRIDGE & BARONS LIMITED,01/05/2017,"8,066.50",52000-WITH DRIVER-HIRE OF VEHICLES,SCHOOL TRANSPORT,Transport,Revenue
Walsall Council,http://opendatacommunities.org/id/metropolitan-district-council/walsall,WC80-136,31/05/2017,Childrens,ALDRIDGE & BARONS LIMITED,01/05/2017,"18,271.20",52000-WITH DRIVER-HIRE OF VEHICLES,SCHOOL TRANSPORT,Transport,Revenue
Walsall Council,http://opendatacommunities.org/id/metropolitan-district-council/walsall,WC80-137,31/05/2017,Childrens,ALDRIDGE & BARONS LIMITED,01/05/2017,"19,602.00",52000-WITH DRIVER-HIRE OF VEHICLES,SCHOOL TRANSPORT,Transport,Revenue
Walsall Council,http://opendatacommunities.org/id/metropolitan-district-council/walsall,WC80-138,31/05/2017,Adult Social Care,REDACTED,09/05/2017,"1,204.00",76422-DIRECT PAYMENTS TO SOCIAL SERVICES CLIENTS,PD COMMISSIONING,Transfer Payments,Revenue
Walsall Council,http://opendatacommunities.org/id/metropolitan-district-council/walsall,WC80-139,31/05/2017,Adult Social Care,ALEXANDRA HOUSE CARE SERVICES LTD T/A STONEBRIDGE NURSING HOME,25/05/2017,"7,117.44",73373-RESIDENTIAL & NURSING CARE PLACEMENTS,LD COMMISSIONING,Third Party Payments,Revenue
Walsall Council,http://opendatacommunities.org/id/metropolitan-district-council/walsall,WC80-140,31/05/2017,Childrens,REDACTED,09/05/2017,582.66,76422-DIRECT PAYMENTS TO SOCIAL SERVICES CLIENTS,FAMILY SUPPORT - DIRECT PAYMENTS,Transfer Payments,Revenue
Walsall Council,http://opendatacommunities.org/id/metropolitan-district-council/walsall,WC80-141,31/05/2017,Adult Social Care,REDACTED,09/05/2017,898.00,76422-DIRECT PAYMENTS TO SOCIAL SERVICES CLIENTS,PD COMMISSIONING,Transfer Payments,Revenue
Walsall Council,http://opendatacommunities.org/id/metropolitan-district-council/walsall,WC80-142,31/05/2017,Adult Social Care,REDACTED,09/05/2017,612.00,76422-DIRECT PAYMENTS TO SOCIAL SERVICES CLIENTS,OP COMMISSIONING,Transfer Payments,Revenue
Walsall Council,http://opendatacommunities.org/id/metropolitan-district-council/walsall,WC80-143,31/05/2017,Adult Social Care,REDACTED,12/05/2017,"1,627.05",73374-SUPPORTED & OTHER ACCOMMODATION,LD COMMISSIONING,Third Party Payments,Revenue
Walsall Council,http://opendatacommunities.org/id/metropolitan-district-council/walsall,WC80-144,31/05/2017,Childrens,REDACTED,08/05/2017,571.44,74501-MAINTENANCE ALLOWANCE-FOSTER CARERS,FAMILY & FRIENDS FOSTER CARE PROVISION,Transfer Payments,Revenue
Walsall Council,http://opendatacommunities.org/id/metropolitan-district-council/walsall,WC80-145,31/05/2017,Childrens,REDACTED,08/05/2017,552.96,74510-RESIDENTS ORDERS,ADOPTION ALLOWANCES,Third Party Payments,Revenue
Walsall Council,http://opendatacommunities.org/id/metropolitan-district-council/walsall,WC80-146,31/05/2017,Adult Social Care,ALMA COURT,08/05/2017,"2,700.00",73374-SUPPORTED & OTHER ACCOMMODATION,OP COMMISSIONING,Third Party Payments,Revenue
Walsall Council,http://opendatacommunities.org/id/metropolitan-district-council/walsall,WC80-147,31/05/2017,Adult Social Care,ALMA COURT,16/05/2017,"6,316.87",73373-RESIDENTIAL & NURSING CARE PLACEMENTS,MH COMMISSIONING,Third Party Payments,Revenue
Walsall Council,http://opendatacommunities.org/id/metropolitan-district-council/walsall,WC80-148,31/05/2017,Childrens,ALPHA HAIR DESIGN ACADEMY,10/05/2017,"2,206.00",66502-TOP UP FUNDING -GRANTS TO SCHOOLS,INDEPENDENT PROVIDERS - SPECIAL & AP,Third Party Payments,Revenue
Walsall Council,http://opendatacommunities.org/id/metropolitan-district-council/walsall,WC80-149,31/05/2017,Childrens,ALPHA HAIR DESIGN ACADEMY,10/05/2017,"2,206.00",66502-TOP UP FUNDING -GRANTS TO SCHOOLS,INDEPENDENT PROVIDERS - SPECIAL & AP,Third Party Payments,Revenue
Walsall Council,http://opendatacommunities.org/id/metropolitan-district-council/walsall,WC80-150,31/05/2017,Childrens,ALPHA HAIR DESIGN ACADEMY,10/05/2017,"2,206.00",66502-TOP UP FUNDING -GRANTS TO SCHOOLS,INDEPENDENT PROVIDERS - SPECIAL & AP,Third Party Payments,Revenue
Walsall Council,http://opendatacommunities.org/id/metropolitan-district-council/walsall,WC80-151,31/05/2017,Adult Social Care,ALPHA HEALTH CARE LTD,16/05/2017,"1,221.43",73373-RESIDENTIAL & NURSING CARE PLACEMENTS,MH COMMISSIONING,Third Party Payments,Revenue
Walsall Council,http://opendatacommunities.org/id/metropolitan-district-council/walsall,WC80-152,31/05/2017,Adult Social Care,ALPHA HEALTH CARE LTD,16/05/2017,"1,620.00",73373-RESIDENTIAL & NURSING CARE PLACEMENTS,OP COMMISSIONING,Third Party Payments,Revenue
Walsall Council,http://opendatacommunities.org/id/metropolitan-district-council/walsall,WC80-153,31/05/2017,Adult Social Care,ALPHA HEALTH CARE LTD,16/05/2017,"1,620.00",73373-RESIDENTIAL & NURSING CARE PLACEMENTS,OP COMMISSIONING,Third Party Payments,Revenue
Walsall Council,http://opendatacommunities.org/id/metropolitan-district-council/walsall,WC80-154,31/05/2017,Adult Social Care,ALPHA HEALTH CARE LTD,16/05/2017,"1,620.00",73373-RESIDENTIAL & NURSING CARE PLACEMENTS,OP COMMISSIONING,Third Party Payments,Revenue
Walsall Council,http://opendatacommunities.org/id/metropolitan-district-council/walsall,WC80-155,31/05/2017,Adult Social Care,ALPHA HEALTH CARE LTD,16/05/2017,"1,649.80",73373-RESIDENTIAL & NURSING CARE PLACEMENTS,OP COMMISSIONING,Third Party Payments,Revenue
Walsall Council,http://opendatacommunities.org/id/metropolitan-district-council/walsall,WC80-156,31/05/2017,Adult Social Care,ALPHA HEALTH CARE LTD,16/05/2017,"1,649.80",73373-RESIDENTIAL & NURSING CARE PLACEMENTS,OP COMMISSIONING,Third Party Payments,Revenue
Walsall Council,http://opendatacommunities.org/id/metropolitan-district-council/walsall,WC80-157,31/05/2017,Adult Social Care,ALPHA HEALTH CARE LTD,16/05/2017,"1,649.80",73373-RESIDENTIAL & NURSING CARE PLACEMENTS,OP COMMISSIONING,Third Party Payments,Revenue
Walsall Council,http://opendatacommunities.org/id/metropolitan-district-council/walsall,WC80-158,31/05/2017,Adult Social Care,ALPHA HEALTH CARE LTD,16/05/2017,"1,649.80",73373-RESIDENTIAL & NURSING CARE PLACEMENTS,OP COMMISSIONING,Third Party Payments,Revenue
Walsall Council,http://opendatacommunities.org/id/metropolitan-district-council/walsall,WC80-159,31/05/2017,Adult Social Care,ALPHA HEALTH CARE LTD,16/05/2017,"1,649.80",73373-RESIDENTIAL & NURSING CARE PLACEMENTS,MH COMMISSIONING,Third Party Payments,Revenue
Walsall Council,http://opendatacommunities.org/id/metropolitan-district-council/walsall,WC80-160,31/05/2017,Adult Social Care,ALPHA HEALTH CARE LTD,16/05/2017,"1,649.80",73373-RESIDENTIAL & NURSING CARE PLACEMENTS,OP COMMISSIONING,Third Party Payments,Revenue
Walsall Council,http://opendatacommunities.org/id/metropolitan-district-council/walsall,WC80-161,31/05/2017,Adult Social Care,ALPHA HEALTH CARE LTD,16/05/2017,"1,649.80",73373-RESIDENTIAL & NURSING CARE PLACEMENTS,MH COMMISSIONING,Third Party Payments,Revenue
Walsall Council,http://opendatacommunities.org/id/metropolitan-district-council/walsall,WC80-162,31/05/2017,Adult Social Care,ALPHA HEALTH CARE LTD,16/05/2017,"1,800.00",73373-RESIDENTIAL & NURSING CARE PLACEMENTS,OP COMMISSIONING,Third Party Payments,Revenue
Walsall Council,http://opendatacommunities.org/id/metropolitan-district-council/walsall,WC80-163,31/05/2017,Adult Social Care,ALPHA HEALTH CARE LTD,16/05/2017,"1,800.00",73373-RESIDENTIAL & NURSING CARE PLACEMENTS,MH COMMISSIONING,Third Party Payments,Revenue
Walsall Council,http://opendatacommunities.org/id/metropolitan-district-council/walsall,WC80-164,31/05/2017,Adult Social Care,ALPHA HEALTH CARE LTD,16/05/2017,"2,095.00",73373-RESIDENTIAL & NURSING CARE PLACEMENTS,OP COMMISSIONING,Third Party Payments,Revenue
Walsall Council,http://opendatacommunities.org/id/metropolitan-district-council/walsall,WC80-165,31/05/2017,Adult Social Care,ALPHA HEALTH CARE LTD,16/05/2017,"2,095.00",73373-RESIDENTIAL & NURSING CARE PLACEMENTS,OP COMMISSIONING,Third Party Payments,Revenue
Walsall Council,http://opendatacommunities.org/id/metropolitan-district-council/walsall,WC80-166,31/05/2017,Adult Social Care,ALPHA HEALTH CARE LTD,16/05/2017,"2,175.00",73373-RESIDENTIAL & NURSING CARE PLACEMENTS,OP COMMISSIONING,Third Party Payments,Revenue
Walsall Council,http://opendatacommunities.org/id/metropolitan-district-council/walsall,WC80-167,31/05/2017,Adult Social Care,ALPHA HEALTH CARE LTD,16/05/2017,"2,175.00",73373-RESIDENTIAL & NURSING CARE PLACEMENTS,OP COMMISSIONING,Third Party Payments,Revenue
Walsall Council,http://opendatacommunities.org/id/metropolitan-district-council/walsall,WC80-168,31/05/2017,Adult Social Care,ALPHA HEALTH CARE LTD,16/05/2017,"2,326.00",73373-RESIDENTIAL & NURSING CARE PLACEMENTS,MH COMMISSIONING,Third Party Payments,Revenue
Walsall Council,http://opendatacommunities.org/id/metropolitan-district-council/walsall,WC80-169,31/05/2017,Adult Social Care,ALPHA HEALTH CARE LTD,16/05/2017,"2,859.48",73373-RESIDENTIAL & NURSING CARE PLACEMENTS,MH COMMISSIONING,Third Party Payments,Revenue
Walsall Council,http://opendatacommunities.org/id/metropolitan-district-council/walsall,WC80-170,31/05/2017,Adult Social Care,ALPHA HEALTH CARE LTD,16/05/2017,"5,800.00",73373-RESIDENTIAL & NURSING CARE PLACEMENTS,MH COMMISSIONING,Third Party Payments,Revenue
Walsall Council,http://opendatacommunities.org/id/metropolitan-district-council/walsall,WC80-171,31/05/2017,Childrens,ALPHABIOLABS,15/05/2017,381.68,73014-LEGAL FEES-PRIV CONTRACTOR FEES,GENERAL MANAGEMENT SUPPORT (INC LEGAL),Third Party Payments,Revenue
Walsall Council,http://opendatacommunities.org/id/metropolitan-district-council/walsall,WC80-172,31/05/2017,Childrens,ALPHABIOLABS,05/05/2017,"1,192.50",63000-PROFESSIONAL FEES AND SERVICES,SAFEGUARDING & FAMILY SUPPORT,Supplies & Services,Revenue
Walsall Council,http://opendatacommunities.org/id/metropolitan-district-council/walsall,WC80-173,31/05/2017,Childrens,ALTODIGITAL NETWORKS LTD,24/05/2017,353.94,60009-LEASING/HIRE/RENTAL-EQUIPMENT,YOUTH JUSTICE SERVICE,Supplies & Services,Revenue
Walsall Council,http://opendatacommunities.org/id/metropolitan-district-council/walsall,WC80-174,31/05/2017,Childrens,REDACTED,08/05/2017,808.04,74009-ADOPTION ALLOWANCE,ADOPTION ALLOWANCES,Transfer Payments,Revenue
Walsall Council,http://opendatacommunities.org/id/metropolitan-district-council/walsall,WC80-175,31/05/2017,Childrens,REDACTED,22/05/2017,9.24,60006-NEW-FURNITURE & EQUIPMENT,INTERNAL FOSTER CARE PROVISION,Supplies & Services,Revenue
Walsall Council,http://opendatacommunities.org/id/metropolitan-district-council/walsall,WC80-176,31/05/2017,Childrens,REDACTED,22/05/2017,325.46,74504-HOLIDAY/CHRISTMAS ALLOWANCE-FOSTER CARERS,INTERNAL FOSTER CARE PROVISION,Transfer Payments,Revenue
Walsall Council,http://opendatacommunities.org/id/metropolitan-district-council/walsall,WC80-177,31/05/2017,Childrens,REDACTED,22/05/2017,530.96,74508-INTERNAL FOSTER CARERS-CARER FEES,INTERNAL FOSTER CARE PROVISION,Transfer Payments,Revenue
Walsall Council,http://opendatacommunities.org/id/metropolitan-district-council/walsall,WC80-178,31/05/2017,Childrens,REDACTED,22/05/2017,650.92,74501-MAINTENANCE ALLOWANCE-FOSTER CARERS,INTERNAL FOSTER CARE PROVISION,Transfer Payments,Revenue
Walsall Council,http://opendatacommunities.org/id/metropolitan-district-council/walsall,WC80-179,31/05/2017,Childrens,REDACTED,09/05/2017,336.92,76422-DIRECT PAYMENTS TO SOCIAL SERVICES CLIENTS,FAMILY SUPPORT - DIRECT PAYMENTS,Transfer Payments,Revenue
Walsall Council,http://opendatacommunities.org/id/metropolitan-district-council/walsall,WC80-180,31/05/2017,Economy & Environment,AMEY LG LIMITED,16/05/2017,"1,059.50",01006-SITE WORKS MAIN CONTRACTORS,CFR 1147 NETWORK RAIL SCHEME-LEVEL CROSSING,Capital,Capital
Walsall Council,http://opendatacommunities.org/id/metropolitan-district-council/walsall,WC80-181,31/05/2017,Economy & Environment,AMEY LG LIMITED,26/05/2017,"8,912.15",73025-PROFESSIONAL SERVICES-PRIV CONTRACTOR & OTHER AGENCIES,TRAFFIC MANAGEMENT,Third Party Payments,Revenue
Walsall Council,http://opendatacommunities.org/id/metropolitan-district-council/walsall,WC80-182,31/05/2017,Economy & Environment,AMEY LG LIMITED,10/05/2017,"11,522.40",73025-PROFESSIONAL SERVICES-PRIV CONTRACTOR & OTHER AGENCIES,TRAFFIC MANAGEMENT,Third Party Payments,Revenue
Walsall Council,http://opendatacommunities.org/id/metropolitan-district-council/walsall,WC80-183,31/05/2017,Economy & Environment,AMEY LG LIMITED,18/05/2017,"22,510.77",01009-SITE WORKS - OTHER CONTRACTORS,CFR 1057 CALDMORE ROAD ONE WAY SCHEME,Capital,Capital
Walsall Council,http://opendatacommunities.org/id/metropolitan-district-council/walsall,WC80-184,31/05/2017,Childrens,AMG NURSING CARE SERVICES,17/05/2017,"1,110.72",63000-PROFESSIONAL FEES AND SERVICES,DIRECTLY COMMISSIONED NURSING SERVICES,Supplies & Services,Revenue
Walsall Council,http://opendatacommunities.org/id/metropolitan-district-council/walsall,WC80-185,31/05/2017,Childrens,AMG NURSING CARE SERVICES,24/05/2017,"1,110.72",63000-PROFESSIONAL FEES AND SERVICES,DIRECTLY COMMISSIONED NURSING SERVICES,Supplies & Services,Revenue
Walsall Council,http://opendatacommunities.org/id/metropolitan-district-council/walsall,WC80-186,31/05/2017,Childrens,AMG NURSING CARE SERVICES,17/05/2017,"2,274.48",63000-PROFESSIONAL FEES AND SERVICES,DIRECTLY COMMISSIONED NURSING SERVICES,Supplies & Services,Revenue
Walsall Council,http://opendatacommunities.org/id/metropolitan-district-council/walsall,WC80-187,31/05/2017,Childrens,AMG NURSING CARE SERVICES,10/05/2017,"2,315.68",63000-PROFESSIONAL FEES AND SERVICES,DIRECTLY COMMISSIONED NURSING SERVICES,Supplies & Services,Revenue
Walsall Council,http://opendatacommunities.org/id/metropolitan-district-council/walsall,WC80-188,31/05/2017,Childrens,AMG NURSING CARE SERVICES,24/05/2017,"2,340.40",63000-PROFESSIONAL FEES AND SERVICES,DIRECTLY COMMISSIONED NURSING SERVICES,Supplies & Services,Revenue
Walsall Council,http://opendatacommunities.org/id/metropolitan-district-council/walsall,WC80-189,31/05/2017,Childrens,AMG NURSING CARE SERVICES,10/05/2017,"2,462.20",63000-PROFESSIONAL FEES AND SERVICES,DIRECTLY COMMISSIONED NURSING SERVICES,Supplies & Services,Revenue
Walsall Council,http://opendatacommunities.org/id/metropolitan-district-council/walsall,WC80-190,31/05/2017,Adult Social Care,AMG NURSING CARE SERVICES,03/05/2017,"10,647.92",73374-SUPPORTED & OTHER ACCOMMODATION,OP COMMISSIONING,Third Party Payments,Revenue
Walsall Council,http://opendatacommunities.org/id/metropolitan-district-council/walsall,WC80-191,31/05/2017,Childrens,REDACTED,08/05/2017,9.24,60006-NEW-FURNITURE & EQUIPMENT,FAMILY & FRIENDS FOSTER CARE PROVISION,Supplies & Services,Revenue
Walsall Council,http://opendatacommunities.org/id/metropolitan-district-council/walsall,WC80-192,31/05/2017,Childrens,REDACTED,08/05/2017,285.72,74504-HOLIDAY/CHRISTMAS ALLOWANCE-FOSTER CARERS,FAMILY & FRIENDS FOSTER CARE PROVISION,Transfer Payments,Revenue
Walsall Council,http://opendatacommunities.org/id/metropolitan-district-council/walsall,WC80-193,31/05/2017,Childrens,REDACTED,08/05/2017,345.24,74508-INTERNAL FOSTER CARERS-CARER FEES,FAMILY & FRIENDS FOSTER CARE PROVISION,Transfer Payments,Revenue
Walsall Council,http://opendatacommunities.org/id/metropolitan-district-council/walsall,WC80-194,31/05/2017,Childrens,REDACTED,08/05/2017,571.44,74501-MAINTENANCE ALLOWANCE-FOSTER CARERS,FAMILY & FRIENDS FOSTER CARE PROVISION,Transfer Payments,Revenue
Walsall Council,http://opendatacommunities.org/id/metropolitan-district-council/walsall,WC80-195,31/05/2017,Childrens,REDACTED,08/05/2017,425.08,74510-RESIDENTS ORDERS,ADOPTION ALLOWANCES,Third Party Payments,Revenue
Walsall Council,http://opendatacommunities.org/id/metropolitan-district-council/walsall,WC80-196,31/05/2017,Adult Social Care,REDACTED,09/05/2017,576.00,76422-DIRECT PAYMENTS TO SOCIAL SERVICES CLIENTS,OP COMMISSIONING,Transfer Payments,Revenue
Walsall Council,http://opendatacommunities.org/id/metropolitan-district-council/walsall,WC80-197,31/05/2017,Adult Social Care,ANCHOR,01/05/2017,321.43,73373-RESIDENTIAL & NURSING CARE PLACEMENTS,OP COMMISSIONING,Third Party Payments,Revenue
Walsall Council,http://opendatacommunities.org/id/metropolitan-district-council/walsall,WC80-198,31/05/2017,Adult Social Care,ANCHOR,25/05/2017,771.43,73373-RESIDENTIAL & NURSING CARE PLACEMENTS,OP COMMISSIONING,Third Party Payments,Revenue
Walsall Council,http://opendatacommunities.org/id/metropolitan-district-council/walsall,WC80-199,31/05/2017,Adult Social Care,ANCHOR,25/05/2017,771.43,73373-RESIDENTIAL & NURSING CARE PLACEMENTS,OP COMMISSIONING,Third Party Payments,Revenue
Walsall Council,http://opendatacommunities.org/id/metropolitan-district-council/walsall,WC80-200,31/05/2017,Adult Social Care,ANCHOR,25/05/2017,891.43,73373-RESIDENTIAL & NURSING CARE PLACEMENTS,MH COMMISSIONING,Third Party Payments,Revenue
Walsall Council,http://opendatacommunities.org/id/metropolitan-district-council/walsall,WC80-201,31/05/2017,Adult Social Care,ANCHOR,25/05/2017,"1,028.57",73373-RESIDENTIAL & NURSING CARE PLACEMENTS,OP COMMISSIONING,Third Party Payments,Revenue
Walsall Council,http://opendatacommunities.org/id/metropolitan-district-council/walsall,WC80-202,31/05/2017,Adult Social Care,ANCHOR,25/05/2017,"1,028.57",73373-RESIDENTIAL & NURSING CARE PLACEMENTS,OP COMMISSIONING,Third Party Payments,Revenue
Walsall Council,http://opendatacommunities.org/id/metropolitan-district-council/walsall,WC80-203,31/05/2017,Adult Social Care,ANCHOR,25/05/2017,"1,188.57",73373-RESIDENTIAL & NURSING CARE PLACEMENTS,MH COMMISSIONING,Third Party Payments,Revenue
Walsall Council,http://opendatacommunities.org/id/metropolitan-district-council/walsall,WC80-204,31/05/2017,Adult Social Care,ANCHOR,25/05/2017,"1,221.43",73373-RESIDENTIAL & NURSING CARE PLACEMENTS,OP COMMISSIONING,Third Party Payments,Revenue
Walsall Council,http://opendatacommunities.org/id/metropolitan-district-council/walsall,WC80-205,31/05/2017,Adult Social Care,ANCHOR,01/05/2017,"1,478.57",73373-RESIDENTIAL & NURSING CARE PLACEMENTS,OP COMMISSIONING,Third Party Payments,Revenue
Walsall Council,http://opendatacommunities.org/id/metropolitan-district-council/walsall,WC80-206,31/05/2017,Adult Social Care,ANCHOR,25/05/2017,"1,542.86",73373-RESIDENTIAL & NURSING CARE PLACEMENTS,OP COMMISSIONING,Third Party Payments,Revenue
Walsall Council,http://opendatacommunities.org/id/metropolitan-district-council/walsall,WC80-207,31/05/2017,Adult Social Care,ANCHOR,16/05/2017,"1,620.00",73373-RESIDENTIAL & NURSING CARE PLACEMENTS,OP COMMISSIONING,Third Party Payments,Revenue
Walsall Council,http://opendatacommunities.org/id/metropolitan-district-council/walsall,WC80-208,31/05/2017,Adult Social Care,ANCHOR,16/05/2017,"1,620.00",73373-RESIDENTIAL & NURSING CARE PLACEMENTS,OP COMMISSIONING,Third Party Payments,Revenue
Walsall Council,http://opendatacommunities.org/id/metropolitan-district-council/walsall,WC80-209,31/05/2017,Adult Social Care,ANCHOR,16/05/2017,"1,671.43",73373-RESIDENTIAL & NURSING CARE PLACEMENTS,OP COMMISSIONING,Third Party Payments,Revenue
Walsall Council,http://opendatacommunities.org/id/metropolitan-district-council/walsall,WC80-210,31/05/2017,Adult Social Care,ANCHOR,16/05/2017,"1,800.00",73373-RESIDENTIAL & NURSING CARE PLACEMENTS,OP COMMISSIONING,Third Party Payments,Revenue
Walsall Council,http://opendatacommunities.org/id/metropolitan-district-council/walsall,WC80-211,31/05/2017,Adult Social Care,ANCHOR,16/05/2017,"1,800.00",73373-RESIDENTIAL & NURSING CARE PLACEMENTS,OP COMMISSIONING,Third Party Payments,Revenue
Walsall Council,http://opendatacommunities.org/id/metropolitan-district-council/walsall,WC80-212,31/05/2017,Adult Social Care,ANCHOR,16/05/2017,"1,800.00",73373-RESIDENTIAL & NURSING CARE PLACEMENTS,OP COMMISSIONING,Third Party Payments,Revenue
Walsall Council,http://opendatacommunities.org/id/metropolitan-district-council/walsall,WC80-213,31/05/2017,Adult Social Care,ANCHOR,16/05/2017,"1,800.00",73373-RESIDENTIAL & NURSING CARE PLACEMENTS,OP COMMISSIONING,Third Party Payments,Revenue
Walsall Council,http://opendatacommunities.org/id/metropolitan-district-council/walsall,WC80-214,31/05/2017,Adult Social Care,ANCHOR,16/05/2017,"1,800.00",73373-RESIDENTIAL & NURSING CARE PLACEMENTS,OP COMMISSIONING,Third Party Payments,Revenue
Walsall Council,http://opendatacommunities.org/id/metropolitan-district-council/walsall,WC80-215,31/05/2017,Adult Social Care,ANCHOR,16/05/2017,"1,800.00",73373-RESIDENTIAL & NURSING CARE PLACEMENTS,OP COMMISSIONING,Third Party Payments,Revenue
Walsall Council,http://opendatacommunities.org/id/metropolitan-district-council/walsall,WC80-216,31/05/2017,Adult Social Care,ANCHOR,16/05/2017,"1,800.00",73373-RESIDENTIAL & NURSING CARE PLACEMENTS,OP COMMISSIONING,Third Party Payments,Revenue
Walsall Council,http://opendatacommunities.org/id/metropolitan-district-council/walsall,WC80-217,31/05/2017,Adult Social Care,ANCHOR,16/05/2017,"1,800.00",73373-RESIDENTIAL & NURSING CARE PLACEMENTS,OP COMMISSIONING,Third Party Payments,Revenue
Walsall Council,http://opendatacommunities.org/id/metropolitan-district-council/walsall,WC80-218,31/05/2017,Adult Social Care,ANCHOR,16/05/2017,"1,800.00",73373-RESIDENTIAL & NURSING CARE PLACEMENTS,OP COMMISSIONING,Third Party Payments,Revenue
Walsall Council,http://opendatacommunities.org/id/metropolitan-district-council/walsall,WC80-219,31/05/2017,Adult Social Care,ANCHOR,16/05/2017,"1,800.00",73373-RESIDENTIAL & NURSING CARE PLACEMENTS,OP COMMISSIONING,Third Party Payments,Revenue
Walsall Council,http://opendatacommunities.org/id/metropolitan-district-council/walsall,WC80-220,31/05/2017,Adult Social Care,ANCHOR,16/05/2017,"1,800.00",73373-RESIDENTIAL & NURSING CARE PLACEMENTS,OP COMMISSIONING,Third Party Payments,Revenue
Walsall Council,http://opendatacommunities.org/id/metropolitan-district-council/walsall,WC80-221,31/05/2017,Adult Social Care,ANCHOR,16/05/2017,"1,800.00",73373-RESIDENTIAL & NURSING CARE PLACEMENTS,OP COMMISSIONING,Third Party Payments,Revenue
Walsall Council,http://opendatacommunities.org/id/metropolitan-district-council/walsall,WC80-222,31/05/2017,Adult Social Care,ANCHOR,16/05/2017,"1,800.00",73373-RESIDENTIAL & NURSING CARE PLACEMENTS,MH COMMISSIONING,Third Party Payments,Revenue
Walsall Council,http://opendatacommunities.org/id/metropolitan-district-council/walsall,WC80-223,31/05/2017,Adult Social Care,ANCHOR,16/05/2017,"1,800.00",73373-RESIDENTIAL & NURSING CARE PLACEMENTS,OP COMMISSIONING,Third Party Payments,Revenue
Walsall Council,http://opendatacommunities.org/id/metropolitan-district-council/walsall,WC80-224,31/05/2017,Adult Social Care,ANCHOR,16/05/2017,"1,800.00",73373-RESIDENTIAL & NURSING CARE PLACEMENTS,OP COMMISSIONING,Third Party Payments,Revenue
Walsall Council,http://opendatacommunities.org/id/metropolitan-district-council/walsall,WC80-225,31/05/2017,Adult Social Care,ANCHOR,25/05/2017,"1,800.00",73373-RESIDENTIAL & NURSING CARE PLACEMENTS,OP COMMISSIONING,Third Party Payments,Revenue
Walsall Council,http://opendatacommunities.org/id/metropolitan-district-council/walsall,WC80-226,31/05/2017,Adult Social Care,ANCHOR,25/05/2017,"1,800.00",73373-RESIDENTIAL & NURSING CARE PLACEMENTS,OP COMMISSIONING,Third Party Payments,Revenue
Walsall Council,http://opendatacommunities.org/id/metropolitan-district-council/walsall,WC80-227,31/05/2017,Adult Social Care,ANCHOR,25/05/2017,"1,800.00",73373-RESIDENTIAL & NURSING CARE PLACEMENTS,OP COMMISSIONING,Third Party Payments,Revenue
Walsall Council,http://opendatacommunities.org/id/metropolitan-district-council/walsall,WC80-228,31/05/2017,Adult Social Care,ANCHOR,25/05/2017,"1,800.00",73373-RESIDENTIAL & NURSING CARE PLACEMENTS,OP COMMISSIONING,Third Party Payments,Revenue
Walsall Council,http://opendatacommunities.org/id/metropolitan-district-council/walsall,WC80-229,31/05/2017,Adult Social Care,ANCHOR,30/05/2017,"1,800.00",73373-RESIDENTIAL & NURSING CARE PLACEMENTS,OP COMMISSIONING,Third Party Payments,Revenue
Walsall Council,http://opendatacommunities.org/id/metropolitan-district-council/walsall,WC80-230,31/05/2017,Adult Social Care,ANCHOR,25/05/2017,"2,080.00",73373-RESIDENTIAL & NURSING CARE PLACEMENTS,MH COMMISSIONING,Third Party Payments,Revenue
Walsall Council,http://opendatacommunities.org/id/metropolitan-district-council/walsall,WC80-231,31/05/2017,Adult Social Care,ANCHOR,25/05/2017,"2,080.00",73373-RESIDENTIAL & NURSING CARE PLACEMENTS,MH COMMISSIONING,Third Party Payments,Revenue
Walsall Council,http://opendatacommunities.org/id/metropolitan-district-council/walsall,WC80-232,31/05/2017,Childrens,REDACTED,22/05/2017,9.24,60006-NEW-FURNITURE & EQUIPMENT,INTERNAL FOSTER CARE PROVISION,Supplies & Services,Revenue
Walsall Council,http://opendatacommunities.org/id/metropolitan-district-council/walsall,WC80-233,31/05/2017,Childrens,REDACTED,22/05/2017,221.40,74506-TRAVEL-FOSTER CARERS,INTERNAL FOSTER CARE PROVISION,Transfer Payments,Revenue
Walsall Council,http://opendatacommunities.org/id/metropolitan-district-council/walsall,WC80-234,31/05/2017,Childrens,REDACTED,22/05/2017,810.32,74501-MAINTENANCE ALLOWANCE-FOSTER CARERS,INTERNAL FOSTER CARE PROVISION,Transfer Payments,Revenue
Walsall Council,http://opendatacommunities.org/id/metropolitan-district-council/walsall,WC80-235,31/05/2017,Childrens,REDACTED,22/05/2017,897.52,74508-INTERNAL FOSTER CARERS-CARER FEES,INTERNAL FOSTER CARE PROVISION,Transfer Payments,Revenue
Walsall Council,http://opendatacommunities.org/id/metropolitan-district-council/walsall,WC80-236,31/05/2017,Childrens,ANDREWS ELECTRICAL LTD,18/05/2017,"3,670.00",01006-SITE WORKS MAIN CONTRACTORS,CFR 1137 BEACON PRIMARY EXTENSION,Capital,Capital
Walsall Council,http://opendatacommunities.org/id/metropolitan-district-council/walsall,WC80-237,31/05/2017,Adult Social Care,ANGEL COURT RESIDENTIAL CARE HOME,30/05/2017,-462.86,73373-RESIDENTIAL & NURSING CARE PLACEMENTS,OP COMMISSIONING,Third Party Payments,Revenue
Walsall Council,http://opendatacommunities.org/id/metropolitan-district-council/walsall,WC80-238,31/05/2017,Adult Social Care,ANGEL COURT RESIDENTIAL CARE HOME,16/05/2017,"1,992.36",73373-RESIDENTIAL & NURSING CARE PLACEMENTS,OP COMMISSIONING,Third Party Payments,Revenue
Walsall Council,http://opendatacommunities.org/id/metropolitan-district-council/walsall,WC80-239,31/05/2017,Adult Social Care,ANGEL COURT RESIDENTIAL CARE HOME,16/05/2017,"2,073.85",73373-RESIDENTIAL & NURSING CARE PLACEMENTS,OP COMMISSIONING,Third Party Payments,Revenue
Walsall Council,http://opendatacommunities.org/id/metropolitan-district-council/walsall,WC80-240,31/05/2017,Adult Social Care,ANGEL COURT RESIDENTIAL CARE HOME,16/05/2017,"2,150.07",73373-RESIDENTIAL & NURSING CARE PLACEMENTS,OP COMMISSIONING,Third Party Payments,Revenue
Walsall Council,http://opendatacommunities.org/id/metropolitan-district-council/walsall,WC80-241,31/05/2017,Childrens,REDACTED,08/05/2017,368.76,74509-SPECIAL GUARDIANSHIP ORDERS,ADOPTION ALLOWANCES,Transfer Payments,Revenue
Walsall Council,http://opendatacommunities.org/id/metropolitan-district-council/walsall,WC80-242,31/05/2017,Childrens,REDACTED,08/05/2017,368.76,74509-SPECIAL GUARDIANSHIP ORDERS,ADOPTION ALLOWANCES,Transfer Payments,Revenue
Walsall Council,http://opendatacommunities.org/id/metropolitan-district-council/walsall,WC80-243,31/05/2017,Childrens,REDACTED,08/05/2017,500.16,74509-SPECIAL GUARDIANSHIP ORDERS,ADOPTION ALLOWANCES,Transfer Payments,Revenue
Walsall Council,http://opendatacommunities.org/id/metropolitan-district-council/walsall,WC80-244,31/05/2017,Childrens,REDACTED,08/05/2017,312.04,74509-SPECIAL GUARDIANSHIP ORDERS,ADOPTION ALLOWANCES,Transfer Payments,Revenue
Walsall Council,http://opendatacommunities.org/id/metropolitan-district-council/walsall,WC80-245,31/05/2017,Adult Social Care,REDACTED,09/05/2017,344.00,76422-DIRECT PAYMENTS TO SOCIAL SERVICES CLIENTS,LD COMMISSIONING,Transfer Payments,Revenue
Walsall Council,http://opendatacommunities.org/id/metropolitan-district-council/walsall,WC80-246,31/05/2017,Childrens,REDACTED,22/05/2017,41.91,60006-NEW-FURNITURE & EQUIPMENT,INTERNAL FOSTER CARE PROVISION,Supplies & Services,Revenue
Walsall Council,http://opendatacommunities.org/id/metropolitan-district-council/walsall,WC80-247,31/05/2017,Childrens,REDACTED,22/05/2017,"4,153.62",74508-INTERNAL FOSTER CARERS-CARER FEES,INTERNAL FOSTER CARE PROVISION,Transfer Payments,Revenue
Walsall Council,http://opendatacommunities.org/id/metropolitan-district-council/walsall,WC80-248,31/05/2017,Adult Social Care,REDACTED,10/05/2017,253.66,73374-SUPPORTED & OTHER ACCOMMODATION,LD COMMISSIONING,Third Party Payments,Revenue
Walsall Council,http://opendatacommunities.org/id/metropolitan-district-council/walsall,WC80-249,31/05/2017,Adult Social Care,REDACTED,10/05/2017,301.20,73374-SUPPORTED & OTHER ACCOMMODATION,LD COMMISSIONING,Third Party Payments,Revenue
Walsall Council,http://opendatacommunities.org/id/metropolitan-district-council/walsall,WC80-250,31/05/2017,Adult Social Care,REDACTED,10/05/2017,313.20,73374-SUPPORTED & OTHER ACCOMMODATION,LD COMMISSIONING,Third Party Payments,Revenue
Walsall Council,http://opendatacommunities.org/id/metropolitan-district-council/walsall,WC80-251,31/05/2017,Adult Social Care,REDACTED,01/05/2017,604.37,73374-SUPPORTED & OTHER ACCOMMODATION,LD COMMISSIONING,Third Party Payments,Revenue
Walsall Council,http://opendatacommunities.org/id/metropolitan-district-council/walsall,WC80-252,31/05/2017,Adult Social Care,REDACTED,01/05/2017,608.21,73374-SUPPORTED & OTHER ACCOMMODATION,LD COMMISSIONING,Third Party Payments,Revenue
Walsall Council,http://opendatacommunities.org/id/metropolitan-district-council/walsall,WC80-253,31/05/2017,Adult Social Care,REDACTED,01/05/2017,621.09,73374-SUPPORTED & OTHER ACCOMMODATION,LD COMMISSIONING,Third Party Payments,Revenue
Walsall Council,http://opendatacommunities.org/id/metropolitan-district-council/walsall,WC80-254,31/05/2017,Adult Social Care,ANSON COURT RESIDENTIAL HOME,10/05/2017,"1,800.00",73373-RESIDENTIAL & NURSING CARE PLACEMENTS,OP COMMISSIONING,Third Party Payments,Revenue
Walsall Council,http://opendatacommunities.org/id/metropolitan-district-council/walsall,WC80-255,31/05/2017,Adult Social Care,ANSON COURT RESIDENTIAL HOME,10/05/2017,"1,800.00",73373-RESIDENTIAL & NURSING CARE PLACEMENTS,OP COMMISSIONING,Third Party Payments,Revenue
Walsall Council,http://opendatacommunities.org/id/metropolitan-district-council/walsall,WC80-256,31/05/2017,Adult Social Care,ANSON COURT RESIDENTIAL HOME,10/05/2017,"1,800.00",73373-RESIDENTIAL & NURSING CARE PLACEMENTS,MH COMMISSIONING,Third Party Payments,Revenue
Walsall Council,http://opendatacommunities.org/id/metropolitan-district-council/walsall,WC80-257,31/05/2017,Adult Social Care,ANSON COURT RESIDENTIAL HOME,10/05/2017,"1,800.00",73373-RESIDENTIAL & NURSING CARE PLACEMENTS,OP COMMISSIONING,Third Party Payments,Revenue
Walsall Council,http://opendatacommunities.org/id/metropolitan-district-council/walsall,WC80-258,31/05/2017,Adult Social Care,ANSON COURT RESIDENTIAL HOME,10/05/2017,"1,800.00",73373-RESIDENTIAL & NURSING CARE PLACEMENTS,OP COMMISSIONING,Third Party Payments,Revenue
Walsall Council,http://opendatacommunities.org/id/metropolitan-district-council/walsall,WC80-259,31/05/2017,Adult Social Care,ANSON COURT RESIDENTIAL HOME,10/05/2017,"1,800.00",73373-RESIDENTIAL & NURSING CARE PLACEMENTS,OP COMMISSIONING,Third Party Payments,Revenue
Walsall Council,http://opendatacommunities.org/id/metropolitan-district-council/walsall,WC80-260,31/05/2017,Adult Social Care,ANSON COURT RESIDENTIAL HOME,10/05/2017,"1,800.00",73373-RESIDENTIAL & NURSING CARE PLACEMENTS,OP COMMISSIONING,Third Party Payments,Revenue
Walsall Council,http://opendatacommunities.org/id/metropolitan-district-council/walsall,WC80-261,31/05/2017,Adult Social Care,ANSON COURT RESIDENTIAL HOME,10/05/2017,"1,800.00",73373-RESIDENTIAL & NURSING CARE PLACEMENTS,MH COMMISSIONING,Third Party Payments,Revenue
Walsall Council,http://opendatacommunities.org/id/metropolitan-district-council/walsall,WC80-262,31/05/2017,Adult Social Care,ANSON COURT RESIDENTIAL HOME,10/05/2017,"1,800.00",73373-RESIDENTIAL & NURSING CARE PLACEMENTS,OP COMMISSIONING,Third Party Payments,Revenue
Walsall Council,http://opendatacommunities.org/id/metropolitan-district-council/walsall,WC80-263,31/05/2017,Adult Social Care,ANSON COURT RESIDENTIAL HOME,10/05/2017,"1,800.00",73373-RESIDENTIAL & NURSING CARE PLACEMENTS,OP COMMISSIONING,Third Party Payments,Revenue
Walsall Council,http://opendatacommunities.org/id/metropolitan-district-council/walsall,WC80-264,31/05/2017,Adult Social Care,ANSON COURT RESIDENTIAL HOME,10/05/2017,"1,800.00",73373-RESIDENTIAL & NURSING CARE PLACEMENTS,MH COMMISSIONING,Third Party Payments,Revenue
Walsall Council,http://opendatacommunities.org/id/metropolitan-district-council/walsall,WC80-265,31/05/2017,Adult Social Care,ANSON COURT RESIDENTIAL HOME,10/05/2017,"1,800.00",73373-RESIDENTIAL & NURSING CARE PLACEMENTS,OP COMMISSIONING,Third Party Payments,Revenue
Walsall Council,http://opendatacommunities.org/id/metropolitan-district-council/walsall,WC80-266,31/05/2017,Adult Social Care,ANSON COURT RESIDENTIAL HOME,10/05/2017,"1,800.00",73373-RESIDENTIAL & NURSING CARE PLACEMENTS,MH COMMISSIONING,Third Party Payments,Revenue
Walsall Council,http://opendatacommunities.org/id/metropolitan-district-council/walsall,WC80-267,31/05/2017,Adult Social Care,ANSON COURT RESIDENTIAL HOME,10/05/2017,"1,800.00",73373-RESIDENTIAL & NURSING CARE PLACEMENTS,OP COMMISSIONING,Third Party Payments,Revenue
Walsall Council,http://opendatacommunities.org/id/metropolitan-district-council/walsall,WC80-268,31/05/2017,Adult Social Care,ANSON COURT RESIDENTIAL HOME,10/05/2017,"1,800.00",73373-RESIDENTIAL & NURSING CARE PLACEMENTS,OP COMMISSIONING,Third Party Payments,Revenue
Walsall Council,http://opendatacommunities.org/id/metropolitan-district-council/walsall,WC80-269,31/05/2017,Adult Social Care,ANSON COURT RESIDENTIAL HOME,10/05/2017,"1,800.00",73373-RESIDENTIAL & NURSING CARE PLACEMENTS,OP COMMISSIONING,Third Party Payments,Revenue
Walsall Council,http://opendatacommunities.org/id/metropolitan-district-council/walsall,WC80-270,31/05/2017,Adult Social Care,ANSON COURT RESIDENTIAL HOME,10/05/2017,"1,800.00",73373-RESIDENTIAL & NURSING CARE PLACEMENTS,OP COMMISSIONING,Third Party Payments,Revenue
Walsall Council,http://opendatacommunities.org/id/metropolitan-district-council/walsall,WC80-271,31/05/2017,Adult Social Care,ANSON COURT RESIDENTIAL HOME,10/05/2017,"1,800.00",73373-RESIDENTIAL & NURSING CARE PLACEMENTS,OP COMMISSIONING,Third Party Payments,Revenue
Walsall Council,http://opendatacommunities.org/id/metropolitan-district-council/walsall,WC80-272,31/05/2017,Adult Social Care,ANSON COURT RESIDENTIAL HOME,10/05/2017,"1,800.00",73373-RESIDENTIAL & NURSING CARE PLACEMENTS,OP COMMISSIONING,Third Party Payments,Revenue
Walsall Council,http://opendatacommunities.org/id/metropolitan-district-council/walsall,WC80-273,31/05/2017,Adult Social Care,ANSON COURT RESIDENTIAL HOME,10/05/2017,"1,800.00",73373-RESIDENTIAL & NURSING CARE PLACEMENTS,OP COMMISSIONING,Third Party Payments,Revenue
Walsall Council,http://opendatacommunities.org/id/metropolitan-district-council/walsall,WC80-274,31/05/2017,Adult Social Care,ANSON COURT RESIDENTIAL HOME,10/05/2017,"1,800.00",73373-RESIDENTIAL & NURSING CARE PLACEMENTS,OP COMMISSIONING,Third Party Payments,Revenue
Walsall Council,http://opendatacommunities.org/id/metropolitan-district-council/walsall,WC80-275,31/05/2017,Adult Social Care,ANSON COURT RESIDENTIAL HOME,10/05/2017,"1,800.00",73373-RESIDENTIAL & NURSING CARE PLACEMENTS,OP COMMISSIONING,Third Party Payments,Revenue
Walsall Council,http://opendatacommunities.org/id/metropolitan-district-council/walsall,WC80-276,31/05/2017,Adult Social Care,ANSON COURT RESIDENTIAL HOME,16/05/2017,"1,800.00",73373-RESIDENTIAL & NURSING CARE PLACEMENTS,OP COMMISSIONING,Third Party Payments,Revenue
Walsall Council,http://opendatacommunities.org/id/metropolitan-district-council/walsall,WC80-277,31/05/2017,Adult Social Care,ANSON COURT RESIDENTIAL HOME,16/05/2017,"1,800.00",73373-RESIDENTIAL & NURSING CARE PLACEMENTS,OP COMMISSIONING,Third Party Payments,Revenue
Walsall Council,http://opendatacommunities.org/id/metropolitan-district-council/walsall,WC80-278,31/05/2017,Adult Social Care,ANSON COURT RESIDENTIAL HOME,10/05/2017,"1,880.00",73373-RESIDENTIAL & NURSING CARE PLACEMENTS,OP COMMISSIONING,Third Party Payments,Revenue
Walsall Council,http://opendatacommunities.org/id/metropolitan-district-council/walsall,WC80-279,31/05/2017,Adult Social Care,ANSON COURT RESIDENTIAL HOME,10/05/2017,"4,880.00",73373-RESIDENTIAL & NURSING CARE PLACEMENTS,MH COMMISSIONING,Third Party Payments,Revenue
Walsall Council,http://opendatacommunities.org/id/metropolitan-district-council/walsall,WC80-280,31/05/2017,Change and Governance,ANTALIS LIMITED,01/05/2017,659.63,60500-GENERAL MATERIALS,PRINTING SERVICES,Supplies & Services,Revenue
Walsall Council,http://opendatacommunities.org/id/metropolitan-district-council/walsall,WC80-281,31/05/2017,Childrens,REDACTED,08/05/2017,604.00,74510-RESIDENTS ORDERS,ADOPTION ALLOWANCES,Third Party Payments,Revenue
Walsall Council,http://opendatacommunities.org/id/metropolitan-district-council/walsall,WC80-282,31/05/2017,Childrens,REDACTED,08/05/2017,333.12,74509-SPECIAL GUARDIANSHIP ORDERS,ADOPTION ALLOWANCES,Transfer Payments,Revenue
Walsall Council,http://opendatacommunities.org/id/metropolitan-district-council/walsall,WC80-283,31/05/2017,Change and Governance,APCOA PARKING SERVICES (UK) LTD,15/05/2017,900.00,60006-NEW-FURNITURE & EQUIPMENT,MAYOR'S CIVIC AWARDS,Supplies & Services,Revenue
Walsall Council,http://opendatacommunities.org/id/metropolitan-district-council/walsall,WC80-284,31/05/2017,Economy & Environment,APCOA PARKING SERVICES (UK) LTD,10/05/2017,"41,400.49",73025-PROFESSIONAL SERVICES-PRIV CONTRACTOR & OTHER AGENCIES,PARKING SERVICES OFF-STREET,Third Party Payments,Revenue
Walsall Council,http://opendatacommunities.org/id/metropolitan-district-council/walsall,WC80-285,31/05/2017,Economy & Environment,APSE 001,30/05/2017,"3,618.00",63102-CONSULTANTS FEES - CORPORATE,NEIGHBOURHOOD SERVICES MANAGEMENT,Supplies & Services,Revenue
Walsall Council,http://opendatacommunities.org/id/metropolitan-district-council/walsall,WC80-286,31/05/2017,Economy & Environment,AQUALYMPIC,09/05/2017,375.00,60500-GENERAL MATERIALS,DARLASTON LEISURE CENTRE,Supplies & Services,Revenue
Walsall Council,http://opendatacommunities.org/id/metropolitan-district-council/walsall,WC80-287,31/05/2017,Economy & Environment,AQUALYMPIC,25/05/2017,445.00,34305-AGENCY STAFF-EMPLOYEES,BLOXWICH LEISURE CENTRE,Employees,Revenue
Walsall Council,http://opendatacommunities.org/id/metropolitan-district-council/walsall,WC80-288,31/05/2017,Economy & Environment,AQUALYMPIC,17/05/2017,535.00,30030-EXTERNAL TRAINING,DARLASTON LEISURE CENTRE,Employees,Revenue
Walsall Council,http://opendatacommunities.org/id/metropolitan-district-council/walsall,WC80-289,31/05/2017,Economy & Environment,AQUALYMPIC,08/05/2017,537.50,34305-AGENCY STAFF-EMPLOYEES,BLOXWICH LEISURE CENTRE,Employees,Revenue
Walsall Council,http://opendatacommunities.org/id/metropolitan-district-council/walsall,WC80-290,31/05/2017,Economy & Environment,AQUALYMPIC,25/05/2017,582.50,34305-AGENCY STAFF-EMPLOYEES,BLOXWICH LEISURE CENTRE,Employees,Revenue
Walsall Council,http://opendatacommunities.org/id/metropolitan-district-council/walsall,WC80-291,31/05/2017,Economy & Environment,AQUALYMPIC,16/05/2017,705.00,34305-AGENCY STAFF-EMPLOYEES,BLOXWICH LEISURE CENTRE,Employees,Revenue
Walsall Council,http://opendatacommunities.org/id/metropolitan-district-council/walsall,WC80-292,31/05/2017,Economy & Environment,AQUALYMPIC,22/05/2017,"1,297.50",34305-AGENCY STAFF-EMPLOYEES,OAK PARK,Employees,Revenue
Walsall Council,http://opendatacommunities.org/id/metropolitan-district-council/walsall,WC80-293,31/05/2017,Economy & Environment,AQUALYMPIC,22/05/2017,"1,610.00",34305-AGENCY STAFF-EMPLOYEES,OAK PARK,Employees,Revenue
Walsall Council,http://opendatacommunities.org/id/metropolitan-district-council/walsall,WC80-294,31/05/2017,Economy & Environment,AQUALYMPIC,10/05/2017,"1,747.50",34305-AGENCY STAFF-EMPLOYEES,OAK PARK,Employees,Revenue
Walsall Council,http://opendatacommunities.org/id/metropolitan-district-council/walsall,WC80-295,31/05/2017,Economy & Environment,AQUALYMPIC,08/05/2017,"2,025.00",34305-AGENCY STAFF-EMPLOYEES,OAK PARK,Employees,Revenue
Walsall Council,http://opendatacommunities.org/id/metropolitan-district-council/walsall,WC80-296,31/05/2017,Economy & Environment,AQUILA TRAINING SERVICES LTD,18/05/2017,"1,485.00",30030-EXTERNAL TRAINING,COMMUNITY PROTECTION,Employees,Revenue
Walsall Council,http://opendatacommunities.org/id/metropolitan-district-council/walsall,WC80-297,31/05/2017,Adult Social Care,ARBORETUM NURSING HOME.,16/05/2017,"-1,706.10",73373-RESIDENTIAL & NURSING CARE PLACEMENTS,OP COMMISSIONING,Third Party Payments,Revenue
Walsall Council,http://opendatacommunities.org/id/metropolitan-district-council/walsall,WC80-298,31/05/2017,Adult Social Care,ARBORETUM NURSING HOME.,16/05/2017,"2,274.80",73373-RESIDENTIAL & NURSING CARE PLACEMENTS,OP COMMISSIONING,Third Party Payments,Revenue
Walsall Council,http://opendatacommunities.org/id/metropolitan-district-council/walsall,WC80-299,31/05/2017,Adult Social Care,ARBORETUM NURSING HOME.,30/05/2017,"2,310.00",73373-RESIDENTIAL & NURSING CARE PLACEMENTS,OP COMMISSIONING,Third Party Payments,Revenue
Walsall Council,http://opendatacommunities.org/id/metropolitan-district-council/walsall,WC80-300,31/05/2017,Adult Social Care,ARBORETUM NURSING HOME.,16/05/2017,"2,356.04",73373-RESIDENTIAL & NURSING CARE PLACEMENTS,OP COMMISSIONING,Third Party Payments,Revenue
Walsall Council,http://opendatacommunities.org/id/metropolitan-district-council/walsall,WC80-301,31/05/2017,Adult Social Care,ARBORETUM NURSING HOME.,16/05/2017,"2,837.50",73373-RESIDENTIAL & NURSING CARE PLACEMENTS,PD COMMISSIONING,Third Party Payments,Revenue
Walsall Council,http://opendatacommunities.org/id/metropolitan-district-council/walsall,WC80-302,31/05/2017,Adult Social Care,ARBORETUM NURSING HOME.,16/05/2017,"2,837.50",73373-RESIDENTIAL & NURSING CARE PLACEMENTS,OP COMMISSIONING,Third Party Payments,Revenue
Walsall Council,http://opendatacommunities.org/id/metropolitan-district-council/walsall,WC80-303,31/05/2017,Adult Social Care,ARBORETUM NURSING HOME.,16/05/2017,"2,892.85",73373-RESIDENTIAL & NURSING CARE PLACEMENTS,OP COMMISSIONING,Third Party Payments,Revenue
Walsall Council,http://opendatacommunities.org/id/metropolitan-district-council/walsall,WC80-304,31/05/2017,Adult Social Care,ARBORETUM NURSING HOME.,16/05/2017,"2,893.80",73373-RESIDENTIAL & NURSING CARE PLACEMENTS,OP COMMISSIONING,Third Party Payments,Revenue
Walsall Council,http://opendatacommunities.org/id/metropolitan-district-council/walsall,WC80-305,31/05/2017,Adult Social Care,ARBORETUM NURSING HOME.,16/05/2017,"2,910.95",73373-RESIDENTIAL & NURSING CARE PLACEMENTS,OP COMMISSIONING,Third Party Payments,Revenue
Walsall Council,http://opendatacommunities.org/id/metropolitan-district-council/walsall,WC80-306,31/05/2017,Adult Social Care,ARBORETUM NURSING HOME.,16/05/2017,"2,937.50",73373-RESIDENTIAL & NURSING CARE PLACEMENTS,OP COMMISSIONING,Third Party Payments,Revenue
Walsall Council,http://opendatacommunities.org/id/metropolitan-district-council/walsall,WC80-307,31/05/2017,Adult Social Care,ARBORETUM NURSING HOME.,08/05/2017,"14,900.00",73019-PSE'S-PRIV CONTRACTOR FEES,TRANSITIONAL CARE SUPPORT TEAM,Third Party Payments,Revenue
Walsall Council,http://opendatacommunities.org/id/metropolitan-district-council/walsall,WC80-308,31/05/2017,Adult Social Care,ARBORETUM NURSING HOME.,24/05/2017,"14,900.00",73019-PSE'S-PRIV CONTRACTOR FEES,TRANSITIONAL CARE SUPPORT TEAM,Third Party Payments,Revenue
Walsall Council,http://opendatacommunities.org/id/metropolitan-district-council/walsall,WC80-309,31/05/2017,Economy & Environment,ARCHWAY TCS LTD,05/05/2017,439.19,73025-PROFESSIONAL SERVICES-PRIV CONTRACTOR & OTHER AGENCIES,DEPOT,Third Party Payments,Revenue
Walsall Council,http://opendatacommunities.org/id/metropolitan-district-council/walsall,WC80-310,31/05/2017,Economy & Environment,ARCHWAY TCS LTD,25/05/2017,707.50,60537-VEHICLE WASH PLANT-MATERIALS,DEPOT,Supplies & Services,Revenue
Walsall Council,http://opendatacommunities.org/id/metropolitan-district-council/walsall,WC80-311,31/05/2017,Economy & Environment,ARCO GROUP,22/05/2017,225.24,60514-MATERIALS TO STORES,FLEET PARTS STOCK ACCOUNT,Supplies & Services,Revenue
Walsall Council,http://opendatacommunities.org/id/metropolitan-district-council/walsall,WC80-312,31/05/2017,Childrens,ARNFIELD CARE LIMITED,22/05/2017,"15,616.00",74036-EXTERNAL RESIDENTIAL CARE-OTH AGENCY PROVISION,INDEPENDENT RESIDENTIAL HOMES,Third Party Payments,Revenue
Walsall Council,http://opendatacommunities.org/id/metropolitan-district-council/walsall,WC80-313,31/05/2017,Holding Accounts,ARTHUR J GALLAGHER T/A HEATH LAMBERT LIMITED,10/05/2017,"12,069.19",89012-TEACHERS SICKNESS SCHEME PREMIUM INSURANCE POLICY,PUBLIC LIABILITY,Supplies & Services,Revenue
Walsall Council,http://opendatacommunities.org/id/metropolitan-district-council/walsall,WC80-314,31/05/2017,Holding Accounts,ARTHUR J GALLAGHER T/A HEATH LAMBERT LIMITED,11/05/2017,"18,990.17",89012-TEACHERS SICKNESS SCHEME PREMIUM INSURANCE POLICY,PUBLIC LIABILITY,Supplies & Services,Revenue
Walsall Council,http://opendatacommunities.org/id/metropolitan-district-council/walsall,WC80-315,31/05/2017,Holding Accounts,ARTHUR J GALLAGHER T/A HEATH LAMBERT LIMITED,10/05/2017,"27,887.20",89012-TEACHERS SICKNESS SCHEME PREMIUM INSURANCE POLICY,PUBLIC LIABILITY,Supplies & Services,Revenue
Walsall Council,http://opendatacommunities.org/id/metropolitan-district-council/walsall,WC80-316,31/05/2017,Holding Accounts,ARTHUR J GALLAGHER T/A HEATH LAMBERT LIMITED,11/05/2017,"46,200.00",89012-TEACHERS SICKNESS SCHEME PREMIUM INSURANCE POLICY,PUBLIC LIABILITY,Supplies & Services,Revenue
Walsall Council,http://opendatacommunities.org/id/metropolitan-district-council/walsall,WC80-317,31/05/2017,Childrens,ARTHUR M GRIFFITHS & SON LTD,30/05/2017,"91,755.13",01006-SITE WORKS MAIN CONTRACTORS,CFR 929 FIBBERSLEY PRIMARY SIGNIFICANT ENLARGEMENT,Capital,Capital
Walsall Council,http://opendatacommunities.org/id/metropolitan-district-council/walsall,WC80-318,31/05/2017,Childrens,ARTHUR M GRIFFITHS & SON LTD,02/05/2017,"99,254.62",01006-SITE WORKS MAIN CONTRACTORS,CFR 929 FIBBERSLEY PRIMARY SIGNIFICANT ENLARGEMENT,Capital,Capital
Walsall Council,http://opendatacommunities.org/id/metropolitan-district-council/walsall,WC80-319,31/05/2017,Adult Social Care,ASH GRANGE CARE HOME,01/05/2017,"-1,718.75",73373-RESIDENTIAL & NURSING CARE PLACEMENTS,OP COMMISSIONING,Third Party Payments,Revenue
Walsall Council,http://opendatacommunities.org/id/metropolitan-district-council/walsall,WC80-320,31/05/2017,Adult Social Care,ASH GRANGE CARE HOME,01/05/2017,-491.07,73373-RESIDENTIAL & NURSING CARE PLACEMENTS,OP COMMISSIONING,Third Party Payments,Revenue
Walsall Council,http://opendatacommunities.org/id/metropolitan-district-council/walsall,WC80-321,31/05/2017,Adult Social Care,ASH GRANGE CARE HOME,10/05/2017,357.14,73373-RESIDENTIAL & NURSING CARE PLACEMENTS,OP COMMISSIONING,Third Party Payments,Revenue
Walsall Council,http://opendatacommunities.org/id/metropolitan-district-council/walsall,WC80-322,31/05/2017,Adult Social Care,ASH GRANGE CARE HOME,30/05/2017,398.70,73373-RESIDENTIAL & NURSING CARE PLACEMENTS,OP COMMISSIONING,Third Party Payments,Revenue
Walsall Council,http://opendatacommunities.org/id/metropolitan-district-council/walsall,WC80-323,31/05/2017,Adult Social Care,ASH GRANGE CARE HOME,30/05/2017,513.39,73373-RESIDENTIAL & NURSING CARE PLACEMENTS,OP COMMISSIONING,Third Party Payments,Revenue
Walsall Council,http://opendatacommunities.org/id/metropolitan-district-council/walsall,WC80-324,31/05/2017,Adult Social Care,ASH GRANGE CARE HOME,30/05/2017,620.20,73373-RESIDENTIAL & NURSING CARE PLACEMENTS,OP COMMISSIONING,Third Party Payments,Revenue
Walsall Council,http://opendatacommunities.org/id/metropolitan-district-council/walsall,WC80-325,31/05/2017,Adult Social Care,ASH GRANGE CARE HOME,30/05/2017,625.00,73373-RESIDENTIAL & NURSING CARE PLACEMENTS,OP COMMISSIONING,Third Party Payments,Revenue
Walsall Council,http://opendatacommunities.org/id/metropolitan-district-council/walsall,WC80-326,31/05/2017,Adult Social Care,ASH GRANGE CARE HOME,30/05/2017,625.00,73373-RESIDENTIAL & NURSING CARE PLACEMENTS,OP COMMISSIONING,Third Party Payments,Revenue
Walsall Council,http://opendatacommunities.org/id/metropolitan-district-council/walsall,WC80-327,31/05/2017,Adult Social Care,ASH GRANGE CARE HOME,30/05/2017,625.00,73373-RESIDENTIAL & NURSING CARE PLACEMENTS,OP COMMISSIONING,Third Party Payments,Revenue
Walsall Council,http://opendatacommunities.org/id/metropolitan-district-council/walsall,WC80-328,31/05/2017,Adult Social Care,ASH GRANGE CARE HOME,30/05/2017,625.00,73373-RESIDENTIAL & NURSING CARE PLACEMENTS,OP COMMISSIONING,Third Party Payments,Revenue
Walsall Council,http://opendatacommunities.org/id/metropolitan-district-council/walsall,WC80-329,31/05/2017,Adult Social Care,ASH GRANGE CARE HOME,30/05/2017,625.00,73373-RESIDENTIAL & NURSING CARE PLACEMENTS,OP COMMISSIONING,Third Party Payments,Revenue
Walsall Council,http://opendatacommunities.org/id/metropolitan-district-council/walsall,WC80-330,31/05/2017,Adult Social Care,ASH GRANGE CARE HOME,30/05/2017,625.00,73373-RESIDENTIAL & NURSING CARE PLACEMENTS,OP COMMISSIONING,Third Party Payments,Revenue
Walsall Council,http://opendatacommunities.org/id/metropolitan-district-council/walsall,WC80-331,31/05/2017,Adult Social Care,ASH GRANGE CARE HOME,10/05/2017,664.50,73373-RESIDENTIAL & NURSING CARE PLACEMENTS,OP COMMISSIONING,Third Party Payments,Revenue
Walsall Council,http://opendatacommunities.org/id/metropolitan-district-council/walsall,WC80-332,31/05/2017,Adult Social Care,ASH GRANGE CARE HOME,10/05/2017,"1,102.74",73373-RESIDENTIAL & NURSING CARE PLACEMENTS,OP COMMISSIONING,Third Party Payments,Revenue
Walsall Council,http://opendatacommunities.org/id/metropolitan-district-council/walsall,WC80-333,31/05/2017,Adult Social Care,ASH GRANGE CARE HOME,25/05/2017,"1,620.00",73373-RESIDENTIAL & NURSING CARE PLACEMENTS,OP COMMISSIONING,Third Party Payments,Revenue
Walsall Council,http://opendatacommunities.org/id/metropolitan-district-council/walsall,WC80-334,31/05/2017,Adult Social Care,ASH GRANGE CARE HOME,25/05/2017,"1,620.00",73373-RESIDENTIAL & NURSING CARE PLACEMENTS,OP COMMISSIONING,Third Party Payments,Revenue
Walsall Council,http://opendatacommunities.org/id/metropolitan-district-council/walsall,WC80-335,31/05/2017,Adult Social Care,ASH GRANGE CARE HOME,25/05/2017,"1,863.40",73373-RESIDENTIAL & NURSING CARE PLACEMENTS,OP COMMISSIONING,Third Party Payments,Revenue
Walsall Council,http://opendatacommunities.org/id/metropolitan-district-council/walsall,WC80-336,31/05/2017,Adult Social Care,ASH GRANGE CARE HOME,25/05/2017,"1,929.80",73373-RESIDENTIAL & NURSING CARE PLACEMENTS,OP COMMISSIONING,Third Party Payments,Revenue
Walsall Council,http://opendatacommunities.org/id/metropolitan-district-council/walsall,WC80-337,31/05/2017,Adult Social Care,ASH GRANGE CARE HOME,10/05/2017,"2,067.64",73373-RESIDENTIAL & NURSING CARE PLACEMENTS,OP COMMISSIONING,Third Party Payments,Revenue
Walsall Council,http://opendatacommunities.org/id/metropolitan-district-council/walsall,WC80-338,31/05/2017,Adult Social Care,ASH GRANGE CARE HOME,25/05/2017,"2,270.00",73373-RESIDENTIAL & NURSING CARE PLACEMENTS,OP COMMISSIONING,Third Party Payments,Revenue
Walsall Council,http://opendatacommunities.org/id/metropolitan-district-council/walsall,WC80-339,31/05/2017,Adult Social Care,ASH GRANGE CARE HOME,25/05/2017,"2,270.00",73373-RESIDENTIAL & NURSING CARE PLACEMENTS,OP COMMISSIONING,Third Party Payments,Revenue
Walsall Council,http://opendatacommunities.org/id/metropolitan-district-council/walsall,WC80-340,31/05/2017,Adult Social Care,ASH GRANGE CARE HOME,25/05/2017,"2,283.60",73373-RESIDENTIAL & NURSING CARE PLACEMENTS,OP COMMISSIONING,Third Party Payments,Revenue
Walsall Council,http://opendatacommunities.org/id/metropolitan-district-council/walsall,WC80-341,31/05/2017,Adult Social Care,ASH GRANGE CARE HOME,25/05/2017,"2,283.60",73373-RESIDENTIAL & NURSING CARE PLACEMENTS,OP COMMISSIONING,Third Party Payments,Revenue
Walsall Council,http://opendatacommunities.org/id/metropolitan-district-council/walsall,WC80-342,31/05/2017,Adult Social Care,ASH GRANGE CARE HOME,25/05/2017,"2,283.60",73373-RESIDENTIAL & NURSING CARE PLACEMENTS,OP COMMISSIONING,Third Party Payments,Revenue
Walsall Council,http://opendatacommunities.org/id/metropolitan-district-council/walsall,WC80-343,31/05/2017,Adult Social Care,ASH GRANGE CARE HOME,25/05/2017,"2,283.60",73373-RESIDENTIAL & NURSING CARE PLACEMENTS,OP COMMISSIONING,Third Party Payments,Revenue
Walsall Council,http://opendatacommunities.org/id/metropolitan-district-council/walsall,WC80-344,31/05/2017,Adult Social Care,ASH GRANGE CARE HOME,25/05/2017,"2,283.60",73373-RESIDENTIAL & NURSING CARE PLACEMENTS,OP COMMISSIONING,Third Party Payments,Revenue
Walsall Council,http://opendatacommunities.org/id/metropolitan-district-council/walsall,WC80-345,31/05/2017,Adult Social Care,ASH GRANGE CARE HOME,25/05/2017,"2,283.60",73373-RESIDENTIAL & NURSING CARE PLACEMENTS,MH COMMISSIONING,Third Party Payments,Revenue
Walsall Council,http://opendatacommunities.org/id/metropolitan-district-council/walsall,WC80-346,31/05/2017,Adult Social Care,ASH GRANGE CARE HOME,25/05/2017,"2,283.60",73373-RESIDENTIAL & NURSING CARE PLACEMENTS,OP COMMISSIONING,Third Party Payments,Revenue
Walsall Council,http://opendatacommunities.org/id/metropolitan-district-council/walsall,WC80-347,31/05/2017,Adult Social Care,ASH GRANGE CARE HOME,25/05/2017,"2,283.60",73373-RESIDENTIAL & NURSING CARE PLACEMENTS,OP COMMISSIONING,Third Party Payments,Revenue
Walsall Council,http://opendatacommunities.org/id/metropolitan-district-council/walsall,WC80-348,31/05/2017,Adult Social Care,ASH GRANGE CARE HOME,25/05/2017,"2,367.24",73373-RESIDENTIAL & NURSING CARE PLACEMENTS,OP COMMISSIONING,Third Party Payments,Revenue
Walsall Council,http://opendatacommunities.org/id/metropolitan-district-council/walsall,WC80-349,31/05/2017,Adult Social Care,ASH GRANGE CARE HOME,25/05/2017,"2,483.60",73373-RESIDENTIAL & NURSING CARE PLACEMENTS,OP COMMISSIONING,Third Party Payments,Revenue
Walsall Council,http://opendatacommunities.org/id/metropolitan-district-council/walsall,WC80-350,31/05/2017,Adult Social Care,ASH GRANGE CARE HOME,25/05/2017,"2,499.60",73373-RESIDENTIAL & NURSING CARE PLACEMENTS,MH COMMISSIONING,Third Party Payments,Revenue
Walsall Council,http://opendatacommunities.org/id/metropolitan-district-council/walsall,WC80-351,31/05/2017,Adult Social Care,ASH GRANGE CARE HOME,25/05/2017,"2,523.60",73373-RESIDENTIAL & NURSING CARE PLACEMENTS,OP COMMISSIONING,Third Party Payments,Revenue
Walsall Council,http://opendatacommunities.org/id/metropolitan-district-council/walsall,WC80-352,31/05/2017,Adult Social Care,ASH GRANGE CARE HOME,25/05/2017,"3,115.92",73373-RESIDENTIAL & NURSING CARE PLACEMENTS,PD COMMISSIONING,Third Party Payments,Revenue
Walsall Council,http://opendatacommunities.org/id/metropolitan-district-council/walsall,WC80-353,31/05/2017,Adult Social Care,ASHBOURNE LODGE,16/05/2017,"2,173.99",73373-RESIDENTIAL & NURSING CARE PLACEMENTS,OP COMMISSIONING,Third Party Payments,Revenue
Walsall Council,http://opendatacommunities.org/id/metropolitan-district-council/walsall,WC80-354,31/05/2017,Adult Social Care,REDACTED,09/05/2017,276.96,76422-DIRECT PAYMENTS TO SOCIAL SERVICES CLIENTS,LD COMMISSIONING,Transfer Payments,Revenue
Walsall Council,http://opendatacommunities.org/id/metropolitan-district-council/walsall,WC80-355,31/05/2017,Economy & Environment,ASHTON ENGINEERING CO LTD,05/05/2017,545.00,60006-NEW-FURNITURE & EQUIPMENT,FLEET,Supplies & Services,Revenue
Walsall Council,http://opendatacommunities.org/id/metropolitan-district-council/walsall,WC80-356,31/05/2017,Economy & Environment,ASKEWS AND HOLTS LIBRARY SERVICES LTD,17/05/2017,"1,116.00",60501-LIBRARY BOOKS,LIBRARY STOCK AND PERFORMANCE,Supplies & Services,Revenue
Walsall Council,http://opendatacommunities.org/id/metropolitan-district-council/walsall,WC80-357,31/05/2017,Adult Social Care,REDACTED,09/05/2017,756.00,76422-DIRECT PAYMENTS TO SOCIAL SERVICES CLIENTS,PD COMMISSIONING,Transfer Payments,Revenue
Walsall Council,http://opendatacommunities.org/id/metropolitan-district-council/walsall,WC80-358,31/05/2017,Childrens,ASPIRE RESIDENTIAL CARE HOME,22/05/2017,"1,457.59",74036-EXTERNAL RESIDENTIAL CARE-OTH AGENCY PROVISION,INDEPENDENT RESIDENTIAL HOMES,Third Party Payments,Revenue
Walsall Council,http://opendatacommunities.org/id/metropolitan-district-council/walsall,WC80-359,31/05/2017,Economy & Environment,ATHWAL NEWS LTD,08/05/2017,286.14,60501-LIBRARY BOOKS,LIBRARY STOCK AND PERFORMANCE,Supplies & Services,Revenue
Walsall Council,http://opendatacommunities.org/id/metropolitan-district-council/walsall,WC80-360,31/05/2017,Childrens,ATTACHMENT CONCERNS LTD,09/05/2017,"4,969.00",63000-PROFESSIONAL FEES AND SERVICES,ADOPTION TEAM,Supplies & Services,Revenue
Walsall Council,http://opendatacommunities.org/id/metropolitan-district-council/walsall,WC80-361,31/05/2017,Childrens,ATTACHMENT CONCERNS LTD,09/05/2017,"5,000.00",63000-PROFESSIONAL FEES AND SERVICES,ADOPTION TEAM,Supplies & Services,Revenue
Walsall Council,http://opendatacommunities.org/id/metropolitan-district-council/walsall,WC80-362,31/05/2017,Change and Governance,AURORA GRAPHICS & DISPLAYS LTD,01/05/2017,75.92,60500-GENERAL MATERIALS,PRINTING SERVICES,Supplies & Services,Revenue
Walsall Council,http://opendatacommunities.org/id/metropolitan-district-council/walsall,WC80-363,31/05/2017,Change and Governance,AURORA GRAPHICS & DISPLAYS LTD,01/05/2017,267.38,62008-OUTWORK-PRINT ROOM,PRINTING SERVICES,Supplies & Services,Revenue
Walsall Council,http://opendatacommunities.org/id/metropolitan-district-council/walsall,WC80-364,31/05/2017,Change and Governance,AURORA GRAPHICS & DISPLAYS LTD,08/05/2017,"3,375.46",62008-OUTWORK-PRINT ROOM,PRINTING SERVICES,Supplies & Services,Revenue
Walsall Council,http://opendatacommunities.org/id/metropolitan-district-council/walsall,WC80-365,31/05/2017,Adult Social Care,AUTISM WEST MIDLANDS,30/05/2017,"7,237.71",73373-RESIDENTIAL & NURSING CARE PLACEMENTS,LD COMMISSIONING,Third Party Payments,Revenue
Walsall Council,http://opendatacommunities.org/id/metropolitan-district-council/walsall,WC80-366,31/05/2017,Adult Social Care,AUTISM WEST MIDLANDS 001,30/05/2017,"4,838.06",73373-RESIDENTIAL & NURSING CARE PLACEMENTS,LD COMMISSIONING,Third Party Payments,Revenue
Walsall Council,http://opendatacommunities.org/id/metropolitan-district-council/walsall,WC80-367,31/05/2017,Adult Social Care,REDACTED,09/05/2017,989.04,76422-DIRECT PAYMENTS TO SOCIAL SERVICES CLIENTS,OP COMMISSIONING,Transfer Payments,Revenue
Walsall Council,http://opendatacommunities.org/id/metropolitan-district-council/walsall,WC80-368,31/05/2017,Childrens,AXCIS EDUCATION RECRUITMENT,08/05/2017,388.00,66502-TOP UP FUNDING -GRANTS TO SCHOOLS,INDEPENDENT PROVIDERS - SPECIAL & AP,Third Party Payments,Revenue
Walsall Council,http://opendatacommunities.org/id/metropolitan-district-council/walsall,WC80-369,31/05/2017,Childrens,AXCIS EDUCATION RECRUITMENT,04/05/2017,485.00,66502-TOP UP FUNDING -GRANTS TO SCHOOLS,INDEPENDENT PROVIDERS - SPECIAL & AP,Third Party Payments,Revenue
Walsall Council,http://opendatacommunities.org/id/metropolitan-district-council/walsall,WC80-370,31/05/2017,Childrens,AXCIS EDUCATION RECRUITMENT,04/05/2017,485.00,66502-TOP UP FUNDING -GRANTS TO SCHOOLS,INDEPENDENT PROVIDERS - SPECIAL & AP,Third Party Payments,Revenue
Walsall Council,http://opendatacommunities.org/id/metropolitan-district-council/walsall,WC80-371,31/05/2017,Childrens,AXCIS EDUCATION RECRUITMENT,17/05/2017,485.00,66502-TOP UP FUNDING -GRANTS TO SCHOOLS,INDEPENDENT PROVIDERS - SPECIAL & AP,Third Party Payments,Revenue
Walsall Council,http://opendatacommunities.org/id/metropolitan-district-council/walsall,WC80-372,31/05/2017,Economy & Environment,AXMINSTER POWER TOOL CENTRE,08/05/2017,404.93,60512-LOOSE TOOLS & CONSUMABLES,TECHNICAL/ART HANDLING,Supplies & Services,Revenue
Walsall Council,http://opendatacommunities.org/id/metropolitan-district-council/walsall,WC80-373,31/05/2017,Childrens,REDACTED,09/05/2017,"1,284.00",76422-DIRECT PAYMENTS TO SOCIAL SERVICES CLIENTS,FAMILY SUPPORT - DIRECT PAYMENTS,Transfer Payments,Revenue
Walsall Council,http://opendatacommunities.org/id/metropolitan-district-council/walsall,WC80-374,31/05/2017,Adult Social Care,REDACTED,09/05/2017,"2,808.00",76422-DIRECT PAYMENTS TO SOCIAL SERVICES CLIENTS,LD COMMISSIONING,Transfer Payments,Revenue
Walsall Council,http://opendatacommunities.org/id/metropolitan-district-council/walsall,WC80-375,31/05/2017,Economy & Environment,B & S CHAINS LTD,09/05/2017,796.50,60500-GENERAL MATERIALS,INFRASTRUCTURE MAINTENANCE,Supplies & Services,Revenue
Walsall Council,http://opendatacommunities.org/id/metropolitan-district-council/walsall,WC80-376,31/05/2017,Childrens,REDACTED,08/05/2017,"1,333.00",60500-GENERAL MATERIALS,PRIMARY CONSULTATIVE GROUP,Supplies & Services,Revenue
Walsall Council,http://opendatacommunities.org/id/metropolitan-district-council/walsall,WC80-377,31/05/2017,Childrens,REDACTED,08/05/2017,805.89,74506-TRAVEL-FOSTER CARERS,FAMILY & FRIENDS FOSTER CARE PROVISION,Transfer Payments,Revenue
Walsall Council,http://opendatacommunities.org/id/metropolitan-district-council/walsall,WC80-378,31/05/2017,Childrens,REDACTED,08/05/2017,985.76,74501-MAINTENANCE ALLOWANCE-FOSTER CARERS,FAMILY & FRIENDS FOSTER CARE PROVISION,Transfer Payments,Revenue
Walsall Council,http://opendatacommunities.org/id/metropolitan-district-council/walsall,WC80-379,31/05/2017,Change and Governance,B E FURNITURE LTD T/A B E EVENTHIRE,10/05/2017,"1,514.05",60009-LEASING/HIRE/RENTAL-EQUIPMENT,ELECTORAL ADMINISTRATION,Supplies & Services,Revenue
Walsall Council,http://opendatacommunities.org/id/metropolitan-district-council/walsall,WC80-380,31/05/2017,Childrens,REDACTED,09/05/2017,464.00,76000-TRANSFER PAYMENTS - SOCIAL SERVICES CLIENTS,TRANSITION AND LEAVING CARE,Transfer Payments,Revenue
Walsall Council,http://opendatacommunities.org/id/metropolitan-district-council/walsall,WC80-381,31/05/2017,Childrens,REDACTED,09/05/2017,464.00,76000-TRANSFER PAYMENTS - SOCIAL SERVICES CLIENTS,TRANSITION AND LEAVING CARE,Transfer Payments,Revenue
Walsall Council,http://opendatacommunities.org/id/metropolitan-district-council/walsall,WC80-382,31/05/2017,Childrens,REDACTED,23/05/2017,464.00,76000-TRANSFER PAYMENTS - SOCIAL SERVICES CLIENTS,TRANSITION AND LEAVING CARE,Transfer Payments,Revenue
Walsall Council,http://opendatacommunities.org/id/metropolitan-district-council/walsall,WC80-383,31/05/2017,Childrens,REDACTED,23/05/2017,464.00,76000-TRANSFER PAYMENTS - SOCIAL SERVICES CLIENTS,TRANSITION AND LEAVING CARE,Transfer Payments,Revenue
Walsall Council,http://opendatacommunities.org/id/metropolitan-district-council/walsall,WC80-384,31/05/2017,Economy & Environment,B3 CREATIVE LTD,03/05/2017,"1,335.00",60500-GENERAL MATERIALS,A STARS PROJECT,Supplies & Services,Revenue
Walsall Council,http://opendatacommunities.org/id/metropolitan-district-council/walsall,WC80-385,31/05/2017,Change and Governance,BABCOCK INTERNATIONAL GROUP,01/05/2017,480.00,30030-EXTERNAL TRAINING,FINANCE,Employees,Revenue
Walsall Council,http://opendatacommunities.org/id/metropolitan-district-council/walsall,WC80-386,31/05/2017,Change and Governance,BACS PAYMENT SCHEMES LIMITED,03/05/2017,"1,500.00",64500-PUBLICATIONS/ORGANISATIONS-SUBSCRIPTIONS,CORPORATE PAYROLL & PENSIONS TEAM,Supplies & Services,Revenue
Walsall Council,http://opendatacommunities.org/id/metropolitan-district-council/walsall,WC80-387,31/05/2017,Change and Governance,BADENOCH & CLARK 002,22/05/2017,"3,742.60",34305-AGENCY STAFF-EMPLOYEES,CORPORATE MANAGEMENT TEAM,Employees,Revenue
Walsall Council,http://opendatacommunities.org/id/metropolitan-district-council/walsall,WC80-388,31/05/2017,Change and Governance,BADENOCH & CLARK 002,22/05/2017,"3,742.60",34305-AGENCY STAFF-EMPLOYEES,CORPORATE MANAGEMENT TEAM,Employees,Revenue
Walsall Council,http://opendatacommunities.org/id/metropolitan-district-council/walsall,WC80-389,31/05/2017,Change and Governance,BADENOCH & CLARK 002,22/05/2017,"4,678.25",34305-AGENCY STAFF-EMPLOYEES,CORPORATE MANAGEMENT TEAM,Employees,Revenue
Walsall Council,http://opendatacommunities.org/id/metropolitan-district-council/walsall,WC80-390,31/05/2017,Change and Governance,BADENOCH & CLARK 002,24/05/2017,"4,678.25",34305-AGENCY STAFF-EMPLOYEES,CORPORATE MANAGEMENT TEAM,Employees,Revenue
Walsall Council,http://opendatacommunities.org/id/metropolitan-district-council/walsall,WC80-391,31/05/2017,Economy & Environment,BAKER HALL PARTNERSHIP,18/05/2017,662.50,63000-PROFESSIONAL FEES AND SERVICES,BUILDING CONTROL REVENUE FUNDED,Supplies & Services,Revenue
Walsall Council,http://opendatacommunities.org/id/metropolitan-district-council/walsall,WC80-392,31/05/2017,Adult Social Care,REDACTED,09/05/2017,480.00,76422-DIRECT PAYMENTS TO SOCIAL SERVICES CLIENTS,MH COMMISSIONING,Transfer Payments,Revenue
Walsall Council,http://opendatacommunities.org/id/metropolitan-district-council/walsall,WC80-393,31/05/2017,Adult Social Care,REDACTED,09/05/2017,"2,849.92",76422-DIRECT PAYMENTS TO SOCIAL SERVICES CLIENTS,LD COMMISSIONING,Transfer Payments,Revenue
Walsall Council,http://opendatacommunities.org/id/metropolitan-district-council/walsall,WC80-394,31/05/2017,Adult Social Care,REDACTED,09/05/2017,800.00,76422-DIRECT PAYMENTS TO SOCIAL SERVICES CLIENTS,OP COMMISSIONING,Transfer Payments,Revenue
Walsall Council,http://opendatacommunities.org/id/metropolitan-district-council/walsall,WC80-395,31/05/2017,Adult Social Care,REDACTED,09/05/2017,"1,582.86",76422-DIRECT PAYMENTS TO SOCIAL SERVICES CLIENTS,OP COMMISSIONING,Transfer Payments,Revenue
Walsall Council,http://opendatacommunities.org/id/metropolitan-district-council/walsall,WC80-396,31/05/2017,Childrens,REDACTED,08/05/2017,9.24,60006-NEW-FURNITURE & EQUIPMENT,FAMILY & FRIENDS FOSTER CARE PROVISION,Supplies & Services,Revenue
Walsall Council,http://opendatacommunities.org/id/metropolitan-district-council/walsall,WC80-397,31/05/2017,Childrens,REDACTED,08/05/2017,345.24,74508-INTERNAL FOSTER CARERS-CARER FEES,FAMILY & FRIENDS FOSTER CARE PROVISION,Transfer Payments,Revenue
Walsall Council,http://opendatacommunities.org/id/metropolitan-district-council/walsall,WC80-398,31/05/2017,Childrens,REDACTED,08/05/2017,571.44,74501-MAINTENANCE ALLOWANCE-FOSTER CARERS,FAMILY & FRIENDS FOSTER CARE PROVISION,Transfer Payments,Revenue
Walsall Council,http://opendatacommunities.org/id/metropolitan-district-council/walsall,WC80-399,31/05/2017,Adult Social Care,REDACTED,09/05/2017,849.64,76422-DIRECT PAYMENTS TO SOCIAL SERVICES CLIENTS,OP COMMISSIONING,Transfer Payments,Revenue
Walsall Council,http://opendatacommunities.org/id/metropolitan-district-council/walsall,WC80-400,31/05/2017,Childrens,BARNARDOS SERVICES LTD,09/05/2017,-856.00,74037-INDEPENDENT FOSTER CARE-OTH AGENCY PROVISION,EXTERNAL FOSTER CARE PROVISION,Third Party Payments,Revenue
Walsall Council,http://opendatacommunities.org/id/metropolitan-district-council/walsall,WC80-401,31/05/2017,Childrens,BARNARDOS SERVICES LTD,09/05/2017,-820.80,74037-INDEPENDENT FOSTER CARE-OTH AGENCY PROVISION,EXTERNAL FOSTER CARE PROVISION,Third Party Payments,Revenue
Walsall Council,http://opendatacommunities.org/id/metropolitan-district-council/walsall,WC80-402,31/05/2017,Childrens,BARNARDOS SERVICES LTD,09/05/2017,856.00,74037-INDEPENDENT FOSTER CARE-OTH AGENCY PROVISION,EXTERNAL FOSTER CARE PROVISION,Third Party Payments,Revenue
Walsall Council,http://opendatacommunities.org/id/metropolitan-district-council/walsall,WC80-403,31/05/2017,Childrens,BARNARDOS SERVICES LTD,17/05/2017,"2,750.00",69400-REFERENCE BOOKS,PARENTING TEAM,Supplies & Services,Revenue
Walsall Council,http://opendatacommunities.org/id/metropolitan-district-council/walsall,WC80-404,31/05/2017,Childrens,BARNARDOS SERVICES LTD,08/05/2017,"2,872.80",74037-INDEPENDENT FOSTER CARE-OTH AGENCY PROVISION,EXTERNAL FOSTER CARE PROVISION,Third Party Payments,Revenue
Walsall Council,http://opendatacommunities.org/id/metropolitan-district-council/walsall,WC80-405,31/05/2017,Childrens,BARNARDOS SERVICES LTD,08/05/2017,"2,996.00",74037-INDEPENDENT FOSTER CARE-OTH AGENCY PROVISION,EXTERNAL FOSTER CARE PROVISION,Third Party Payments,Revenue
Walsall Council,http://opendatacommunities.org/id/metropolitan-district-council/walsall,WC80-406,31/05/2017,Childrens,BARNARDOS SERVICES LTD,22/05/2017,"3,111.68",74037-INDEPENDENT FOSTER CARE-OTH AGENCY PROVISION,EXTERNAL FOSTER CARE PROVISION,Third Party Payments,Revenue
Walsall Council,http://opendatacommunities.org/id/metropolitan-district-council/walsall,WC80-407,31/05/2017,Childrens,BARNARDOS SERVICES LTD,01/05/2017,"3,180.60",74037-INDEPENDENT FOSTER CARE-OTH AGENCY PROVISION,EXTERNAL FOSTER CARE PROVISION,Third Party Payments,Revenue
Walsall Council,http://opendatacommunities.org/id/metropolitan-district-council/walsall,WC80-408,31/05/2017,Childrens,BARNARDOS SERVICES LTD,02/05/2017,"3,180.60",74037-INDEPENDENT FOSTER CARE-OTH AGENCY PROVISION,EXTERNAL FOSTER CARE PROVISION,Third Party Payments,Revenue
Walsall Council,http://opendatacommunities.org/id/metropolitan-district-council/walsall,WC80-409,31/05/2017,Childrens,BARNARDOS SERVICES LTD,01/05/2017,"3,317.00",74037-INDEPENDENT FOSTER CARE-OTH AGENCY PROVISION,EXTERNAL FOSTER CARE PROVISION,Third Party Payments,Revenue
Walsall Council,http://opendatacommunities.org/id/metropolitan-district-council/walsall,WC80-410,31/05/2017,Childrens,BARNARDOS SERVICES LTD,02/05/2017,"3,317.00",74037-INDEPENDENT FOSTER CARE-OTH AGENCY PROVISION,EXTERNAL FOSTER CARE PROVISION,Third Party Payments,Revenue
Walsall Council,http://opendatacommunities.org/id/metropolitan-district-council/walsall,WC80-411,31/05/2017,Change and Governance,BARNBOROUGH LTD,25/05/2017,"1,905.90",60007-REPAIR OF EQUIPMENT-EQUIPMENT,CL ADMIN,Supplies & Services,Revenue
Walsall Council,http://opendatacommunities.org/id/metropolitan-district-council/walsall,WC80-412,31/05/2017,Adult Social Care,REDACTED,09/05/2017,490.40,76422-DIRECT PAYMENTS TO SOCIAL SERVICES CLIENTS,OP COMMISSIONING,Transfer Payments,Revenue
Walsall Council,http://opendatacommunities.org/id/metropolitan-district-council/walsall,WC80-413,31/05/2017,Adult Social Care,BAT FABRICATIONS LTD,26/05/2017,"9,650.00",01006-SITE WORKS MAIN CONTRACTORS,CFR 772 SUPPORTING INDEPENDENCE,Capital,Capital
Walsall Council,http://opendatacommunities.org/id/metropolitan-district-council/walsall,WC80-414,31/05/2017,Economy & Environment,BEADEN POWERLEC LIMITED,22/05/2017,230.00,60006-NEW-FURNITURE & EQUIPMENT,WALSALL GALA CENTRE,Supplies & Services,Revenue
Walsall Council,http://opendatacommunities.org/id/metropolitan-district-council/walsall,WC80-415,31/05/2017,Childrens,REDACTED,22/05/2017,9.24,60006-NEW-FURNITURE & EQUIPMENT,INTERNAL FOSTER CARE PROVISION,Supplies & Services,Revenue
Walsall Council,http://opendatacommunities.org/id/metropolitan-district-council/walsall,WC80-416,31/05/2017,Childrens,REDACTED,22/05/2017,530.96,74508-INTERNAL FOSTER CARERS-CARER FEES,INTERNAL FOSTER CARE PROVISION,Transfer Payments,Revenue
Walsall Council,http://opendatacommunities.org/id/metropolitan-district-council/walsall,WC80-417,31/05/2017,Childrens,REDACTED,22/05/2017,9.24,60006-NEW-FURNITURE & EQUIPMENT,INTERNAL FOSTER CARE PROVISION,Supplies & Services,Revenue
Walsall Council,http://opendatacommunities.org/id/metropolitan-district-council/walsall,WC80-418,31/05/2017,Childrens,REDACTED,22/05/2017,78.96,74506-TRAVEL-FOSTER CARERS,INTERNAL FOSTER CARE PROVISION,Transfer Payments,Revenue
Walsall Council,http://opendatacommunities.org/id/metropolitan-district-council/walsall,WC80-419,31/05/2017,Childrens,REDACTED,22/05/2017,285.72,74504-HOLIDAY/CHRISTMAS ALLOWANCE-FOSTER CARERS,INTERNAL FOSTER CARE PROVISION,Transfer Payments,Revenue
Walsall Council,http://opendatacommunities.org/id/metropolitan-district-council/walsall,WC80-420,31/05/2017,Childrens,REDACTED,22/05/2017,530.96,74508-INTERNAL FOSTER CARERS-CARER FEES,INTERNAL FOSTER CARE PROVISION,Transfer Payments,Revenue
Walsall Council,http://opendatacommunities.org/id/metropolitan-district-council/walsall,WC80-421,31/05/2017,Childrens,REDACTED,22/05/2017,571.44,74501-MAINTENANCE ALLOWANCE-FOSTER CARERS,INTERNAL FOSTER CARE PROVISION,Transfer Payments,Revenue
Walsall Council,http://opendatacommunities.org/id/metropolitan-district-council/walsall,WC80-422,31/05/2017,Holding Accounts,BELL LAX SOLICITORS,01/05/2017,"4,663.30",67001-MISC INSURANCES - PAYMENT OF CLAIMS,PUBLIC LIABILITY,Supplies & Services,Revenue
Walsall Council,http://opendatacommunities.org/id/metropolitan-district-council/walsall,WC80-423,31/05/2017,Adult Social Care,BELVIDERE COURT,16/05/2017,"1,826.56",73373-RESIDENTIAL & NURSING CARE PLACEMENTS,OP COMMISSIONING,Third Party Payments,Revenue
Walsall Council,http://opendatacommunities.org/id/metropolitan-district-council/walsall,WC80-424,31/05/2017,Adult Social Care,BELVIDERE COURT,16/05/2017,"1,826.56",73373-RESIDENTIAL & NURSING CARE PLACEMENTS,OP COMMISSIONING,Third Party Payments,Revenue
Walsall Council,http://opendatacommunities.org/id/metropolitan-district-council/walsall,WC80-425,31/05/2017,Adult Social Care,BELVIDERE COURT,16/05/2017,"1,886.26",73373-RESIDENTIAL & NURSING CARE PLACEMENTS,MH COMMISSIONING,Third Party Payments,Revenue
Walsall Council,http://opendatacommunities.org/id/metropolitan-district-council/walsall,WC80-426,31/05/2017,Adult Social Care,BELVIDERE COURT,16/05/2017,"3,764.29",73373-RESIDENTIAL & NURSING CARE PLACEMENTS,MH COMMISSIONING,Third Party Payments,Revenue
Walsall Council,http://opendatacommunities.org/id/metropolitan-district-council/walsall,WC80-427,31/05/2017,Adult Social Care,REDACTED,09/05/2017,"2,310.00",76422-DIRECT PAYMENTS TO SOCIAL SERVICES CLIENTS,LD COMMISSIONING,Transfer Payments,Revenue
Walsall Council,http://opendatacommunities.org/id/metropolitan-district-council/walsall,WC80-428,31/05/2017,Economy & Environment,REDACTED,01/05/2017,378.00,63000-PROFESSIONAL FEES AND SERVICES,EDUCATION INFORMAL,Supplies & Services,Revenue
Walsall Council,http://opendatacommunities.org/id/metropolitan-district-council/walsall,WC80-429,31/05/2017,Childrens,BERRY GIFFORD LTD,03/05/2017,"2,022.50",76010-ACCOMMODATION AND RELATED COSTS-ASSISTANCE TO S/S CLIENTS,TRANSITION AND LEAVING CARE,Transfer Payments,Revenue
Walsall Council,http://opendatacommunities.org/id/metropolitan-district-council/walsall,WC80-430,31/05/2017,Childrens,BERRY GIFFORD LTD,22/05/2017,"8,667.60",76010-ACCOMMODATION AND RELATED COSTS-ASSISTANCE TO S/S CLIENTS,TRANSITION AND LEAVING CARE,Transfer Payments,Revenue
Walsall Council,http://opendatacommunities.org/id/metropolitan-district-council/walsall,WC80-431,31/05/2017,Childrens,BERRY GIFFORD LTD,03/05/2017,"8,956.52",76010-ACCOMMODATION AND RELATED COSTS-ASSISTANCE TO S/S CLIENTS,TRANSITION AND LEAVING CARE,Transfer Payments,Revenue
Walsall Council,http://opendatacommunities.org/id/metropolitan-district-council/walsall,WC80-432,31/05/2017,Adult Social Care,REDACTED,09/05/2017,912.00,76422-DIRECT PAYMENTS TO SOCIAL SERVICES CLIENTS,OP COMMISSIONING,Transfer Payments,Revenue
Walsall Council,http://opendatacommunities.org/id/metropolitan-district-council/walsall,WC80-433,31/05/2017,Childrens,REDACTED,22/05/2017,9.24,60006-NEW-FURNITURE & EQUIPMENT,INTERNAL FOSTER CARE PROVISION,Supplies & Services,Revenue
Walsall Council,http://opendatacommunities.org/id/metropolitan-district-council/walsall,WC80-434,31/05/2017,Childrens,REDACTED,22/05/2017,285.72,74504-HOLIDAY/CHRISTMAS ALLOWANCE-FOSTER CARERS,INTERNAL FOSTER CARE PROVISION,Transfer Payments,Revenue
Walsall Council,http://opendatacommunities.org/id/metropolitan-district-council/walsall,WC80-435,31/05/2017,Childrens,REDACTED,22/05/2017,285.72,74504-HOLIDAY/CHRISTMAS ALLOWANCE-FOSTER CARERS,INTERNAL FOSTER CARE PROVISION,Transfer Payments,Revenue
Walsall Council,http://opendatacommunities.org/id/metropolitan-district-council/walsall,WC80-436,31/05/2017,Childrens,REDACTED,22/05/2017,571.44,74501-MAINTENANCE ALLOWANCE-FOSTER CARERS,INTERNAL FOSTER CARE PROVISION,Transfer Payments,Revenue
Walsall Council,http://opendatacommunities.org/id/metropolitan-district-council/walsall,WC80-437,31/05/2017,Childrens,REDACTED,22/05/2017,571.44,74501-MAINTENANCE ALLOWANCE-FOSTER CARERS,INTERNAL FOSTER CARE PROVISION,Transfer Payments,Revenue
Walsall Council,http://opendatacommunities.org/id/metropolitan-district-council/walsall,WC80-438,31/05/2017,Childrens,REDACTED,22/05/2017,"1,436.08",74508-INTERNAL FOSTER CARERS-CARER FEES,INTERNAL FOSTER CARE PROVISION,Transfer Payments,Revenue
Walsall Council,http://opendatacommunities.org/id/metropolitan-district-council/walsall,WC80-439,31/05/2017,Adult Social Care,REDACTED,09/05/2017,968.00,76422-DIRECT PAYMENTS TO SOCIAL SERVICES CLIENTS,OP COMMISSIONING,Transfer Payments,Revenue
Walsall Council,http://opendatacommunities.org/id/metropolitan-district-council/walsall,WC80-440,31/05/2017,Childrens,BES REHAB LIMITED,01/05/2017,355.00,60006-NEW-FURNITURE & EQUIPMENT,SEN ASSESSMENT,Supplies & Services,Revenue
Walsall Council,http://opendatacommunities.org/id/metropolitan-district-council/walsall,WC80-441,31/05/2017,Adult Social Care,BESCOT LODGE RESIDENTIAL CARE HOME,25/05/2017,"-3,278.57",73373-RESIDENTIAL & NURSING CARE PLACEMENTS,OP COMMISSIONING,Third Party Payments,Revenue
Walsall Council,http://opendatacommunities.org/id/metropolitan-district-council/walsall,WC80-442,31/05/2017,Adult Social Care,BESCOT LODGE RESIDENTIAL CARE HOME,25/05/2017,"-1,928.57",73373-RESIDENTIAL & NURSING CARE PLACEMENTS,OP COMMISSIONING,Third Party Payments,Revenue
Walsall Council,http://opendatacommunities.org/id/metropolitan-district-council/walsall,WC80-443,31/05/2017,Adult Social Care,BESCOT LODGE RESIDENTIAL CARE HOME,25/05/2017,"1,028.57",73373-RESIDENTIAL & NURSING CARE PLACEMENTS,LD COMMISSIONING,Third Party Payments,Revenue
Walsall Council,http://opendatacommunities.org/id/metropolitan-district-council/walsall,WC80-444,31/05/2017,Adult Social Care,BESCOT LODGE RESIDENTIAL CARE HOME,01/05/2017,"1,735.72",73373-RESIDENTIAL & NURSING CARE PLACEMENTS,OP COMMISSIONING,Third Party Payments,Revenue
Walsall Council,http://opendatacommunities.org/id/metropolitan-district-council/walsall,WC80-445,31/05/2017,Adult Social Care,BESCOT LODGE RESIDENTIAL CARE HOME,01/05/2017,"1,793.57",73373-RESIDENTIAL & NURSING CARE PLACEMENTS,OP COMMISSIONING,Third Party Payments,Revenue
Walsall Council,http://opendatacommunities.org/id/metropolitan-district-council/walsall,WC80-446,31/05/2017,Adult Social Care,BESCOT LODGE RESIDENTIAL CARE HOME,25/05/2017,"1,793.57",73373-RESIDENTIAL & NURSING CARE PLACEMENTS,OP COMMISSIONING,Third Party Payments,Revenue
Walsall Council,http://opendatacommunities.org/id/metropolitan-district-council/walsall,WC80-447,31/05/2017,Adult Social Care,BESCOT LODGE RESIDENTIAL CARE HOME,25/05/2017,"1,793.57",73373-RESIDENTIAL & NURSING CARE PLACEMENTS,OP COMMISSIONING,Third Party Payments,Revenue
Walsall Council,http://opendatacommunities.org/id/metropolitan-district-council/walsall,WC80-448,31/05/2017,Adult Social Care,BESCOT LODGE RESIDENTIAL CARE HOME,25/05/2017,"1,793.58",73373-RESIDENTIAL & NURSING CARE PLACEMENTS,OP COMMISSIONING,Third Party Payments,Revenue
Walsall Council,http://opendatacommunities.org/id/metropolitan-district-council/walsall,WC80-449,31/05/2017,Adult Social Care,BESCOT LODGE RESIDENTIAL CARE HOME,01/05/2017,"1,928.57",73373-RESIDENTIAL & NURSING CARE PLACEMENTS,OP COMMISSIONING,Third Party Payments,Revenue
Walsall Council,http://opendatacommunities.org/id/metropolitan-district-council/walsall,WC80-450,31/05/2017,Adult Social Care,BESCOT LODGE RESIDENTIAL CARE HOME,25/05/2017,"1,992.86",73373-RESIDENTIAL & NURSING CARE PLACEMENTS,OP COMMISSIONING,Third Party Payments,Revenue
Walsall Council,http://opendatacommunities.org/id/metropolitan-district-council/walsall,WC80-451,31/05/2017,Adult Social Care,BESCOT LODGE RESIDENTIAL CARE HOME,25/05/2017,"1,992.86",73373-RESIDENTIAL & NURSING CARE PLACEMENTS,OP COMMISSIONING,Third Party Payments,Revenue
Walsall Council,http://opendatacommunities.org/id/metropolitan-district-council/walsall,WC80-452,31/05/2017,Adult Social Care,BESCOT LODGE RESIDENTIAL CARE HOME,01/05/2017,"2,057.14",73373-RESIDENTIAL & NURSING CARE PLACEMENTS,OP COMMISSIONING,Third Party Payments,Revenue
Walsall Council,http://opendatacommunities.org/id/metropolitan-district-council/walsall,WC80-453,31/05/2017,Economy & Environment,BESCOT STADIUM SUNDAY MARKET LTD,16/05/2017,"2,800.00",73025-PROFESSIONAL SERVICES-PRIV CONTRACTOR & OTHER AGENCIES,WILLENHALL MARKET,Third Party Payments,Revenue
Walsall Council,http://opendatacommunities.org/id/metropolitan-district-council/walsall,WC80-454,31/05/2017,Adult Social Care,BESS CARE LIMITED,17/05/2017,435.00,73372-DOMICILIARY CARE,OP COMMISSIONING,Third Party Payments,Revenue
Walsall Council,http://opendatacommunities.org/id/metropolitan-district-council/walsall,WC80-455,31/05/2017,Adult Social Care,BETHPHAGE.,03/05/2017,"2,496.00",73374-SUPPORTED & OTHER ACCOMMODATION,LD COMMISSIONING,Third Party Payments,Revenue
Walsall Council,http://opendatacommunities.org/id/metropolitan-district-council/walsall,WC80-456,31/05/2017,Adult Social Care,BETHPHAGE.,22/05/2017,"3,831.92",73374-SUPPORTED & OTHER ACCOMMODATION,LD COMMISSIONING,Third Party Payments,Revenue
Walsall Council,http://opendatacommunities.org/id/metropolitan-district-council/walsall,WC80-457,31/05/2017,Adult Social Care,BETHPHAGE.,22/05/2017,"3,831.92",73374-SUPPORTED & OTHER ACCOMMODATION,LD COMMISSIONING,Third Party Payments,Revenue
Walsall Council,http://opendatacommunities.org/id/metropolitan-district-council/walsall,WC80-458,31/05/2017,Adult Social Care,BETHPHAGE.,22/05/2017,"3,831.92",73374-SUPPORTED & OTHER ACCOMMODATION,LD COMMISSIONING,Third Party Payments,Revenue
Walsall Council,http://opendatacommunities.org/id/metropolitan-district-council/walsall,WC80-459,31/05/2017,Adult Social Care,BETHPHAGE.,22/05/2017,"3,831.92",73374-SUPPORTED & OTHER ACCOMMODATION,LD COMMISSIONING,Third Party Payments,Revenue
Walsall Council,http://opendatacommunities.org/id/metropolitan-district-council/walsall,WC80-460,31/05/2017,Adult Social Care,BETHPHAGE.,23/05/2017,"3,831.92",73374-SUPPORTED & OTHER ACCOMMODATION,LD COMMISSIONING,Third Party Payments,Revenue
Walsall Council,http://opendatacommunities.org/id/metropolitan-district-council/walsall,WC80-461,31/05/2017,Adult Social Care,BETHPHAGE.,23/05/2017,"3,831.92",73374-SUPPORTED & OTHER ACCOMMODATION,LD COMMISSIONING,Third Party Payments,Revenue
Walsall Council,http://opendatacommunities.org/id/metropolitan-district-council/walsall,WC80-462,31/05/2017,Adult Social Care,BETHPHAGE.,22/05/2017,"4,789.90",73374-SUPPORTED & OTHER ACCOMMODATION,LD COMMISSIONING,Third Party Payments,Revenue
Walsall Council,http://opendatacommunities.org/id/metropolitan-district-council/walsall,WC80-463,31/05/2017,Adult Social Care,BETHPHAGE.,22/05/2017,"4,789.90",73374-SUPPORTED & OTHER ACCOMMODATION,LD COMMISSIONING,Third Party Payments,Revenue
Walsall Council,http://opendatacommunities.org/id/metropolitan-district-council/walsall,WC80-464,31/05/2017,Adult Social Care,BETHPHAGE.,22/05/2017,"4,789.90",73374-SUPPORTED & OTHER ACCOMMODATION,LD COMMISSIONING,Third Party Payments,Revenue
Walsall Council,http://opendatacommunities.org/id/metropolitan-district-council/walsall,WC80-465,31/05/2017,Adult Social Care,REDACTED,09/05/2017,949.52,76422-DIRECT PAYMENTS TO SOCIAL SERVICES CLIENTS,MH COMMISSIONING,Transfer Payments,Revenue
Walsall Council,http://opendatacommunities.org/id/metropolitan-district-council/walsall,WC80-466,31/05/2017,Adult Social Care,REDACTED,09/05/2017,"2,767.84",76422-DIRECT PAYMENTS TO SOCIAL SERVICES CLIENTS,OP COMMISSIONING,Transfer Payments,Revenue
Walsall Council,http://opendatacommunities.org/id/metropolitan-district-council/walsall,WC80-467,31/05/2017,Change and Governance,BFA SAFETY TRAINING,24/05/2017,595.00,30030-EXTERNAL TRAINING,HEALTH & SAFETY,Employees,Revenue
Walsall Council,http://opendatacommunities.org/id/metropolitan-district-council/walsall,WC80-468,31/05/2017,Economy & Environment,BIBLIOGRAPHIC DATA SERVICES LTD,03/05/2017,"3,715.00",60501-LIBRARY BOOKS,LIBRARY STOCK AND PERFORMANCE,Supplies & Services,Revenue
Walsall Council,http://opendatacommunities.org/id/metropolitan-district-council/walsall,WC80-469,31/05/2017,Childrens,REDACTED,09/05/2017,487.72,76422-DIRECT PAYMENTS TO SOCIAL SERVICES CLIENTS,FAMILY SUPPORT - DIRECT PAYMENTS,Transfer Payments,Revenue
Walsall Council,http://opendatacommunities.org/id/metropolitan-district-council/walsall,WC80-470,31/05/2017,Childrens,REDACTED,09/05/2017,572.00,76422-DIRECT PAYMENTS TO SOCIAL SERVICES CLIENTS,FAMILY SUPPORT - DIRECT PAYMENTS,Transfer Payments,Revenue
Walsall Council,http://opendatacommunities.org/id/metropolitan-district-council/walsall,WC80-471,31/05/2017,Change and Governance,BIRCHFIELDS HEATING SERVICE LTD,10/05/2017,"2,463.00",01046-OTHER GRANTS,CFR 908 FUEL POVERTY FUND,Capital,Capital
Walsall Council,http://opendatacommunities.org/id/metropolitan-district-council/walsall,WC80-472,31/05/2017,Childrens,BIRCHILLS C OF E COMMUNITY ACADEMY,11/05/2017,"-2,648.47",66502-TOP UP FUNDING -GRANTS TO SCHOOLS,BIRCHILLS CE COMMUNITY ACADEMY,Third Party Payments,Revenue
Walsall Council,http://opendatacommunities.org/id/metropolitan-district-council/walsall,WC80-473,31/05/2017,Change and Governance,BIRCHILLS SPORTS ACADEMY,10/05/2017,"1,132.70",62515-MISCELLANEOUS SUPPLIES,AREA 4 - WALSALL SOUTH,Supplies & Services,Revenue
Walsall Council,http://opendatacommunities.org/id/metropolitan-district-council/walsall,WC80-474,31/05/2017,Economy & Environment,BIRMINGHAM CHILDRENS HOSPITAL,04/05/2017,681.42,63000-PROFESSIONAL FEES AND SERVICES,CORONERS SERVICE,Supplies & Services,Revenue
Walsall Council,http://opendatacommunities.org/id/metropolitan-district-council/walsall,WC80-475,31/05/2017,Childrens,BIRMINGHAM CITY COUNCIL,22/05/2017,"1,956.16",74037-INDEPENDENT FOSTER CARE-OTH AGENCY PROVISION,EXTERNAL FOSTER CARE PROVISION,Third Party Payments,Revenue
Walsall Council,http://opendatacommunities.org/id/metropolitan-district-council/walsall,WC80-476,31/05/2017,Childrens,BIRMINGHAM CITY COUNCIL,01/05/2017,"2,586.69",66502-TOP UP FUNDING -GRANTS TO SCHOOLS,MAINTAINED PROVIDERS,Third Party Payments,Revenue
Walsall Council,http://opendatacommunities.org/id/metropolitan-district-council/walsall,WC80-477,31/05/2017,Childrens,BIRMINGHAM CITY COUNCIL,01/05/2017,"2,586.69",66502-TOP UP FUNDING -GRANTS TO SCHOOLS,MAINTAINED PROVIDERS,Third Party Payments,Revenue
Walsall Council,http://opendatacommunities.org/id/metropolitan-district-council/walsall,WC80-478,31/05/2017,Childrens,BIRMINGHAM CITY COUNCIL,01/05/2017,"2,586.69",66502-TOP UP FUNDING -GRANTS TO SCHOOLS,MAINTAINED PROVIDERS,Third Party Payments,Revenue
Walsall Council,http://opendatacommunities.org/id/metropolitan-district-council/walsall,WC80-479,31/05/2017,Childrens,BIRMINGHAM CITY COUNCIL,03/05/2017,"3,283.52",52000-WITH DRIVER-HIRE OF VEHICLES,SCHOOL TRANSPORT,Transport,Revenue
Walsall Council,http://opendatacommunities.org/id/metropolitan-district-council/walsall,WC80-480,31/05/2017,Economy & Environment,BIRMINGHAM CITY UNIVERSITY,01/05/2017,"2,400.00",30030-EXTERNAL TRAINING,PUBLIC HEALTH BUSINESS SUPPORT,Employees,Revenue
Walsall Council,http://opendatacommunities.org/id/metropolitan-district-council/walsall,WC80-481,31/05/2017,Childrens,BITTESWELL EMPLOYMENT ALLIANC,09/05/2017,415.08,60006-NEW-FURNITURE & EQUIPMENT,EARLY YEARS AND DISABILITIES SERVICE,Supplies & Services,Revenue
Walsall Council,http://opendatacommunities.org/id/metropolitan-district-council/walsall,WC80-482,31/05/2017,Economy & Environment,BLACK COUNTRY CONSORTIUM LIMITED,17/05/2017,"90,530.33",01045-PRIVATE GRANTS,CFR 1072 CAPITALISATION OF PROJECT OFFICER COSTS,Capital,Capital
Walsall Council,http://opendatacommunities.org/id/metropolitan-district-council/walsall,WC80-483,31/05/2017,Economy & Environment,BLACK COUNTRY CONSORTIUM LIMITED,01/05/2017,"103,322.00",64500-PUBLICATIONS/ORGANISATIONS-SUBSCRIPTIONS,MS-HEAD OF STRATEGIC REGENERATION,Supplies & Services,Revenue
Walsall Council,http://opendatacommunities.org/id/metropolitan-district-council/walsall,WC80-484,31/05/2017,Childrens,BLACK COUNTRY WOMENS AID,17/05/2017,"16,654.25",63000-PROFESSIONAL FEES AND SERVICES,TOXIC TRIO,Supplies & Services,Revenue
Walsall Council,http://opendatacommunities.org/id/metropolitan-district-council/walsall,WC80-485,31/05/2017,Childrens,BLACK COUNTRY WOMENS AID,09/05/2017,"18,309.21",63000-PROFESSIONAL FEES AND SERVICES,TOXIC TRIO,Supplies & Services,Revenue
Walsall Council,http://opendatacommunities.org/id/metropolitan-district-council/walsall,WC80-486,31/05/2017,Childrens,BLACK COUNTRY WOMENS AID,09/05/2017,"18,309.21",63000-PROFESSIONAL FEES AND SERVICES,TOXIC TRIO,Supplies & Services,Revenue
Walsall Council,http://opendatacommunities.org/id/metropolitan-district-council/walsall,WC80-487,31/05/2017,Childrens,BLAKENALL HEATH JMI SCHOOL,04/05/2017,"56,580.00",77302-ISB-SCHOOL STANDARDS GRANT,BLAKENALL HEATH JUNIOR SCHOOL,Transfer Payments,Revenue
Walsall Council,http://opendatacommunities.org/id/metropolitan-district-council/walsall,WC80-488,31/05/2017,Childrens,BLAKENALL HEATH JMI SCHOOL,01/05/2017,"97,059.04",77300-ISB-FORMULA ALLOCATION,BLAKENALL HEATH JUNIOR SCHOOL,Transfer Payments,Revenue
Walsall Council,http://opendatacommunities.org/id/metropolitan-district-council/walsall,WC80-489,31/05/2017,Childrens,BLOXWICH ACADEMY,01/05/2017,"1,522.58",66505-OTHER-GRANTS TO OTHER ORGS,EARLY YEARS - 3 YR OLDS,Third Party Payments,Revenue
Walsall Council,http://opendatacommunities.org/id/metropolitan-district-council/walsall,WC80-490,31/05/2017,Adult Social Care,BLOXWICH COMMUNITY PARTNERSHIP.,12/05/2017,297.00,73372-DOMICILIARY CARE,MH COMMISSIONING,Third Party Payments,Revenue
Walsall Council,http://opendatacommunities.org/id/metropolitan-district-council/walsall,WC80-491,31/05/2017,Childrens,BLUE GIRAFFE CHILDCARE,08/05/2017,586.80,66505-OTHER-GRANTS TO OTHER ORGS,EARLY YEARS - 2 YR OLDS,Third Party Payments,Revenue
Walsall Council,http://opendatacommunities.org/id/metropolitan-district-council/walsall,WC80-492,31/05/2017,Economy & Environment,BME UNITED LTD,01/05/2017,"7,206.00",63000-PROFESSIONAL FEES AND SERVICES,SMOKING CESSATION,Supplies & Services,Revenue
Walsall Council,http://opendatacommunities.org/id/metropolitan-district-council/walsall,WC80-493,31/05/2017,Economy & Environment,BOC LTD,17/05/2017,335.73,60514-MATERIALS TO STORES,FLEET PARTS STOCK ACCOUNT,Supplies & Services,Revenue
Walsall Council,http://opendatacommunities.org/id/metropolitan-district-council/walsall,WC80-494,31/05/2017,Adult Social Care,BOLDMERE COURT CARE HOME,16/05/2017,"1,826.43",73373-RESIDENTIAL & NURSING CARE PLACEMENTS,OP COMMISSIONING,Third Party Payments,Revenue
Walsall Council,http://opendatacommunities.org/id/metropolitan-district-council/walsall,WC80-495,31/05/2017,Adult Social Care,BOLDMERE COURT CARE HOME,16/05/2017,"3,594.21",73373-RESIDENTIAL & NURSING CARE PLACEMENTS,OP COMMISSIONING,Third Party Payments,Revenue
Walsall Council,http://opendatacommunities.org/id/metropolitan-district-council/walsall,WC80-496,31/05/2017,Childrens,BOOKTRUST,17/05/2017,"2,583.58",63000-PROFESSIONAL FEES AND SERVICES,VIRTUAL SCHOOL CENTRAL PUPIL PREMIUM,Supplies & Services,Revenue
Walsall Council,http://opendatacommunities.org/id/metropolitan-district-council/walsall,WC80-497,31/05/2017,Childrens,BOULTON TRAVEL LIMITED,05/05/2017,390.00,52000-WITH DRIVER-HIRE OF VEHICLES,SCHOOL TRANSPORT,Transport,Revenue
Walsall Council,http://opendatacommunities.org/id/metropolitan-district-council/walsall,WC80-498,31/05/2017,Childrens,BOULTON TRAVEL LIMITED,05/05/2017,"1,130.00",52000-WITH DRIVER-HIRE OF VEHICLES,SCHOOL TRANSPORT,Transport,Revenue
Walsall Council,http://opendatacommunities.org/id/metropolitan-district-council/walsall,WC80-499,31/05/2017,Childrens,BOULTON TRAVEL LIMITED,05/05/2017,"1,270.00",52000-WITH DRIVER-HIRE OF VEHICLES,SCHOOL TRANSPORT,Transport,Revenue
Walsall Council,http://opendatacommunities.org/id/metropolitan-district-council/walsall,WC80-500,31/05/2017,Adult Social Care,BOWDEN DERRA PARK,01/05/2017,"10,502.76",73373-RESIDENTIAL & NURSING CARE PLACEMENTS,LD COMMISSIONING,Third Party Payments,Revenue
Walsall Council,http://opendatacommunities.org/id/metropolitan-district-council/walsall,WC80-501,31/05/2017,Adult Social Care,BOWDEN DERRA PARK,30/05/2017,"10,502.76",73373-RESIDENTIAL & NURSING CARE PLACEMENTS,LD COMMISSIONING,Third Party Payments,Revenue
Walsall Council,http://opendatacommunities.org/id/metropolitan-district-council/walsall,WC80-502,31/05/2017,Economy & Environment,BRADVALE LTD T/A INSPIRE HEALTHCARE SERVICES,08/05/2017,288.88,60008-MAINTENANCE-FURNITURE & EQUIPMENT,WALSALL GALA CENTRE,Supplies & Services,Revenue
Walsall Council,http://opendatacommunities.org/id/metropolitan-district-council/walsall,WC80-503,31/05/2017,Economy & Environment,BRADVALE LTD T/A INSPIRE HEALTHCARE SERVICES,25/05/2017,341.11,60500-GENERAL MATERIALS,ARBORETUM VISITOR CENTRE,Supplies & Services,Revenue
Walsall Council,http://opendatacommunities.org/id/metropolitan-district-council/walsall,WC80-504,31/05/2017,Economy & Environment,BRADVALE LTD T/A INSPIRE HEALTHCARE SERVICES,17/05/2017,583.20,60500-GENERAL MATERIALS,ARBORETUM VISITOR CENTRE,Supplies & Services,Revenue
Walsall Council,http://opendatacommunities.org/id/metropolitan-district-council/walsall,WC80-505,31/05/2017,Economy & Environment,BRADVALE LTD T/A INSPIRE HEALTHCARE SERVICES,25/05/2017,583.20,60500-GENERAL MATERIALS,ARBORETUM VISITOR CENTRE,Supplies & Services,Revenue
Walsall Council,http://opendatacommunities.org/id/metropolitan-district-council/walsall,WC80-506,31/05/2017,Economy & Environment,BRADVALE LTD T/A INSPIRE HEALTHCARE SERVICES,17/05/2017,751.03,63121-DISPOSAL OF WASTE-SERVICES-FEES,BLOXWICH LEISURE CENTRE,Supplies & Services,Revenue
Walsall Council,http://opendatacommunities.org/id/metropolitan-district-council/walsall,WC80-507,31/05/2017,Change and Governance,BRAMBLE HUB LIMITED,03/05/2017,"76,509.40",63800-COMPUTER EQUIPMENT AND SUPPLIES,FINANCIAL SYSTEMS,Supplies & Services,Revenue
Walsall Council,http://opendatacommunities.org/id/metropolitan-district-council/walsall,WC80-508,31/05/2017,Adult Social Care,BRAMBLES RESIDENTIAL CARE HOME,01/05/2017,"2,065.72",73373-RESIDENTIAL & NURSING CARE PLACEMENTS,MH COMMISSIONING,Third Party Payments,Revenue
Walsall Council,http://opendatacommunities.org/id/metropolitan-district-council/walsall,WC80-509,31/05/2017,Adult Social Care,BRAMBLES RESIDENTIAL CARE HOME,01/05/2017,"2,134.58",73373-RESIDENTIAL & NURSING CARE PLACEMENTS,MH COMMISSIONING,Third Party Payments,Revenue
Walsall Council,http://opendatacommunities.org/id/metropolitan-district-council/walsall,WC80-510,31/05/2017,Adult Social Care,BRAMBLES RESIDENTIAL CARE HOME,16/05/2017,"2,134.58",73373-RESIDENTIAL & NURSING CARE PLACEMENTS,MH COMMISSIONING,Third Party Payments,Revenue
Walsall Council,http://opendatacommunities.org/id/metropolitan-district-council/walsall,WC80-511,31/05/2017,Childrens,BRANAS ISAF PERSONAL DEVELOPMENT CENTRE LTD,22/05/2017,"18,000.00",74036-EXTERNAL RESIDENTIAL CARE-OTH AGENCY PROVISION,INDEPENDENT RESIDENTIAL HOMES,Third Party Payments,Revenue
Walsall Council,http://opendatacommunities.org/id/metropolitan-district-council/walsall,WC80-512,31/05/2017,Adult Social Care,REDACTED,09/05/2017,440.00,76422-DIRECT PAYMENTS TO SOCIAL SERVICES CLIENTS,LD COMMISSIONING,Transfer Payments,Revenue
Walsall Council,http://opendatacommunities.org/id/metropolitan-district-council/walsall,WC80-513,31/05/2017,Childrens,REDACTED,22/05/2017,9.24,60006-NEW-FURNITURE & EQUIPMENT,INTERNAL FOSTER CARE PROVISION,Supplies & Services,Revenue
Walsall Council,http://opendatacommunities.org/id/metropolitan-district-council/walsall,WC80-514,31/05/2017,Childrens,REDACTED,22/05/2017,810.32,74501-MAINTENANCE ALLOWANCE-FOSTER CARERS,INTERNAL FOSTER CARE PROVISION,Transfer Payments,Revenue
Walsall Council,http://opendatacommunities.org/id/metropolitan-district-council/walsall,WC80-515,31/05/2017,Childrens,REDACTED,22/05/2017,810.32,74501-MAINTENANCE ALLOWANCE-FOSTER CARERS,INTERNAL FOSTER CARE PROVISION,Transfer Payments,Revenue
Walsall Council,http://opendatacommunities.org/id/metropolitan-district-council/walsall,WC80-516,31/05/2017,Childrens,REDACTED,22/05/2017,"1,436.08",74508-INTERNAL FOSTER CARERS-CARER FEES,INTERNAL FOSTER CARE PROVISION,Transfer Payments,Revenue
Walsall Council,http://opendatacommunities.org/id/metropolitan-district-council/walsall,WC80-517,31/05/2017,Adult Social Care,REDACTED,04/05/2017,"1,337.64",73374-SUPPORTED & OTHER ACCOMMODATION,LD COMMISSIONING,Third Party Payments,Revenue
Walsall Council,http://opendatacommunities.org/id/metropolitan-district-council/walsall,WC80-518,31/05/2017,Adult Social Care,REDACTED,04/05/2017,"1,597.60",73374-SUPPORTED & OTHER ACCOMMODATION,LD COMMISSIONING,Third Party Payments,Revenue
Walsall Council,http://opendatacommunities.org/id/metropolitan-district-council/walsall,WC80-519,31/05/2017,Adult Social Care,REDACTED,09/05/2017,"1,726.40",76422-DIRECT PAYMENTS TO SOCIAL SERVICES CLIENTS,OP COMMISSIONING,Transfer Payments,Revenue
Walsall Council,http://opendatacommunities.org/id/metropolitan-district-council/walsall,WC80-520,31/05/2017,Adult Social Care,REDACTED,09/05/2017,738.00,76422-DIRECT PAYMENTS TO SOCIAL SERVICES CLIENTS,OP COMMISSIONING,Transfer Payments,Revenue
Walsall Council,http://opendatacommunities.org/id/metropolitan-district-council/walsall,WC80-521,31/05/2017,Economy & Environment,BRIGHT BOOKS,09/05/2017,"2,999.91",60501-LIBRARY BOOKS,LIBRARY STOCK AND PERFORMANCE,Supplies & Services,Revenue
Walsall Council,http://opendatacommunities.org/id/metropolitan-district-council/walsall,WC80-522,31/05/2017,Childrens,BRIGHT HORIZONS (WISHING WILLOW),22/05/2017,274.91,63120-CRECHE FACILITIES-SERVICES-FEES,FAMILY PLACEMENTS,Supplies & Services,Revenue
Walsall Council,http://opendatacommunities.org/id/metropolitan-district-council/walsall,WC80-523,31/05/2017,Change and Governance,BRITISH GAS BUSINESS,31/05/2017,"-9,102.73",42000-GAS-ENERGY COSTS,CENTRALISED ENERGY,Premises,Revenue
Walsall Council,http://opendatacommunities.org/id/metropolitan-district-council/walsall,WC80-524,31/05/2017,Change and Governance,BRITISH GAS BUSINESS,02/05/2017,"-7,411.98",42000-GAS-ENERGY COSTS,CENTRALISED ENERGY,Premises,Revenue
Walsall Council,http://opendatacommunities.org/id/metropolitan-district-council/walsall,WC80-525,31/05/2017,Change and Governance,BRITISH GAS BUSINESS,02/05/2017,"-1,075.20",42000-GAS-ENERGY COSTS,CENTRALISED ENERGY,Premises,Revenue
Walsall Council,http://opendatacommunities.org/id/metropolitan-district-council/walsall,WC80-526,31/05/2017,Childrens,BRITISH GAS BUSINESS,19/05/2017,-279.10,42000-GAS-ENERGY COSTS,LOCALITY FAMILY SUPPORT-NORTH,Premises,Revenue
Walsall Council,http://opendatacommunities.org/id/metropolitan-district-council/walsall,WC80-527,31/05/2017,Change and Governance,BRITISH GAS BUSINESS,31/05/2017,215.36,42000-GAS-ENERGY COSTS,CENTRALISED ENERGY,Premises,Revenue
Walsall Council,http://opendatacommunities.org/id/metropolitan-district-council/walsall,WC80-528,31/05/2017,Change and Governance,BRITISH GAS BUSINESS,31/05/2017,218.07,42000-GAS-ENERGY COSTS,CENTRALISED ENERGY,Premises,Revenue
Walsall Council,http://opendatacommunities.org/id/metropolitan-district-council/walsall,WC80-529,31/05/2017,Economy & Environment,BRITISH GAS BUSINESS,03/05/2017,225.28,42000-GAS-ENERGY COSTS,ARBORETUM VISITOR CENTRE,Premises,Revenue
Walsall Council,http://opendatacommunities.org/id/metropolitan-district-council/walsall,WC80-530,31/05/2017,Childrens,BRITISH GAS BUSINESS,11/05/2017,233.88,42000-GAS-ENERGY COSTS,LOCALITY FAMILY SUPPORT-CENTRAL & EAST,Premises,Revenue
Walsall Council,http://opendatacommunities.org/id/metropolitan-district-council/walsall,WC80-531,31/05/2017,Change and Governance,BRITISH GAS BUSINESS,31/05/2017,370.02,42000-GAS-ENERGY COSTS,CENTRALISED ENERGY,Premises,Revenue
Walsall Council,http://opendatacommunities.org/id/metropolitan-district-council/walsall,WC80-532,31/05/2017,Change and Governance,BRITISH GAS BUSINESS,31/05/2017,442.43,42000-GAS-ENERGY COSTS,CENTRALISED ENERGY,Premises,Revenue
Walsall Council,http://opendatacommunities.org/id/metropolitan-district-council/walsall,WC80-533,31/05/2017,Change and Governance,BRITISH GAS BUSINESS,31/05/2017,443.56,42000-GAS-ENERGY COSTS,RECHARGEABLE UTILITIES,Premises,Revenue
Walsall Council,http://opendatacommunities.org/id/metropolitan-district-council/walsall,WC80-534,31/05/2017,Change and Governance,BRITISH GAS BUSINESS,31/05/2017,"1,213.77",42000-GAS-ENERGY COSTS,CENTRALISED ENERGY,Premises,Revenue
Walsall Council,http://opendatacommunities.org/id/metropolitan-district-council/walsall,WC80-535,31/05/2017,Change and Governance,BRITISH GAS BUSINESS,31/05/2017,"4,089.23",42000-GAS-ENERGY COSTS,CENTRALISED ENERGY,Premises,Revenue
Walsall Council,http://opendatacommunities.org/id/metropolitan-district-council/walsall,WC80-536,31/05/2017,Change and Governance,BRITISH GAS BUSINESS,31/05/2017,"8,860.15",42000-GAS-ENERGY COSTS,CENTRALISED ENERGY,Premises,Revenue
Walsall Council,http://opendatacommunities.org/id/metropolitan-district-council/walsall,WC80-537,31/05/2017,Change and Governance,BRITISH GAS BUSINESS,02/05/2017,"9,102.73",42000-GAS-ENERGY COSTS,CENTRALISED ENERGY,Premises,Revenue
Walsall Council,http://opendatacommunities.org/id/metropolitan-district-council/walsall,WC80-538,31/05/2017,Childrens,BRITISH MUSLIM YOUTH GROUP,26/05/2017,"1,169.56",66500-GRANTS TO OTHER ORGS,CENTRAL SUPPORT,Third Party Payments,Revenue
Walsall Council,http://opendatacommunities.org/id/metropolitan-district-council/walsall,WC80-539,31/05/2017,Economy & Environment,BRITISH TELECOMMUNICATIONS LTD,23/05/2017,"5,078.25",01002-PROJECT FEES,CFR 1198 EASTERN OPPORTUNITY AREA 1 A461 CORRIDOR,Capital,Capital
Walsall Council,http://opendatacommunities.org/id/metropolitan-district-council/walsall,WC80-540,31/05/2017,Change and Governance,BROADWAY UNITED REFORMED CHURCH,16/05/2017,430.00,63128-HIRE OF ROOM-SERVICES-FEES,ELECTORAL ADMINISTRATION,Supplies & Services,Revenue
Walsall Council,http://opendatacommunities.org/id/metropolitan-district-council/walsall,WC80-541,31/05/2017,Holding Accounts,BROWNE JACOBSON SOLICITORS,19/05/2017,"1,091.50",67001-MISC INSURANCES - PAYMENT OF CLAIMS,PUBLIC LIABILITY,Supplies & Services,Revenue
Walsall Council,http://opendatacommunities.org/id/metropolitan-district-council/walsall,WC80-542,31/05/2017,Economy & Environment,BROWNHILLS ASPHALT & TARMAC LIMITED,16/05/2017,983.00,60006-NEW-FURNITURE & EQUIPMENT,HWRC,Supplies & Services,Revenue
Walsall Council,http://opendatacommunities.org/id/metropolitan-district-council/walsall,WC80-543,31/05/2017,Economy & Environment,BROWNHILLS ASPHALT & TARMAC LIMITED,15/05/2017,"2,076.00",60500-GENERAL MATERIALS,CEMETERIES CENTRAL ADMINISTRATION,Supplies & Services,Revenue
Walsall Council,http://opendatacommunities.org/id/metropolitan-district-council/walsall,WC80-544,31/05/2017,Childrens,BROWNHILLS ASPHALT & TARMAC LIMITED,10/05/2017,"2,400.00",01006-SITE WORKS MAIN CONTRACTORS,CFR 1193 SALISBURY PRIMARY - CORRIDOR FLOOR REPLACEMENT,Capital,Capital
Walsall Council,http://opendatacommunities.org/id/metropolitan-district-council/walsall,WC80-545,31/05/2017,Change and Governance,BROWNHILLS COMMUNITY ASSOCIATION,02/05/2017,"7,333.33",66500-GRANTS TO OTHER ORGS,BROWNHILLS COMMUNITY ASSOCIATION,Third Party Payments,Revenue
Walsall Council,http://opendatacommunities.org/id/metropolitan-district-council/walsall,WC80-546,31/05/2017,Change and Governance,BROWNHILLS PARISH CHURCH,16/05/2017,256.00,63128-HIRE OF ROOM-SERVICES-FEES,ELECTORAL ADMINISTRATION,Supplies & Services,Revenue
Walsall Council,http://opendatacommunities.org/id/metropolitan-district-council/walsall,WC80-547,31/05/2017,Adult Social Care,REDACTED,09/05/2017,"1,530.00",76422-DIRECT PAYMENTS TO SOCIAL SERVICES CLIENTS,LD COMMISSIONING,Transfer Payments,Revenue
Walsall Council,http://opendatacommunities.org/id/metropolitan-district-council/walsall,WC80-548,31/05/2017,Economy & Environment,REDACTED,16/05/2017,300.00,01006-SITE WORKS MAIN CONTRACTORS,CFR 971 NEW HOMES BONUS - EMPTY HOMES,Capital,Capital
Walsall Council,http://opendatacommunities.org/id/metropolitan-district-council/walsall,WC80-549,31/05/2017,Economy & Environment,REDACTED,16/05/2017,600.00,62527-VISUAL ARTS,NAG - TEMPORARY EXHIBITIONS,Supplies & Services,Revenue
Walsall Council,http://opendatacommunities.org/id/metropolitan-district-council/walsall,WC80-550,31/05/2017,Childrens,REDACTED,22/05/2017,"18,768.00",74036-EXTERNAL RESIDENTIAL CARE-OTH AGENCY PROVISION,INDEPENDENT RESIDENTIAL HOMES,Third Party Payments,Revenue
Walsall Council,http://opendatacommunities.org/id/metropolitan-district-council/walsall,WC80-551,31/05/2017,Change and Governance,B-SURE SECURITY SERVICES LTD,16/05/2017,292.00,73002-SECURITY-PRIV CONTRACTOR FEES,CENTRAL OFFICE ACCOMMODATION,Third Party Payments,Revenue
Walsall Council,http://opendatacommunities.org/id/metropolitan-district-council/walsall,WC80-552,31/05/2017,Economy & Environment,B-SURE SECURITY SERVICES LTD,16/05/2017,446.00,60001-REPAIRS/CLEANING-EQUIPMENT,CENTRALISED STATIONERY,Supplies & Services,Revenue
Walsall Council,http://opendatacommunities.org/id/metropolitan-district-council/walsall,WC80-553,31/05/2017,Childrens,BT PLC,22/05/2017,414.76,63603-COST OF CALLS-TELEPHONES,LOCALITY FAMILY SUPPORT-WEST,Supplies & Services,Revenue
Walsall Council,http://opendatacommunities.org/id/metropolitan-district-council/walsall,WC80-554,31/05/2017,Change and Governance,BT PLC,05/05/2017,"1,268.35",63601-COSTS (NOT INTERNAL RECHARGES)-TELEPHONES,RECHARGEABLE EQUIPMENT,Supplies & Services,Revenue
Walsall Council,http://opendatacommunities.org/id/metropolitan-district-council/walsall,WC80-555,31/05/2017,Change and Governance,BT PLC,09/05/2017,"1,379.96",63800-COMPUTER EQUIPMENT AND SUPPLIES,RECHARGEABLE EQUIPMENT,Supplies & Services,Revenue
Walsall Council,http://opendatacommunities.org/id/metropolitan-district-council/walsall,WC80-556,31/05/2017,Change and Governance,BT PLC,08/05/2017,"2,401.07",63807-COMMS LINKS-COMPUTER,SIT-INFRASTRUCTURE,Supplies & Services,Revenue
Walsall Council,http://opendatacommunities.org/id/metropolitan-district-council/walsall,WC80-557,31/05/2017,Change and Governance,BT PLC,11/05/2017,"7,386.62",63601-COSTS (NOT INTERNAL RECHARGES)-TELEPHONES,CENTRAL COMMUNICATIONS RECHARGES,Supplies & Services,Revenue
Walsall Council,http://opendatacommunities.org/id/metropolitan-district-council/walsall,WC80-558,31/05/2017,Change and Governance,BT PLC,11/05/2017,"14,839.10",63601-COSTS (NOT INTERNAL RECHARGES)-TELEPHONES,CENTRAL COMMUNICATIONS RECHARGES,Supplies & Services,Revenue
Walsall Council,http://opendatacommunities.org/id/metropolitan-district-council/walsall,WC80-559,31/05/2017,Adult Social Care,BUPA CARE HOMES (CFHCARE) LTD,10/05/2017,"2,001.24",73373-RESIDENTIAL & NURSING CARE PLACEMENTS,OP COMMISSIONING,Third Party Payments,Revenue
Walsall Council,http://opendatacommunities.org/id/metropolitan-district-council/walsall,WC80-560,31/05/2017,Adult Social Care,BUPA CARE HOMES (CFHCARE) LTD,25/05/2017,"2,001.24",73373-RESIDENTIAL & NURSING CARE PLACEMENTS,OP COMMISSIONING,Third Party Payments,Revenue
Walsall Council,http://opendatacommunities.org/id/metropolitan-district-council/walsall,WC80-561,31/05/2017,Adult Social Care,BUPA CARE HOMES (CFHCARE) LTD,10/05/2017,"3,380.20",73373-RESIDENTIAL & NURSING CARE PLACEMENTS,OP COMMISSIONING,Third Party Payments,Revenue
Walsall Council,http://opendatacommunities.org/id/metropolitan-district-council/walsall,WC80-562,31/05/2017,Adult Social Care,BUPA CARE HOMES (CFHCARE) LTD,25/05/2017,"3,380.20",73373-RESIDENTIAL & NURSING CARE PLACEMENTS,OP COMMISSIONING,Third Party Payments,Revenue
Walsall Council,http://opendatacommunities.org/id/metropolitan-district-council/walsall,WC80-563,31/05/2017,Adult Social Care,BUPA NURSING HOMES-ANVILLE CT,01/05/2017,319.29,73373-RESIDENTIAL & NURSING CARE PLACEMENTS,OP COMMISSIONING,Third Party Payments,Revenue
Walsall Council,http://opendatacommunities.org/id/metropolitan-district-council/walsall,WC80-564,31/05/2017,Adult Social Care,BUPA NURSING HOMES-ANVILLE CT,01/05/2017,"1,915.71",73373-RESIDENTIAL & NURSING CARE PLACEMENTS,OP COMMISSIONING,Third Party Payments,Revenue
Walsall Council,http://opendatacommunities.org/id/metropolitan-district-council/walsall,WC80-565,31/05/2017,Adult Social Care,BUPA NURSING HOMES-ANVILLE CT,01/05/2017,"1,979.57",73373-RESIDENTIAL & NURSING CARE PLACEMENTS,OP COMMISSIONING,Third Party Payments,Revenue
Walsall Council,http://opendatacommunities.org/id/metropolitan-district-council/walsall,WC80-566,31/05/2017,Adult Social Care,BUSH HOME LTD,01/05/2017,289.29,73373-RESIDENTIAL & NURSING CARE PLACEMENTS,OP COMMISSIONING,Third Party Payments,Revenue
Walsall Council,http://opendatacommunities.org/id/metropolitan-district-council/walsall,WC80-567,31/05/2017,Adult Social Care,BUSH HOME LTD,01/05/2017,289.29,73373-RESIDENTIAL & NURSING CARE PLACEMENTS,OP COMMISSIONING,Third Party Payments,Revenue
Walsall Council,http://opendatacommunities.org/id/metropolitan-district-council/walsall,WC80-568,31/05/2017,Adult Social Care,BUSH HOME LTD,01/05/2017,321.43,73373-RESIDENTIAL & NURSING CARE PLACEMENTS,OP COMMISSIONING,Third Party Payments,Revenue
Walsall Council,http://opendatacommunities.org/id/metropolitan-district-council/walsall,WC80-569,31/05/2017,Adult Social Care,BUSH HOME LTD,01/05/2017,321.43,73373-RESIDENTIAL & NURSING CARE PLACEMENTS,MH COMMISSIONING,Third Party Payments,Revenue
Walsall Council,http://opendatacommunities.org/id/metropolitan-district-council/walsall,WC80-570,31/05/2017,Adult Social Care,BUSH HOME LTD,01/05/2017,321.43,73373-RESIDENTIAL & NURSING CARE PLACEMENTS,OP COMMISSIONING,Third Party Payments,Revenue
Walsall Council,http://opendatacommunities.org/id/metropolitan-district-council/walsall,WC80-571,31/05/2017,Adult Social Care,BUSH HOME LTD,30/05/2017,321.43,73373-RESIDENTIAL & NURSING CARE PLACEMENTS,MH COMMISSIONING,Third Party Payments,Revenue
Walsall Council,http://opendatacommunities.org/id/metropolitan-district-council/walsall,WC80-572,31/05/2017,Adult Social Care,BUSH HOME LTD,01/05/2017,900.00,73373-RESIDENTIAL & NURSING CARE PLACEMENTS,OP COMMISSIONING,Third Party Payments,Revenue
Walsall Council,http://opendatacommunities.org/id/metropolitan-district-council/walsall,WC80-573,31/05/2017,Adult Social Care,BUSH HOME LTD,01/05/2017,"1,330.71",73373-RESIDENTIAL & NURSING CARE PLACEMENTS,OP COMMISSIONING,Third Party Payments,Revenue
Walsall Council,http://opendatacommunities.org/id/metropolitan-district-council/walsall,WC80-574,31/05/2017,Adult Social Care,BUSH HOME LTD,01/05/2017,"1,330.71",73373-RESIDENTIAL & NURSING CARE PLACEMENTS,OP COMMISSIONING,Third Party Payments,Revenue
Walsall Council,http://opendatacommunities.org/id/metropolitan-district-council/walsall,WC80-575,31/05/2017,Adult Social Care,BUSH HOME LTD,01/05/2017,"1,330.71",73373-RESIDENTIAL & NURSING CARE PLACEMENTS,OP COMMISSIONING,Third Party Payments,Revenue
Walsall Council,http://opendatacommunities.org/id/metropolitan-district-council/walsall,WC80-576,31/05/2017,Adult Social Care,BUSH HOME LTD,01/05/2017,"1,330.72",73373-RESIDENTIAL & NURSING CARE PLACEMENTS,OP COMMISSIONING,Third Party Payments,Revenue
Walsall Council,http://opendatacommunities.org/id/metropolitan-district-council/walsall,WC80-577,31/05/2017,Adult Social Care,BUSH HOME LTD,01/05/2017,"1,330.72",73373-RESIDENTIAL & NURSING CARE PLACEMENTS,OP COMMISSIONING,Third Party Payments,Revenue
Walsall Council,http://opendatacommunities.org/id/metropolitan-district-council/walsall,WC80-578,31/05/2017,Adult Social Care,BUSH HOME LTD,01/05/2017,"1,478.56",73373-RESIDENTIAL & NURSING CARE PLACEMENTS,OP COMMISSIONING,Third Party Payments,Revenue
Walsall Council,http://opendatacommunities.org/id/metropolitan-district-council/walsall,WC80-579,31/05/2017,Adult Social Care,BUSH HOME LTD,01/05/2017,"1,478.57",73373-RESIDENTIAL & NURSING CARE PLACEMENTS,OP COMMISSIONING,Third Party Payments,Revenue
Walsall Council,http://opendatacommunities.org/id/metropolitan-district-council/walsall,WC80-580,31/05/2017,Adult Social Care,BUSH HOME LTD,01/05/2017,"1,478.57",73373-RESIDENTIAL & NURSING CARE PLACEMENTS,OP COMMISSIONING,Third Party Payments,Revenue
Walsall Council,http://opendatacommunities.org/id/metropolitan-district-council/walsall,WC80-581,31/05/2017,Adult Social Care,BUSH HOME LTD,01/05/2017,"1,478.57",73373-RESIDENTIAL & NURSING CARE PLACEMENTS,OP COMMISSIONING,Third Party Payments,Revenue
Walsall Council,http://opendatacommunities.org/id/metropolitan-district-council/walsall,WC80-582,31/05/2017,Adult Social Care,BUSH HOME LTD,01/05/2017,"1,478.57",73373-RESIDENTIAL & NURSING CARE PLACEMENTS,OP COMMISSIONING,Third Party Payments,Revenue
Walsall Council,http://opendatacommunities.org/id/metropolitan-district-council/walsall,WC80-583,31/05/2017,Adult Social Care,BUSH HOME LTD,01/05/2017,"1,478.57",73373-RESIDENTIAL & NURSING CARE PLACEMENTS,OP COMMISSIONING,Third Party Payments,Revenue
Walsall Council,http://opendatacommunities.org/id/metropolitan-district-council/walsall,WC80-584,31/05/2017,Adult Social Care,BUSH HOME LTD,01/05/2017,"1,478.57",73373-RESIDENTIAL & NURSING CARE PLACEMENTS,OP COMMISSIONING,Third Party Payments,Revenue
Walsall Council,http://opendatacommunities.org/id/metropolitan-district-council/walsall,WC80-585,31/05/2017,Adult Social Care,BUSH HOME LTD,01/05/2017,"1,478.57",73373-RESIDENTIAL & NURSING CARE PLACEMENTS,MH COMMISSIONING,Third Party Payments,Revenue
Walsall Council,http://opendatacommunities.org/id/metropolitan-district-council/walsall,WC80-586,31/05/2017,Adult Social Care,BUSH HOME LTD,01/05/2017,"1,478.57",73373-RESIDENTIAL & NURSING CARE PLACEMENTS,OP COMMISSIONING,Third Party Payments,Revenue
Walsall Council,http://opendatacommunities.org/id/metropolitan-district-council/walsall,WC80-587,31/05/2017,Adult Social Care,BUSH HOME LTD,01/05/2017,"1,478.57",73373-RESIDENTIAL & NURSING CARE PLACEMENTS,OP COMMISSIONING,Third Party Payments,Revenue
Walsall Council,http://opendatacommunities.org/id/metropolitan-district-council/walsall,WC80-588,31/05/2017,Adult Social Care,BUSH HOME LTD,30/05/2017,"1,478.57",73373-RESIDENTIAL & NURSING CARE PLACEMENTS,MH COMMISSIONING,Third Party Payments,Revenue
Walsall Council,http://opendatacommunities.org/id/metropolitan-district-council/walsall,WC80-589,31/05/2017,Adult Social Care,BUSH HOME LTD,01/05/2017,"1,478.58",73373-RESIDENTIAL & NURSING CARE PLACEMENTS,OP COMMISSIONING,Third Party Payments,Revenue
Walsall Council,http://opendatacommunities.org/id/metropolitan-district-council/walsall,WC80-590,31/05/2017,Adult Social Care,BUSH HOME LTD,01/05/2017,"1,478.58",73373-RESIDENTIAL & NURSING CARE PLACEMENTS,OP COMMISSIONING,Third Party Payments,Revenue
Walsall Council,http://opendatacommunities.org/id/metropolitan-district-council/walsall,WC80-591,31/05/2017,Adult Social Care,BUSH HOME LTD,01/05/2017,"1,620.00",73373-RESIDENTIAL & NURSING CARE PLACEMENTS,OP COMMISSIONING,Third Party Payments,Revenue
Walsall Council,http://opendatacommunities.org/id/metropolitan-district-council/walsall,WC80-592,31/05/2017,Adult Social Care,BUSH HOME LTD,01/05/2017,"1,620.00",73373-RESIDENTIAL & NURSING CARE PLACEMENTS,OP COMMISSIONING,Third Party Payments,Revenue
Walsall Council,http://opendatacommunities.org/id/metropolitan-district-council/walsall,WC80-593,31/05/2017,Adult Social Care,BUSH HOME LTD,01/05/2017,"1,620.00",73373-RESIDENTIAL & NURSING CARE PLACEMENTS,OP COMMISSIONING,Third Party Payments,Revenue
Walsall Council,http://opendatacommunities.org/id/metropolitan-district-council/walsall,WC80-594,31/05/2017,Adult Social Care,BUSH HOME LTD,01/05/2017,"1,620.00",73373-RESIDENTIAL & NURSING CARE PLACEMENTS,OP COMMISSIONING,Third Party Payments,Revenue
Walsall Council,http://opendatacommunities.org/id/metropolitan-district-council/walsall,WC80-595,31/05/2017,Adult Social Care,BUSH HOME LTD,01/05/2017,"1,620.00",73373-RESIDENTIAL & NURSING CARE PLACEMENTS,OP COMMISSIONING,Third Party Payments,Revenue
Walsall Council,http://opendatacommunities.org/id/metropolitan-district-council/walsall,WC80-596,31/05/2017,Adult Social Care,BUSH HOME LTD,01/05/2017,"1,620.00",73373-RESIDENTIAL & NURSING CARE PLACEMENTS,OP COMMISSIONING,Third Party Payments,Revenue
Walsall Council,http://opendatacommunities.org/id/metropolitan-district-council/walsall,WC80-597,31/05/2017,Adult Social Care,BUSH HOME LTD,01/05/2017,"1,620.00",73373-RESIDENTIAL & NURSING CARE PLACEMENTS,OP COMMISSIONING,Third Party Payments,Revenue
Walsall Council,http://opendatacommunities.org/id/metropolitan-district-council/walsall,WC80-598,31/05/2017,Adult Social Care,BUSH HOME LTD,10/05/2017,"1,620.00",73373-RESIDENTIAL & NURSING CARE PLACEMENTS,OP COMMISSIONING,Third Party Payments,Revenue
Walsall Council,http://opendatacommunities.org/id/metropolitan-district-council/walsall,WC80-599,31/05/2017,Adult Social Care,BUSH HOME LTD,10/05/2017,"1,620.00",73373-RESIDENTIAL & NURSING CARE PLACEMENTS,OP COMMISSIONING,Third Party Payments,Revenue
Walsall Council,http://opendatacommunities.org/id/metropolitan-district-council/walsall,WC80-600,31/05/2017,Adult Social Care,BUSH HOME LTD,30/05/2017,"1,620.00",73373-RESIDENTIAL & NURSING CARE PLACEMENTS,OP COMMISSIONING,Third Party Payments,Revenue
Walsall Council,http://opendatacommunities.org/id/metropolitan-district-council/walsall,WC80-601,31/05/2017,Adult Social Care,BUSH HOME LTD,30/05/2017,"1,620.00",73373-RESIDENTIAL & NURSING CARE PLACEMENTS,OP COMMISSIONING,Third Party Payments,Revenue
Walsall Council,http://opendatacommunities.org/id/metropolitan-district-council/walsall,WC80-602,31/05/2017,Adult Social Care,BUSH HOME LTD,30/05/2017,"1,620.00",73373-RESIDENTIAL & NURSING CARE PLACEMENTS,OP COMMISSIONING,Third Party Payments,Revenue
Walsall Council,http://opendatacommunities.org/id/metropolitan-district-council/walsall,WC80-603,31/05/2017,Adult Social Care,BUSH HOME LTD,30/05/2017,"1,620.00",73373-RESIDENTIAL & NURSING CARE PLACEMENTS,OP COMMISSIONING,Third Party Payments,Revenue
Walsall Council,http://opendatacommunities.org/id/metropolitan-district-council/walsall,WC80-604,31/05/2017,Adult Social Care,BUSH HOME LTD,30/05/2017,"1,620.00",73373-RESIDENTIAL & NURSING CARE PLACEMENTS,OP COMMISSIONING,Third Party Payments,Revenue
Walsall Council,http://opendatacommunities.org/id/metropolitan-district-council/walsall,WC80-605,31/05/2017,Adult Social Care,BUSH HOME LTD,01/05/2017,"1,671.43",73373-RESIDENTIAL & NURSING CARE PLACEMENTS,MH COMMISSIONING,Third Party Payments,Revenue
Walsall Council,http://opendatacommunities.org/id/metropolitan-district-council/walsall,WC80-606,31/05/2017,Adult Social Care,BUSH HOME LTD,30/05/2017,"1,799.99",73373-RESIDENTIAL & NURSING CARE PLACEMENTS,OP COMMISSIONING,Third Party Payments,Revenue
Walsall Council,http://opendatacommunities.org/id/metropolitan-district-council/walsall,WC80-607,31/05/2017,Adult Social Care,BUSH HOME LTD,01/05/2017,"1,800.00",73373-RESIDENTIAL & NURSING CARE PLACEMENTS,OP COMMISSIONING,Third Party Payments,Revenue
Walsall Council,http://opendatacommunities.org/id/metropolitan-district-council/walsall,WC80-608,31/05/2017,Adult Social Care,BUSH HOME LTD,01/05/2017,"1,800.00",73373-RESIDENTIAL & NURSING CARE PLACEMENTS,OP COMMISSIONING,Third Party Payments,Revenue
Walsall Council,http://opendatacommunities.org/id/metropolitan-district-council/walsall,WC80-609,31/05/2017,Adult Social Care,BUSH HOME LTD,01/05/2017,"1,800.00",73373-RESIDENTIAL & NURSING CARE PLACEMENTS,OP COMMISSIONING,Third Party Payments,Revenue
Walsall Council,http://opendatacommunities.org/id/metropolitan-district-council/walsall,WC80-610,31/05/2017,Adult Social Care,BUSH HOME LTD,01/05/2017,"1,800.00",73373-RESIDENTIAL & NURSING CARE PLACEMENTS,OP COMMISSIONING,Third Party Payments,Revenue
Walsall Council,http://opendatacommunities.org/id/metropolitan-district-council/walsall,WC80-611,31/05/2017,Adult Social Care,BUSH HOME LTD,01/05/2017,"1,800.00",73373-RESIDENTIAL & NURSING CARE PLACEMENTS,OP COMMISSIONING,Third Party Payments,Revenue
Walsall Council,http://opendatacommunities.org/id/metropolitan-district-council/walsall,WC80-612,31/05/2017,Adult Social Care,BUSH HOME LTD,01/05/2017,"1,800.00",73373-RESIDENTIAL & NURSING CARE PLACEMENTS,OP COMMISSIONING,Third Party Payments,Revenue
Walsall Council,http://opendatacommunities.org/id/metropolitan-district-council/walsall,WC80-613,31/05/2017,Adult Social Care,BUSH HOME LTD,01/05/2017,"1,800.00",73373-RESIDENTIAL & NURSING CARE PLACEMENTS,MH COMMISSIONING,Third Party Payments,Revenue
Walsall Council,http://opendatacommunities.org/id/metropolitan-district-council/walsall,WC80-614,31/05/2017,Adult Social Care,BUSH HOME LTD,01/05/2017,"1,800.00",73373-RESIDENTIAL & NURSING CARE PLACEMENTS,OP COMMISSIONING,Third Party Payments,Revenue
Walsall Council,http://opendatacommunities.org/id/metropolitan-district-council/walsall,WC80-615,31/05/2017,Adult Social Care,BUSH HOME LTD,01/05/2017,"1,800.00",73373-RESIDENTIAL & NURSING CARE PLACEMENTS,OP COMMISSIONING,Third Party Payments,Revenue
Walsall Council,http://opendatacommunities.org/id/metropolitan-district-council/walsall,WC80-616,31/05/2017,Adult Social Care,BUSH HOME LTD,30/05/2017,"1,800.00",73373-RESIDENTIAL & NURSING CARE PLACEMENTS,OP COMMISSIONING,Third Party Payments,Revenue
Walsall Council,http://opendatacommunities.org/id/metropolitan-district-council/walsall,WC80-617,31/05/2017,Adult Social Care,BUSH HOME LTD,30/05/2017,"1,800.00",73373-RESIDENTIAL & NURSING CARE PLACEMENTS,OP COMMISSIONING,Third Party Payments,Revenue
Walsall Council,http://opendatacommunities.org/id/metropolitan-district-council/walsall,WC80-618,31/05/2017,Adult Social Care,BUSH HOME LTD,30/05/2017,"1,800.00",73373-RESIDENTIAL & NURSING CARE PLACEMENTS,OP COMMISSIONING,Third Party Payments,Revenue
Walsall Council,http://opendatacommunities.org/id/metropolitan-district-council/walsall,WC80-619,31/05/2017,Adult Social Care,BUSH HOME LTD,30/05/2017,"1,800.00",73373-RESIDENTIAL & NURSING CARE PLACEMENTS,OP COMMISSIONING,Third Party Payments,Revenue
Walsall Council,http://opendatacommunities.org/id/metropolitan-district-council/walsall,WC80-620,31/05/2017,Adult Social Care,BUSH HOME LTD,30/05/2017,"1,800.00",73373-RESIDENTIAL & NURSING CARE PLACEMENTS,OP COMMISSIONING,Third Party Payments,Revenue
Walsall Council,http://opendatacommunities.org/id/metropolitan-district-council/walsall,WC80-621,31/05/2017,Adult Social Care,BUSH HOME LTD,30/05/2017,"1,800.00",73373-RESIDENTIAL & NURSING CARE PLACEMENTS,OP COMMISSIONING,Third Party Payments,Revenue
Walsall Council,http://opendatacommunities.org/id/metropolitan-district-council/walsall,WC80-622,31/05/2017,Adult Social Care,BUSH HOME LTD,30/05/2017,"1,800.00",73373-RESIDENTIAL & NURSING CARE PLACEMENTS,MH COMMISSIONING,Third Party Payments,Revenue
Walsall Council,http://opendatacommunities.org/id/metropolitan-district-council/walsall,WC80-623,31/05/2017,Adult Social Care,BUSH HOME LTD,30/05/2017,"1,800.00",73373-RESIDENTIAL & NURSING CARE PLACEMENTS,OP COMMISSIONING,Third Party Payments,Revenue
Walsall Council,http://opendatacommunities.org/id/metropolitan-district-council/walsall,WC80-624,31/05/2017,Adult Social Care,BUSH HOME LTD,30/05/2017,"1,800.00",73373-RESIDENTIAL & NURSING CARE PLACEMENTS,OP COMMISSIONING,Third Party Payments,Revenue
Walsall Council,http://opendatacommunities.org/id/metropolitan-district-council/walsall,WC80-625,31/05/2017,Adult Social Care,BUSH HOME LTD,30/05/2017,"1,800.00",73373-RESIDENTIAL & NURSING CARE PLACEMENTS,MH COMMISSIONING,Third Party Payments,Revenue
Walsall Council,http://opendatacommunities.org/id/metropolitan-district-council/walsall,WC80-626,31/05/2017,Adult Social Care,BUSH HOME LTD,30/05/2017,"1,800.00",73373-RESIDENTIAL & NURSING CARE PLACEMENTS,MH COMMISSIONING,Third Party Payments,Revenue
Walsall Council,http://opendatacommunities.org/id/metropolitan-district-council/walsall,WC80-627,31/05/2017,Adult Social Care,BUSH HOME LTD,01/05/2017,"3,124.29",73373-RESIDENTIAL & NURSING CARE PLACEMENTS,OP COMMISSIONING,Third Party Payments,Revenue
Walsall Council,http://opendatacommunities.org/id/metropolitan-district-council/walsall,WC80-628,31/05/2017,Adult Social Care,BUSH HOME LTD,01/05/2017,"3,529.29",73373-RESIDENTIAL & NURSING CARE PLACEMENTS,OP COMMISSIONING,Third Party Payments,Revenue
Walsall Council,http://opendatacommunities.org/id/metropolitan-district-council/walsall,WC80-629,31/05/2017,Economy & Environment,BUXTONS LTD,16/05/2017,625.09,"40000-REPAIRS,ALTERATIONS & MAINTENANCE-PREM",ARBORETUM HLF,Premises,Revenue
Walsall Council,http://opendatacommunities.org/id/metropolitan-district-council/walsall,WC80-630,31/05/2017,Childrens,BY THE BRIDGE,22/05/2017,"-3,100.00",74037-INDEPENDENT FOSTER CARE-OTH AGENCY PROVISION,EXTERNAL FOSTER CARE PROVISION,Third Party Payments,Revenue
Walsall Council,http://opendatacommunities.org/id/metropolitan-district-council/walsall,WC80-631,31/05/2017,Childrens,BY THE BRIDGE,22/05/2017,"2,846.20",74037-INDEPENDENT FOSTER CARE-OTH AGENCY PROVISION,EXTERNAL FOSTER CARE PROVISION,Third Party Payments,Revenue
Walsall Council,http://opendatacommunities.org/id/metropolitan-district-council/walsall,WC80-632,31/05/2017,Childrens,BY THE BRIDGE,22/05/2017,"2,862.00",74037-INDEPENDENT FOSTER CARE-OTH AGENCY PROVISION,EXTERNAL FOSTER CARE PROVISION,Third Party Payments,Revenue
Walsall Council,http://opendatacommunities.org/id/metropolitan-district-council/walsall,WC80-633,31/05/2017,Adult Social Care,C & V ORCHARD MANOR LTD,10/05/2017,257.14,73373-RESIDENTIAL & NURSING CARE PLACEMENTS,MH COMMISSIONING,Third Party Payments,Revenue
Walsall Council,http://opendatacommunities.org/id/metropolitan-district-council/walsall,WC80-634,31/05/2017,Adult Social Care,C & V ORCHARD MANOR LTD,10/05/2017,257.14,73373-RESIDENTIAL & NURSING CARE PLACEMENTS,MH COMMISSIONING,Third Party Payments,Revenue
Walsall Council,http://opendatacommunities.org/id/metropolitan-district-council/walsall,WC80-635,31/05/2017,Adult Social Care,C & V ORCHARD MANOR LTD,10/05/2017,257.14,73373-RESIDENTIAL & NURSING CARE PLACEMENTS,OP COMMISSIONING,Third Party Payments,Revenue
Walsall Council,http://opendatacommunities.org/id/metropolitan-district-council/walsall,WC80-636,31/05/2017,Adult Social Care,C & V ORCHARD MANOR LTD,10/05/2017,257.14,73373-RESIDENTIAL & NURSING CARE PLACEMENTS,OP COMMISSIONING,Third Party Payments,Revenue
Walsall Council,http://opendatacommunities.org/id/metropolitan-district-council/walsall,WC80-637,31/05/2017,Adult Social Care,C & V ORCHARD MANOR LTD,10/05/2017,257.14,73373-RESIDENTIAL & NURSING CARE PLACEMENTS,OP COMMISSIONING,Third Party Payments,Revenue
Walsall Council,http://opendatacommunities.org/id/metropolitan-district-council/walsall,WC80-638,31/05/2017,Adult Social Care,C & V ORCHARD MANOR LTD,25/05/2017,257.14,73373-RESIDENTIAL & NURSING CARE PLACEMENTS,OP COMMISSIONING,Third Party Payments,Revenue
Walsall Council,http://opendatacommunities.org/id/metropolitan-district-council/walsall,WC80-639,31/05/2017,Adult Social Care,C & V ORCHARD MANOR LTD,16/05/2017,347.14,73373-RESIDENTIAL & NURSING CARE PLACEMENTS,MH COMMISSIONING,Third Party Payments,Revenue
Walsall Council,http://opendatacommunities.org/id/metropolitan-district-council/walsall,WC80-640,31/05/2017,Adult Social Care,C & V ORCHARD MANOR LTD,25/05/2017,636.43,73373-RESIDENTIAL & NURSING CARE PLACEMENTS,LD COMMISSIONING,Third Party Payments,Revenue
Walsall Council,http://opendatacommunities.org/id/metropolitan-district-council/walsall,WC80-641,31/05/2017,Adult Social Care,C & V ORCHARD MANOR LTD,16/05/2017,752.14,73373-RESIDENTIAL & NURSING CARE PLACEMENTS,MH COMMISSIONING,Third Party Payments,Revenue
Walsall Council,http://opendatacommunities.org/id/metropolitan-district-council/walsall,WC80-642,31/05/2017,Adult Social Care,C & V ORCHARD MANOR LTD,16/05/2017,867.86,73373-RESIDENTIAL & NURSING CARE PLACEMENTS,MH COMMISSIONING,Third Party Payments,Revenue
Walsall Council,http://opendatacommunities.org/id/metropolitan-district-council/walsall,WC80-643,31/05/2017,Adult Social Care,C & V ORCHARD MANOR LTD,25/05/2017,983.57,73373-RESIDENTIAL & NURSING CARE PLACEMENTS,OP COMMISSIONING,Third Party Payments,Revenue
Walsall Council,http://opendatacommunities.org/id/metropolitan-district-council/walsall,WC80-644,31/05/2017,Adult Social Care,C & V ORCHARD MANOR LTD,16/05/2017,"1,272.86",73373-RESIDENTIAL & NURSING CARE PLACEMENTS,MH COMMISSIONING,Third Party Payments,Revenue
Walsall Council,http://opendatacommunities.org/id/metropolitan-district-council/walsall,WC80-645,31/05/2017,Adult Social Care,C & V ORCHARD MANOR LTD,10/05/2017,"1,388.57",73373-RESIDENTIAL & NURSING CARE PLACEMENTS,LD COMMISSIONING,Third Party Payments,Revenue
Walsall Council,http://opendatacommunities.org/id/metropolitan-district-council/walsall,WC80-646,31/05/2017,Adult Social Care,C & V ORCHARD MANOR LTD,10/05/2017,"1,388.57",73373-RESIDENTIAL & NURSING CARE PLACEMENTS,OP COMMISSIONING,Third Party Payments,Revenue
Walsall Council,http://opendatacommunities.org/id/metropolitan-district-council/walsall,WC80-647,31/05/2017,Adult Social Care,C & V ORCHARD MANOR LTD,10/05/2017,"1,388.57",73373-RESIDENTIAL & NURSING CARE PLACEMENTS,MH COMMISSIONING,Third Party Payments,Revenue
Walsall Council,http://opendatacommunities.org/id/metropolitan-district-council/walsall,WC80-648,31/05/2017,Adult Social Care,C & V ORCHARD MANOR LTD,10/05/2017,"1,388.57",73373-RESIDENTIAL & NURSING CARE PLACEMENTS,MH COMMISSIONING,Third Party Payments,Revenue
Walsall Council,http://opendatacommunities.org/id/metropolitan-district-council/walsall,WC80-649,31/05/2017,Adult Social Care,C & V ORCHARD MANOR LTD,10/05/2017,"1,388.57",73373-RESIDENTIAL & NURSING CARE PLACEMENTS,MH COMMISSIONING,Third Party Payments,Revenue
Walsall Council,http://opendatacommunities.org/id/metropolitan-district-council/walsall,WC80-650,31/05/2017,Adult Social Care,C & V ORCHARD MANOR LTD,10/05/2017,"1,388.57",73373-RESIDENTIAL & NURSING CARE PLACEMENTS,MH COMMISSIONING,Third Party Payments,Revenue
Walsall Council,http://opendatacommunities.org/id/metropolitan-district-council/walsall,WC80-651,31/05/2017,Adult Social Care,C & V ORCHARD MANOR LTD,10/05/2017,"1,388.58",73373-RESIDENTIAL & NURSING CARE PLACEMENTS,OP COMMISSIONING,Third Party Payments,Revenue
Walsall Council,http://opendatacommunities.org/id/metropolitan-district-council/walsall,WC80-652,31/05/2017,Adult Social Care,C & V ORCHARD MANOR LTD,10/05/2017,"1,388.58",73373-RESIDENTIAL & NURSING CARE PLACEMENTS,OP COMMISSIONING,Third Party Payments,Revenue
Walsall Council,http://opendatacommunities.org/id/metropolitan-district-council/walsall,WC80-653,31/05/2017,Adult Social Care,C & V ORCHARD MANOR LTD,25/05/2017,"1,512.60",73373-RESIDENTIAL & NURSING CARE PLACEMENTS,OP COMMISSIONING,Third Party Payments,Revenue
Walsall Council,http://opendatacommunities.org/id/metropolitan-district-council/walsall,WC80-654,31/05/2017,Adult Social Care,C & V ORCHARD MANOR LTD,10/05/2017,"1,542.85",73373-RESIDENTIAL & NURSING CARE PLACEMENTS,OP COMMISSIONING,Third Party Payments,Revenue
Walsall Council,http://opendatacommunities.org/id/metropolitan-district-council/walsall,WC80-655,31/05/2017,Adult Social Care,C & V ORCHARD MANOR LTD,10/05/2017,"1,542.86",73373-RESIDENTIAL & NURSING CARE PLACEMENTS,OP COMMISSIONING,Third Party Payments,Revenue
Walsall Council,http://opendatacommunities.org/id/metropolitan-district-council/walsall,WC80-656,31/05/2017,Adult Social Care,C & V ORCHARD MANOR LTD,10/05/2017,"1,542.86",73373-RESIDENTIAL & NURSING CARE PLACEMENTS,MH COMMISSIONING,Third Party Payments,Revenue
Walsall Council,http://opendatacommunities.org/id/metropolitan-district-council/walsall,WC80-657,31/05/2017,Adult Social Care,C & V ORCHARD MANOR LTD,10/05/2017,"1,542.86",73373-RESIDENTIAL & NURSING CARE PLACEMENTS,MH COMMISSIONING,Third Party Payments,Revenue
Walsall Council,http://opendatacommunities.org/id/metropolitan-district-council/walsall,WC80-658,31/05/2017,Adult Social Care,C & V ORCHARD MANOR LTD,10/05/2017,"1,542.86",73373-RESIDENTIAL & NURSING CARE PLACEMENTS,OP COMMISSIONING,Third Party Payments,Revenue
Walsall Council,http://opendatacommunities.org/id/metropolitan-district-council/walsall,WC80-659,31/05/2017,Adult Social Care,C & V ORCHARD MANOR LTD,10/05/2017,"1,542.86",73373-RESIDENTIAL & NURSING CARE PLACEMENTS,OP COMMISSIONING,Third Party Payments,Revenue
Walsall Council,http://opendatacommunities.org/id/metropolitan-district-council/walsall,WC80-660,31/05/2017,Adult Social Care,C & V ORCHARD MANOR LTD,10/05/2017,"1,542.86",73373-RESIDENTIAL & NURSING CARE PLACEMENTS,OP COMMISSIONING,Third Party Payments,Revenue
Walsall Council,http://opendatacommunities.org/id/metropolitan-district-council/walsall,WC80-661,31/05/2017,Adult Social Care,C & V ORCHARD MANOR LTD,16/05/2017,"1,620.00",73373-RESIDENTIAL & NURSING CARE PLACEMENTS,MH COMMISSIONING,Third Party Payments,Revenue
Walsall Council,http://opendatacommunities.org/id/metropolitan-district-council/walsall,WC80-662,31/05/2017,Adult Social Care,C & V ORCHARD MANOR LTD,16/05/2017,"1,620.00",73373-RESIDENTIAL & NURSING CARE PLACEMENTS,MH COMMISSIONING,Third Party Payments,Revenue
Walsall Council,http://opendatacommunities.org/id/metropolitan-district-council/walsall,WC80-663,31/05/2017,Adult Social Care,C & V ORCHARD MANOR LTD,25/05/2017,"1,620.00",73373-RESIDENTIAL & NURSING CARE PLACEMENTS,MH COMMISSIONING,Third Party Payments,Revenue
Walsall Council,http://opendatacommunities.org/id/metropolitan-district-council/walsall,WC80-664,31/05/2017,Adult Social Care,C & V ORCHARD MANOR LTD,25/05/2017,"1,620.00",73373-RESIDENTIAL & NURSING CARE PLACEMENTS,MH COMMISSIONING,Third Party Payments,Revenue
Walsall Council,http://opendatacommunities.org/id/metropolitan-district-council/walsall,WC80-665,31/05/2017,Adult Social Care,C & V ORCHARD RESIDENTIAL LTD,10/05/2017,289.29,73373-RESIDENTIAL & NURSING CARE PLACEMENTS,OP COMMISSIONING,Third Party Payments,Revenue
Walsall Council,http://opendatacommunities.org/id/metropolitan-district-council/walsall,WC80-666,31/05/2017,Adult Social Care,C & V ORCHARD RESIDENTIAL LTD,10/05/2017,321.43,73373-RESIDENTIAL & NURSING CARE PLACEMENTS,OP COMMISSIONING,Third Party Payments,Revenue
Walsall Council,http://opendatacommunities.org/id/metropolitan-district-council/walsall,WC80-667,31/05/2017,Adult Social Care,C & V ORCHARD RESIDENTIAL LTD,10/05/2017,900.00,73373-RESIDENTIAL & NURSING CARE PLACEMENTS,OP COMMISSIONING,Third Party Payments,Revenue
Walsall Council,http://opendatacommunities.org/id/metropolitan-district-council/walsall,WC80-668,31/05/2017,Adult Social Care,C & V ORCHARD RESIDENTIAL LTD,01/05/2017,"1,221.42",73373-RESIDENTIAL & NURSING CARE PLACEMENTS,OP COMMISSIONING,Third Party Payments,Revenue
Walsall Council,http://opendatacommunities.org/id/metropolitan-district-council/walsall,WC80-669,31/05/2017,Adult Social Care,C & V ORCHARD RESIDENTIAL LTD,10/05/2017,"1,330.71",73373-RESIDENTIAL & NURSING CARE PLACEMENTS,OP COMMISSIONING,Third Party Payments,Revenue
Walsall Council,http://opendatacommunities.org/id/metropolitan-district-council/walsall,WC80-670,31/05/2017,Adult Social Care,C & V ORCHARD RESIDENTIAL LTD,10/05/2017,"1,330.72",73373-RESIDENTIAL & NURSING CARE PLACEMENTS,OP COMMISSIONING,Third Party Payments,Revenue
Walsall Council,http://opendatacommunities.org/id/metropolitan-district-council/walsall,WC80-671,31/05/2017,Adult Social Care,C & V ORCHARD RESIDENTIAL LTD,10/05/2017,"1,478.54",73373-RESIDENTIAL & NURSING CARE PLACEMENTS,OP COMMISSIONING,Third Party Payments,Revenue
Walsall Council,http://opendatacommunities.org/id/metropolitan-district-council/walsall,WC80-672,31/05/2017,Adult Social Care,C & V ORCHARD RESIDENTIAL LTD,10/05/2017,"1,478.56",73373-RESIDENTIAL & NURSING CARE PLACEMENTS,OP COMMISSIONING,Third Party Payments,Revenue
Walsall Council,http://opendatacommunities.org/id/metropolitan-district-council/walsall,WC80-673,31/05/2017,Adult Social Care,C & V ORCHARD RESIDENTIAL LTD,10/05/2017,"1,478.57",73373-RESIDENTIAL & NURSING CARE PLACEMENTS,OP COMMISSIONING,Third Party Payments,Revenue
Walsall Council,http://opendatacommunities.org/id/metropolitan-district-council/walsall,WC80-674,31/05/2017,Adult Social Care,C & V ORCHARD RESIDENTIAL LTD,10/05/2017,"1,478.57",73373-RESIDENTIAL & NURSING CARE PLACEMENTS,OP COMMISSIONING,Third Party Payments,Revenue
Walsall Council,http://opendatacommunities.org/id/metropolitan-district-council/walsall,WC80-675,31/05/2017,Adult Social Care,C & V ORCHARD RESIDENTIAL LTD,10/05/2017,"1,478.57",73373-RESIDENTIAL & NURSING CARE PLACEMENTS,OP COMMISSIONING,Third Party Payments,Revenue
Walsall Council,http://opendatacommunities.org/id/metropolitan-district-council/walsall,WC80-676,31/05/2017,Adult Social Care,C & V ORCHARD RESIDENTIAL LTD,10/05/2017,"1,478.57",73373-RESIDENTIAL & NURSING CARE PLACEMENTS,OP COMMISSIONING,Third Party Payments,Revenue
Walsall Council,http://opendatacommunities.org/id/metropolitan-district-council/walsall,WC80-677,31/05/2017,Adult Social Care,C & V ORCHARD RESIDENTIAL LTD,10/05/2017,"1,478.57",73373-RESIDENTIAL & NURSING CARE PLACEMENTS,OP COMMISSIONING,Third Party Payments,Revenue
Walsall Council,http://opendatacommunities.org/id/metropolitan-district-council/walsall,WC80-678,31/05/2017,Adult Social Care,C & V ORCHARD RESIDENTIAL LTD,10/05/2017,"1,478.57",73373-RESIDENTIAL & NURSING CARE PLACEMENTS,OP COMMISSIONING,Third Party Payments,Revenue
Walsall Council,http://opendatacommunities.org/id/metropolitan-district-council/walsall,WC80-679,31/05/2017,Adult Social Care,C & V ORCHARD RESIDENTIAL LTD,10/05/2017,"1,478.57",73373-RESIDENTIAL & NURSING CARE PLACEMENTS,OP COMMISSIONING,Third Party Payments,Revenue
Walsall Council,http://opendatacommunities.org/id/metropolitan-district-council/walsall,WC80-680,31/05/2017,Adult Social Care,C & V ORCHARD RESIDENTIAL LTD,10/05/2017,"1,478.57",73373-RESIDENTIAL & NURSING CARE PLACEMENTS,OP COMMISSIONING,Third Party Payments,Revenue
Walsall Council,http://opendatacommunities.org/id/metropolitan-district-council/walsall,WC80-681,31/05/2017,Adult Social Care,C & V ORCHARD RESIDENTIAL LTD,10/05/2017,"1,478.57",73373-RESIDENTIAL & NURSING CARE PLACEMENTS,MH COMMISSIONING,Third Party Payments,Revenue
Walsall Council,http://opendatacommunities.org/id/metropolitan-district-council/walsall,WC80-682,31/05/2017,Adult Social Care,C & V ORCHARD RESIDENTIAL LTD,10/05/2017,"1,542.86",73373-RESIDENTIAL & NURSING CARE PLACEMENTS,OP COMMISSIONING,Third Party Payments,Revenue
Walsall Council,http://opendatacommunities.org/id/metropolitan-district-council/walsall,WC80-683,31/05/2017,Adult Social Care,C & V ORCHARD RESIDENTIAL LTD,10/05/2017,"1,562.14",73373-RESIDENTIAL & NURSING CARE PLACEMENTS,OP COMMISSIONING,Third Party Payments,Revenue
Walsall Council,http://opendatacommunities.org/id/metropolitan-district-council/walsall,WC80-684,31/05/2017,Adult Social Care,C & V ORCHARD RESIDENTIAL LTD,10/05/2017,"1,607.15",73373-RESIDENTIAL & NURSING CARE PLACEMENTS,OP COMMISSIONING,Third Party Payments,Revenue
Walsall Council,http://opendatacommunities.org/id/metropolitan-district-council/walsall,WC80-685,31/05/2017,Adult Social Care,C & V ORCHARD RESIDENTIAL LTD,10/05/2017,"1,680.69",73373-RESIDENTIAL & NURSING CARE PLACEMENTS,OP COMMISSIONING,Third Party Payments,Revenue
Walsall Council,http://opendatacommunities.org/id/metropolitan-district-council/walsall,WC80-686,31/05/2017,Adult Social Care,C & V ORCHARD RESIDENTIAL LTD,01/05/2017,"1,735.71",73373-RESIDENTIAL & NURSING CARE PLACEMENTS,OP COMMISSIONING,Third Party Payments,Revenue
Walsall Council,http://opendatacommunities.org/id/metropolitan-district-council/walsall,WC80-687,31/05/2017,Adult Social Care,C & V ORCHARD RESIDENTIAL LTD,01/05/2017,"1,735.71",73373-RESIDENTIAL & NURSING CARE PLACEMENTS,OP COMMISSIONING,Third Party Payments,Revenue
Walsall Council,http://opendatacommunities.org/id/metropolitan-district-council/walsall,WC80-688,31/05/2017,Adult Social Care,C & V ORCHARD RESIDENTIAL LTD,01/05/2017,"1,800.00",73373-RESIDENTIAL & NURSING CARE PLACEMENTS,OP COMMISSIONING,Third Party Payments,Revenue
Walsall Council,http://opendatacommunities.org/id/metropolitan-district-council/walsall,WC80-689,31/05/2017,Adult Social Care,C & V ORCHARD RESIDENTIAL LTD,01/05/2017,"1,800.00",73373-RESIDENTIAL & NURSING CARE PLACEMENTS,OP COMMISSIONING,Third Party Payments,Revenue
Walsall Council,http://opendatacommunities.org/id/metropolitan-district-council/walsall,WC80-690,31/05/2017,Adult Social Care,C & V ORCHARD RESIDENTIAL LTD,01/05/2017,"1,800.00",73373-RESIDENTIAL & NURSING CARE PLACEMENTS,OP COMMISSIONING,Third Party Payments,Revenue
Walsall Council,http://opendatacommunities.org/id/metropolitan-district-council/walsall,WC80-691,31/05/2017,Adult Social Care,C & V ORCHARD RESIDENTIAL LTD,10/05/2017,"1,800.00",73373-RESIDENTIAL & NURSING CARE PLACEMENTS,OP COMMISSIONING,Third Party Payments,Revenue
Walsall Council,http://opendatacommunities.org/id/metropolitan-district-council/walsall,WC80-692,31/05/2017,Adult Social Care,C & V ORCHARD RESIDENTIAL LTD,10/05/2017,"1,800.00",73373-RESIDENTIAL & NURSING CARE PLACEMENTS,OP COMMISSIONING,Third Party Payments,Revenue
Walsall Council,http://opendatacommunities.org/id/metropolitan-district-council/walsall,WC80-693,31/05/2017,Adult Social Care,C & V ORCHARD RESIDENTIAL LTD,10/05/2017,"1,800.00",73373-RESIDENTIAL & NURSING CARE PLACEMENTS,OP COMMISSIONING,Third Party Payments,Revenue
Walsall Council,http://opendatacommunities.org/id/metropolitan-district-council/walsall,WC80-694,31/05/2017,Adult Social Care,C & V ORCHARD RESIDENTIAL LTD,10/05/2017,"1,800.00",73373-RESIDENTIAL & NURSING CARE PLACEMENTS,MH COMMISSIONING,Third Party Payments,Revenue
Walsall Council,http://opendatacommunities.org/id/metropolitan-district-council/walsall,WC80-695,31/05/2017,Adult Social Care,C & V ORCHARD RESIDENTIAL LTD,10/05/2017,"3,342.85",73373-RESIDENTIAL & NURSING CARE PLACEMENTS,OP COMMISSIONING,Third Party Payments,Revenue
Walsall Council,http://opendatacommunities.org/id/metropolitan-district-council/walsall,WC80-696,31/05/2017,Economy & Environment,C ART ART TRANSPORT LTD,24/05/2017,285.00,73032-TRANSPORTATION-PRIV CONTRACTOR FEES,NAG - TEMPORARY EXHIBITIONS,Third Party Payments,Revenue
Walsall Council,http://opendatacommunities.org/id/metropolitan-district-council/walsall,WC80-697,31/05/2017,Economy & Environment,C ART ART TRANSPORT LTD,15/05/2017,295.00,73032-TRANSPORTATION-PRIV CONTRACTOR FEES,NAG - TEMPORARY EXHIBITIONS,Third Party Payments,Revenue
Walsall Council,http://opendatacommunities.org/id/metropolitan-district-council/walsall,WC80-698,31/05/2017,Economy & Environment,C ART ART TRANSPORT LTD,15/05/2017,355.00,73032-TRANSPORTATION-PRIV CONTRACTOR FEES,NAG - TEMPORARY EXHIBITIONS,Third Party Payments,Revenue
Walsall Council,http://opendatacommunities.org/id/metropolitan-district-council/walsall,WC80-699,31/05/2017,Economy & Environment,C ART ART TRANSPORT LTD,24/05/2017,475.00,73032-TRANSPORTATION-PRIV CONTRACTOR FEES,NAG - TEMPORARY EXHIBITIONS,Third Party Payments,Revenue
Walsall Council,http://opendatacommunities.org/id/metropolitan-district-council/walsall,WC80-700,31/05/2017,Economy & Environment,C ART ART TRANSPORT LTD,15/05/2017,790.00,73032-TRANSPORTATION-PRIV CONTRACTOR FEES,NAG - TEMPORARY EXHIBITIONS,Third Party Payments,Revenue
Walsall Council,http://opendatacommunities.org/id/metropolitan-district-council/walsall,WC80-701,31/05/2017,Economy & Environment,C ART ART TRANSPORT LTD,24/05/2017,"2,390.00",73032-TRANSPORTATION-PRIV CONTRACTOR FEES,NAG - TEMPORARY EXHIBITIONS,Third Party Payments,Revenue
Walsall Council,http://opendatacommunities.org/id/metropolitan-district-council/walsall,WC80-702,31/05/2017,Childrens,REDACTED,22/05/2017,9.24,60006-NEW-FURNITURE & EQUIPMENT,INTERNAL FOSTER CARE PROVISION,Supplies & Services,Revenue
Walsall Council,http://opendatacommunities.org/id/metropolitan-district-council/walsall,WC80-703,31/05/2017,Childrens,REDACTED,22/05/2017,810.32,74501-MAINTENANCE ALLOWANCE-FOSTER CARERS,INTERNAL FOSTER CARE PROVISION,Transfer Payments,Revenue
Walsall Council,http://opendatacommunities.org/id/metropolitan-district-council/walsall,WC80-704,31/05/2017,Childrens,REDACTED,22/05/2017,810.32,74501-MAINTENANCE ALLOWANCE-FOSTER CARERS,INTERNAL FOSTER CARE PROVISION,Transfer Payments,Revenue
Walsall Council,http://opendatacommunities.org/id/metropolitan-district-council/walsall,WC80-705,31/05/2017,Childrens,REDACTED,22/05/2017,810.32,74501-MAINTENANCE ALLOWANCE-FOSTER CARERS,INTERNAL FOSTER CARE PROVISION,Transfer Payments,Revenue
Walsall Council,http://opendatacommunities.org/id/metropolitan-district-council/walsall,WC80-706,31/05/2017,Childrens,REDACTED,22/05/2017,810.32,74501-MAINTENANCE ALLOWANCE-FOSTER CARERS,INTERNAL FOSTER CARE PROVISION,Transfer Payments,Revenue
Walsall Council,http://opendatacommunities.org/id/metropolitan-district-council/walsall,WC80-707,31/05/2017,Childrens,REDACTED,22/05/2017,985.76,74501-MAINTENANCE ALLOWANCE-FOSTER CARERS,INTERNAL FOSTER CARE PROVISION,Transfer Payments,Revenue
Walsall Council,http://opendatacommunities.org/id/metropolitan-district-council/walsall,WC80-708,31/05/2017,Childrens,REDACTED,22/05/2017,985.76,74501-MAINTENANCE ALLOWANCE-FOSTER CARERS,INTERNAL FOSTER CARE PROVISION,Transfer Payments,Revenue
Walsall Council,http://opendatacommunities.org/id/metropolitan-district-council/walsall,WC80-709,31/05/2017,Childrens,REDACTED,22/05/2017,"4,308.40",74508-INTERNAL FOSTER CARERS-CARER FEES,INTERNAL FOSTER CARE PROVISION,Transfer Payments,Revenue
Walsall Council,http://opendatacommunities.org/id/metropolitan-district-council/walsall,WC80-710,31/05/2017,Childrens,REDACTED,22/05/2017,9.24,60006-NEW-FURNITURE & EQUIPMENT,INTERNAL FOSTER CARE PROVISION,Supplies & Services,Revenue
Walsall Council,http://opendatacommunities.org/id/metropolitan-district-council/walsall,WC80-711,31/05/2017,Childrens,REDACTED,22/05/2017,810.32,74501-MAINTENANCE ALLOWANCE-FOSTER CARERS,INTERNAL FOSTER CARE PROVISION,Transfer Payments,Revenue
Walsall Council,http://opendatacommunities.org/id/metropolitan-district-council/walsall,WC80-712,31/05/2017,Childrens,REDACTED,22/05/2017,810.32,74501-MAINTENANCE ALLOWANCE-FOSTER CARERS,INTERNAL FOSTER CARE PROVISION,Transfer Payments,Revenue
Walsall Council,http://opendatacommunities.org/id/metropolitan-district-council/walsall,WC80-713,31/05/2017,Childrens,REDACTED,22/05/2017,"1,436.08",74508-INTERNAL FOSTER CARERS-CARER FEES,INTERNAL FOSTER CARE PROVISION,Transfer Payments,Revenue
Walsall Council,http://opendatacommunities.org/id/metropolitan-district-council/walsall,WC80-714,31/05/2017,Economy & Environment,C P DAVIDSON & SONS LTD,11/05/2017,268.18,60500-GENERAL MATERIALS,FLEET,Supplies & Services,Revenue
Walsall Council,http://opendatacommunities.org/id/metropolitan-district-council/walsall,WC80-715,31/05/2017,Childrens,REDACTED,08/05/2017,571.44,74501-MAINTENANCE ALLOWANCE-FOSTER CARERS,FAMILY & FRIENDS FOSTER CARE PROVISION,Transfer Payments,Revenue
Walsall Council,http://opendatacommunities.org/id/metropolitan-district-council/walsall,WC80-716,31/05/2017,Childrens,REDACTED,08/05/2017,650.92,74501-MAINTENANCE ALLOWANCE-FOSTER CARERS,FAMILY & FRIENDS FOSTER CARE PROVISION,Transfer Payments,Revenue
Walsall Council,http://opendatacommunities.org/id/metropolitan-district-council/walsall,WC80-717,31/05/2017,Adult Social Care,CALDENE  REST HOME,10/05/2017,"1,620.00",73373-RESIDENTIAL & NURSING CARE PLACEMENTS,OP COMMISSIONING,Third Party Payments,Revenue
Walsall Council,http://opendatacommunities.org/id/metropolitan-district-council/walsall,WC80-718,31/05/2017,Adult Social Care,CALDMORE AREA HOUSING ASS LTD,19/05/2017,299.31,73374-SUPPORTED & OTHER ACCOMMODATION,OP COMMISSIONING,Third Party Payments,Revenue
Walsall Council,http://opendatacommunities.org/id/metropolitan-district-council/walsall,WC80-719,31/05/2017,Adult Social Care,CALDMORE AREA HOUSING ASS LTD,12/05/2017,412.30,73374-SUPPORTED & OTHER ACCOMMODATION,OP COMMISSIONING,Third Party Payments,Revenue
Walsall Council,http://opendatacommunities.org/id/metropolitan-district-council/walsall,WC80-720,31/05/2017,Adult Social Care,CALDMORE AREA HOUSING ASS LTD,12/05/2017,612.56,73374-SUPPORTED & OTHER ACCOMMODATION,OP COMMISSIONING,Third Party Payments,Revenue
Walsall Council,http://opendatacommunities.org/id/metropolitan-district-council/walsall,WC80-721,31/05/2017,Adult Social Care,CALDMORE AREA HOUSING ASS LTD,12/05/2017,612.56,73374-SUPPORTED & OTHER ACCOMMODATION,OP COMMISSIONING,Third Party Payments,Revenue
Walsall Council,http://opendatacommunities.org/id/metropolitan-district-council/walsall,WC80-722,31/05/2017,Adult Social Care,CALDMORE AREA HOUSING ASS LTD,12/05/2017,624.34,73374-SUPPORTED & OTHER ACCOMMODATION,OP COMMISSIONING,Third Party Payments,Revenue
Walsall Council,http://opendatacommunities.org/id/metropolitan-district-council/walsall,WC80-723,31/05/2017,Adult Social Care,CALDMORE AREA HOUSING ASS LTD,12/05/2017,624.34,73374-SUPPORTED & OTHER ACCOMMODATION,OP COMMISSIONING,Third Party Payments,Revenue
Walsall Council,http://opendatacommunities.org/id/metropolitan-district-council/walsall,WC80-724,31/05/2017,Adult Social Care,CALDMORE AREA HOUSING ASS LTD,12/05/2017,636.12,73374-SUPPORTED & OTHER ACCOMMODATION,OP COMMISSIONING,Third Party Payments,Revenue
Walsall Council,http://opendatacommunities.org/id/metropolitan-district-council/walsall,WC80-725,31/05/2017,Adult Social Care,CALDMORE AREA HOUSING ASS LTD,12/05/2017,636.12,73374-SUPPORTED & OTHER ACCOMMODATION,LD COMMISSIONING,Third Party Payments,Revenue
Walsall Council,http://opendatacommunities.org/id/metropolitan-district-council/walsall,WC80-726,31/05/2017,Adult Social Care,CALDMORE AREA HOUSING ASS LTD,19/05/2017,723.49,73374-SUPPORTED & OTHER ACCOMMODATION,OP COMMISSIONING,Third Party Payments,Revenue
Walsall Council,http://opendatacommunities.org/id/metropolitan-district-council/walsall,WC80-727,31/05/2017,Adult Social Care,CALDMORE AREA HOUSING ASS LTD,10/05/2017,904.66,73373-RESIDENTIAL & NURSING CARE PLACEMENTS,MH COMMISSIONING,Third Party Payments,Revenue
Walsall Council,http://opendatacommunities.org/id/metropolitan-district-council/walsall,WC80-728,31/05/2017,Adult Social Care,CALDMORE AREA HOUSING ASS LTD,10/05/2017,"1,247.43",73373-RESIDENTIAL & NURSING CARE PLACEMENTS,MH COMMISSIONING,Third Party Payments,Revenue
Walsall Council,http://opendatacommunities.org/id/metropolitan-district-council/walsall,WC80-729,31/05/2017,Adult Social Care,CALDMORE AREA HOUSING ASS LTD,10/05/2017,"1,247.43",73373-RESIDENTIAL & NURSING CARE PLACEMENTS,MH COMMISSIONING,Third Party Payments,Revenue
Walsall Council,http://opendatacommunities.org/id/metropolitan-district-council/walsall,WC80-730,31/05/2017,Adult Social Care,CALDMORE AREA HOUSING ASS LTD,10/05/2017,"2,713.97",73373-RESIDENTIAL & NURSING CARE PLACEMENTS,MH COMMISSIONING,Third Party Payments,Revenue
Walsall Council,http://opendatacommunities.org/id/metropolitan-district-council/walsall,WC80-731,31/05/2017,Adult Social Care,CALDMORE AREA HOUSING ASS LTD,10/05/2017,"2,713.97",73373-RESIDENTIAL & NURSING CARE PLACEMENTS,OP COMMISSIONING,Third Party Payments,Revenue
Walsall Council,http://opendatacommunities.org/id/metropolitan-district-council/walsall,WC80-732,31/05/2017,Adult Social Care,CALDMORE AREA HOUSING ASS LTD,10/05/2017,"2,713.97",73373-RESIDENTIAL & NURSING CARE PLACEMENTS,MH COMMISSIONING,Third Party Payments,Revenue
Walsall Council,http://opendatacommunities.org/id/metropolitan-district-council/walsall,WC80-733,31/05/2017,Adult Social Care,CALDMORE AREA HOUSING ASS LTD,10/05/2017,"2,713.97",73373-RESIDENTIAL & NURSING CARE PLACEMENTS,MH COMMISSIONING,Third Party Payments,Revenue
Walsall Council,http://opendatacommunities.org/id/metropolitan-district-council/walsall,WC80-734,31/05/2017,Adult Social Care,CALDMORE AREA HOUSING ASS LTD,10/05/2017,"2,713.97",73373-RESIDENTIAL & NURSING CARE PLACEMENTS,MH COMMISSIONING,Third Party Payments,Revenue
Walsall Council,http://opendatacommunities.org/id/metropolitan-district-council/walsall,WC80-735,31/05/2017,Adult Social Care,CALDMORE AREA HOUSING ASS LTD,10/05/2017,"2,713.97",73373-RESIDENTIAL & NURSING CARE PLACEMENTS,MH COMMISSIONING,Third Party Payments,Revenue
Walsall Council,http://opendatacommunities.org/id/metropolitan-district-council/walsall,WC80-736,31/05/2017,Adult Social Care,CALDMORE AREA HOUSING ASS LTD,10/05/2017,"2,713.97",73373-RESIDENTIAL & NURSING CARE PLACEMENTS,MH COMMISSIONING,Third Party Payments,Revenue
Walsall Council,http://opendatacommunities.org/id/metropolitan-district-council/walsall,WC80-737,31/05/2017,Adult Social Care,CALDMORE AREA HOUSING ASS LTD,10/05/2017,"2,713.97",73373-RESIDENTIAL & NURSING CARE PLACEMENTS,MH COMMISSIONING,Third Party Payments,Revenue
Walsall Council,http://opendatacommunities.org/id/metropolitan-district-council/walsall,WC80-738,31/05/2017,Adult Social Care,CALDMORE AREA HOUSING ASS LTD,10/05/2017,"2,713.97",73373-RESIDENTIAL & NURSING CARE PLACEMENTS,MH COMMISSIONING,Third Party Payments,Revenue
Walsall Council,http://opendatacommunities.org/id/metropolitan-district-council/walsall,WC80-739,31/05/2017,Adult Social Care,CALDMORE AREA HOUSING ASS LTD,10/05/2017,"2,713.97",73373-RESIDENTIAL & NURSING CARE PLACEMENTS,MH COMMISSIONING,Third Party Payments,Revenue
Walsall Council,http://opendatacommunities.org/id/metropolitan-district-council/walsall,WC80-740,31/05/2017,Adult Social Care,CALDMORE AREA HOUSING ASS LTD,10/05/2017,"2,713.97",73373-RESIDENTIAL & NURSING CARE PLACEMENTS,MH COMMISSIONING,Third Party Payments,Revenue
Walsall Council,http://opendatacommunities.org/id/metropolitan-district-council/walsall,WC80-741,31/05/2017,Change and Governance,CALL PRINT GROUP LIMITED,01/05/2017,275.00,62008-OUTWORK-PRINT ROOM,PRINTING SERVICES,Supplies & Services,Revenue
Walsall Council,http://opendatacommunities.org/id/metropolitan-district-council/walsall,WC80-742,31/05/2017,Childrens,REDACTED,08/05/2017,375.88,74510-RESIDENTS ORDERS,ADOPTION ALLOWANCES,Third Party Payments,Revenue
Walsall Council,http://opendatacommunities.org/id/metropolitan-district-council/walsall,WC80-743,31/05/2017,Childrens,REDACTED,09/05/2017,315.00,76422-DIRECT PAYMENTS TO SOCIAL SERVICES CLIENTS,FAMILY SUPPORT - DIRECT PAYMENTS,Transfer Payments,Revenue
Walsall Council,http://opendatacommunities.org/id/metropolitan-district-council/walsall,WC80-744,31/05/2017,Childrens,CAMBIAN CHILDCARE LIMITED,22/05/2017,"13,400.00",74036-EXTERNAL RESIDENTIAL CARE-OTH AGENCY PROVISION,INDEPENDENT RESIDENTIAL HOMES,Third Party Payments,Revenue
Walsall Council,http://opendatacommunities.org/id/metropolitan-district-council/walsall,WC80-745,31/05/2017,Childrens,CAMBIAN CHILDCARE LIMITED,22/05/2017,"15,314.29",74036-EXTERNAL RESIDENTIAL CARE-OTH AGENCY PROVISION,INDEPENDENT RESIDENTIAL HOMES,Third Party Payments,Revenue
Walsall Council,http://opendatacommunities.org/id/metropolitan-district-council/walsall,WC80-746,31/05/2017,Adult Social Care,CAMBIAN HEALTHCARE LTD,11/05/2017,"13,290.90",73375-IN PATIENT BEDS,LD COMMISSIONING,Third Party Payments,Revenue
Walsall Council,http://opendatacommunities.org/id/metropolitan-district-council/walsall,WC80-747,31/05/2017,Adult Social Care,CAMBIAN HEALTHCARE LTD,11/05/2017,"13,733.93",73375-IN PATIENT BEDS,LD COMMISSIONING,Third Party Payments,Revenue
Walsall Council,http://opendatacommunities.org/id/metropolitan-district-council/walsall,WC80-748,31/05/2017,Economy & Environment,CAMERA ONE LIMITED,10/05/2017,295.00,73025-PROFESSIONAL SERVICES-PRIV CONTRACTOR & OTHER AGENCIES,DEPOT,Third Party Payments,Revenue
Walsall Council,http://opendatacommunities.org/id/metropolitan-district-council/walsall,WC80-749,31/05/2017,Economy & Environment,CAMERA ONE LIMITED,10/05/2017,"1,690.00",73025-PROFESSIONAL SERVICES-PRIV CONTRACTOR & OTHER AGENCIES,DEPOT,Third Party Payments,Revenue
Walsall Council,http://opendatacommunities.org/id/metropolitan-district-council/walsall,WC80-750,31/05/2017,Economy & Environment,CANNOCK TACHOGRAPH CENTRE LTD,22/05/2017,495.00,73025-PROFESSIONAL SERVICES-PRIV CONTRACTOR & OTHER AGENCIES,FLEET,Third Party Payments,Revenue
Walsall Council,http://opendatacommunities.org/id/metropolitan-district-council/walsall,WC80-751,31/05/2017,Childrens,CAPITA CHILDREN'S SERVICES,01/05/2017,"10,708.65",77000-TRANSFER PAYMENTS-MANDATORY AWARDS,EARLY HELP HUB,Transfer Payments,Revenue
Walsall Council,http://opendatacommunities.org/id/metropolitan-district-council/walsall,WC80-752,31/05/2017,Childrens,CAPITA CHILDREN'S SERVICES,12/05/2017,"24,500.00",63114-OTHER FEES & LICENCES-SERVICES-FEES,WCS STATUTORY LICENCES,Supplies & Services,Revenue
Walsall Council,http://opendatacommunities.org/id/metropolitan-district-council/walsall,WC80-753,31/05/2017,Childrens,CAPITA CHILDREN'S SERVICES,12/05/2017,"101,021.92",63114-OTHER FEES & LICENCES-SERVICES-FEES,WCS STATUTORY LICENCES,Supplies & Services,Revenue
Walsall Council,http://opendatacommunities.org/id/metropolitan-district-council/walsall,WC80-754,31/05/2017,Childrens,CAPSTONE FOSTER CARE (SOUTH EAST) LIMITED,22/05/2017,"2,855.68",74037-INDEPENDENT FOSTER CARE-OTH AGENCY PROVISION,EXTERNAL FOSTER CARE PROVISION,Third Party Payments,Revenue
Walsall Council,http://opendatacommunities.org/id/metropolitan-district-council/walsall,WC80-755,31/05/2017,Childrens,CAPSTONE FOSTER CARE (SOUTH EAST) LIMITED,22/05/2017,"3,005.64",74037-INDEPENDENT FOSTER CARE-OTH AGENCY PROVISION,EXTERNAL FOSTER CARE PROVISION,Third Party Payments,Revenue
Walsall Council,http://opendatacommunities.org/id/metropolitan-district-council/walsall,WC80-756,31/05/2017,Childrens,CAPSTONE FOSTER CARE (SOUTH EAST) LIMITED,22/05/2017,"3,194.04",74037-INDEPENDENT FOSTER CARE-OTH AGENCY PROVISION,EXTERNAL FOSTER CARE PROVISION,Third Party Payments,Revenue
Walsall Council,http://opendatacommunities.org/id/metropolitan-district-council/walsall,WC80-757,31/05/2017,Childrens,CAPSTONE FOSTER CARE (SOUTH EAST) LIMITED,22/05/2017,"3,194.04",74037-INDEPENDENT FOSTER CARE-OTH AGENCY PROVISION,EXTERNAL FOSTER CARE PROVISION,Third Party Payments,Revenue
Walsall Council,http://opendatacommunities.org/id/metropolitan-district-council/walsall,WC80-758,31/05/2017,Childrens,CAPSTONE FOSTER CARE (SOUTH EAST) LIMITED,22/05/2017,"3,260.04",74037-INDEPENDENT FOSTER CARE-OTH AGENCY PROVISION,EXTERNAL FOSTER CARE PROVISION,Third Party Payments,Revenue
Walsall Council,http://opendatacommunities.org/id/metropolitan-district-council/walsall,WC80-759,31/05/2017,Adult Social Care,CARE 2 U LIMITED,17/05/2017,"5,311.76",73372-DOMICILIARY CARE,OP COMMISSIONING,Third Party Payments,Revenue
Walsall Council,http://opendatacommunities.org/id/metropolitan-district-council/walsall,WC80-760,31/05/2017,Adult Social Care,CARE 2 U LIMITED,24/05/2017,"33,360.00",73372-DOMICILIARY CARE,OP COMMISSIONING,Third Party Payments,Revenue
Walsall Council,http://opendatacommunities.org/id/metropolitan-district-council/walsall,WC80-761,31/05/2017,Childrens,CARE 4 CHILDREN RESIDENTIAL SERVICES LTD,22/05/2017,"7,200.00",74037-INDEPENDENT FOSTER CARE-OTH AGENCY PROVISION,EXTERNAL FOSTER CARE PROVISION,Third Party Payments,Revenue
Walsall Council,http://opendatacommunities.org/id/metropolitan-district-council/walsall,WC80-762,31/05/2017,Adult Social Care,CARE FIRST MANAGEMENT SERVICES LTD,15/05/2017,780.00,73372-DOMICILIARY CARE,PD COMMISSIONING,Third Party Payments,Revenue
Walsall Council,http://opendatacommunities.org/id/metropolitan-district-council/walsall,WC80-763,31/05/2017,Childrens,CARE FOR ME HOUSING AND SUPPORT,01/05/2017,"2,600.00",76010-ACCOMMODATION AND RELATED COSTS-ASSISTANCE TO S/S CLIENTS,TRANSITION AND LEAVING CARE,Transfer Payments,Revenue
Walsall Council,http://opendatacommunities.org/id/metropolitan-district-council/walsall,WC80-764,31/05/2017,Childrens,CARE FOR ME HOUSING AND SUPPORT,30/05/2017,"2,600.00",76010-ACCOMMODATION AND RELATED COSTS-ASSISTANCE TO S/S CLIENTS,TRANSITION AND LEAVING CARE,Transfer Payments,Revenue
Walsall Council,http://opendatacommunities.org/id/metropolitan-district-council/walsall,WC80-765,31/05/2017,Adult Social Care,CARE SHOP,08/05/2017,215.35,60539-CLEANING MATERIALS,REABLEMENT TEAM - HOLLY BANK,Supplies & Services,Revenue
Walsall Council,http://opendatacommunities.org/id/metropolitan-district-council/walsall,WC80-766,31/05/2017,Adult Social Care,CARE SHOP,02/05/2017,710.11,60539-CLEANING MATERIALS,REABLEMENT TEAM - HOLLY BANK,Supplies & Services,Revenue
Walsall Council,http://opendatacommunities.org/id/metropolitan-district-council/walsall,WC80-767,31/05/2017,Adult Social Care,CARE SHOP,22/05/2017,831.19,60539-CLEANING MATERIALS,REABLEMENT TEAM - HOLLY BANK,Supplies & Services,Revenue
Walsall Council,http://opendatacommunities.org/id/metropolitan-district-council/walsall,WC80-768,31/05/2017,Childrens,CARE TODAY CHILDRENS SERVICES,22/05/2017,"12,732.00",74036-EXTERNAL RESIDENTIAL CARE-OTH AGENCY PROVISION,INDEPENDENT RESIDENTIAL HOMES,Third Party Payments,Revenue
Walsall Council,http://opendatacommunities.org/id/metropolitan-district-council/walsall,WC80-769,31/05/2017,Adult Social Care,CARE XY LIMITED,09/05/2017,"2,931.50",73025-PROFESSIONAL SERVICES-PRIV CONTRACTOR & OTHER AGENCIES,COMMUNITY INTERMEDIATE CARE,Third Party Payments,Revenue
Walsall Council,http://opendatacommunities.org/id/metropolitan-district-council/walsall,WC80-770,31/05/2017,Adult Social Care,CARE XY LIMITED,09/05/2017,"3,272.75",73025-PROFESSIONAL SERVICES-PRIV CONTRACTOR & OTHER AGENCIES,COMMUNITY INTERMEDIATE CARE,Third Party Payments,Revenue
Walsall Council,http://opendatacommunities.org/id/metropolitan-district-council/walsall,WC80-771,31/05/2017,Childrens,CARE XY LIMITED,01/05/2017,"5,084.00",63000-PROFESSIONAL FEES AND SERVICES,DIRECTLY COMMISSIONED NURSING SERVICES,Supplies & Services,Revenue
Walsall Council,http://opendatacommunities.org/id/metropolitan-district-council/walsall,WC80-772,31/05/2017,Childrens,CARE XY LIMITED,09/05/2017,"5,115.00",63000-PROFESSIONAL FEES AND SERVICES,DIRECTLY COMMISSIONED NURSING SERVICES,Supplies & Services,Revenue
Walsall Council,http://opendatacommunities.org/id/metropolitan-district-council/walsall,WC80-773,31/05/2017,Childrens,CAREFIRST SERVICES LIMITED,25/05/2017,"2,399.98",76010-ACCOMMODATION AND RELATED COSTS-ASSISTANCE TO S/S CLIENTS,SAFEGUARDING & FAMILY SUPPORT,Transfer Payments,Revenue
Walsall Council,http://opendatacommunities.org/id/metropolitan-district-council/walsall,WC80-774,31/05/2017,Childrens,CAREFIRST SERVICES LIMITED,25/05/2017,"2,571.30",76010-ACCOMMODATION AND RELATED COSTS-ASSISTANCE TO S/S CLIENTS,SAFEGUARDING & FAMILY SUPPORT,Transfer Payments,Revenue
Walsall Council,http://opendatacommunities.org/id/metropolitan-district-council/walsall,WC80-775,31/05/2017,Childrens,CAREFIRST SERVICES LIMITED,25/05/2017,"2,571.30",76010-ACCOMMODATION AND RELATED COSTS-ASSISTANCE TO S/S CLIENTS,TRANSITION AND LEAVING CARE,Transfer Payments,Revenue
Walsall Council,http://opendatacommunities.org/id/metropolitan-district-council/walsall,WC80-776,31/05/2017,Childrens,CAREFIRST SERVICES LIMITED,25/05/2017,"2,657.01",76010-ACCOMMODATION AND RELATED COSTS-ASSISTANCE TO S/S CLIENTS,SAFEGUARDING & FAMILY SUPPORT,Transfer Payments,Revenue
Walsall Council,http://opendatacommunities.org/id/metropolitan-district-council/walsall,WC80-777,31/05/2017,Childrens,CAREFIRST SERVICES LIMITED,26/05/2017,"2,828.43",76010-ACCOMMODATION AND RELATED COSTS-ASSISTANCE TO S/S CLIENTS,SAFEGUARDING & FAMILY SUPPORT,Transfer Payments,Revenue
Walsall Council,http://opendatacommunities.org/id/metropolitan-district-council/walsall,WC80-778,31/05/2017,Adult Social Care,CARETECH COMMUNITY SERVICE,03/05/2017,"4,725.00",73374-SUPPORTED & OTHER ACCOMMODATION,LD COMMISSIONING,Third Party Payments,Revenue
